Workbook

Sheet Carátula
C15: ESTADO DE RENDIMIENTO ECONÓMICO 2020
F34: Departamento Financiero - Contable
F35: Unidad Contabilidad General
F36: Contabilidad del Activo Fijo y Costos

Sheet Indice
A2: ESTADO DE RENDIMIENTO ECONOMICO -2020
B4: EMPRESA
B6: MONTEVIDEO
B8: AMBITO GEOGRAFICO CENTRO
B9: CANELONES
B10: LAS PIEDRAS
B11: SISTEMA ATLANTIDA
B12: CIUDAD DE LA COSTA
B13: FLORIDA
B14: DURAZNO
B16: AMBITO GEOGRAFICO LITORAL SUR
B17: SAN JOSE
B18: COLONIA
B19: FLORES
B20: SORIANO
B22: AMBITO GEOGRAFICO LITORAL NORTE
B23: PAYSANDU
B24: RIO NEGRO
B25: SALTO
B26: ARTIGAS
B28: AMBITO GEOGRAFICO NORESTE
B29: RIVERA
B30: TACUAREMBO
B31: CERRO LARGO
B33: AMBITO GEOGRAFICO SURESTE
B34: TREINTA Y TRES
B35: ROCHA
B36: LAVALLEJA
B38: U.G.D.

Sheet Nota
B3: INFORME DE ESTADO DE RENDIMIENTO ECONÓMICO
B5: El Informe Estado de Rendimiento Económico consta de los siguientes informes por Sección, Región y Total Empresa a
B6: valores históricos:
B8: −ESTADO DE RENDIMIENTO ECONÓMICO
B10: −COSTOS PROPIOS
B12: −COBERTURAS Y COSTOS PROMEDIOS
B14: ESTADO DE RENDIMIENTO ECONÓMICO
B16: Refleja la gestión de la empresa exponiendo la composición del resultado neto por actividad de producción.
B18: En las columnas se obtienen los totales correspondientes a Agua Potable, Alcantarillado y Otros Ingresos. Dentro de Agua
B19: Potable se analiza el origen de la producción de agua, agrupándose los servicios en Usina (agua superficial), Perforación (agua
B20: subterránea) y Mixto (combinación de las anteriores).
B22: INGRESOS
B24: Se incluyen los recursos generados a través de las operaciones propias del Ente, así como aquellos provenientes de servicios
B25: complementarios.
B27: COSTO DE EXPLOTACIÓN
B29: Se clasifica:
B30: Operativo - incluye el costo asociado a las operaciones de producción y distribución de agua potable y prestación de servicio
B31: de alcantarillado.El costo operativo se abre en fijo y variable según el comportamiento de sus componentes ante variaciones en
B32: los volúmenes de actividad.
B33: No Operativo - gastos de comercialización, administración y fiscales.
B34: Comercialización incluye los gastos de comercialización propios de cada Sección y los gastos centrales de comercialización.
B35: La asignación de los gastos propios a las actividades de agua y alcantarillado, se realiza en base a la cantidad de conexiones
B36: de agua (Usina, Perforación y Mixto)(100%) y alcantarillado (50%).Las conexiones utilizadas son las promedio anual.Los
B37: gastos centrales se asignan en base a ingresos operativos del ejercicio.
B38: Administración incluye los gastos administrativos propios de cada Sección (Jefatura Administrativa, Contabilidad, Caja), y
B39: los gastos de Administración Central.Se asignan con el mismo criterio que los gastos de Comercialización
B40: Fiscales incluye las cargas impositivas que gravan la actividad del Organismo, con excepción del I.R.A.E. que se muestra en
B41: un item independiente.
B43: Las amortizaciones de los Bienes de Propiedad, Planta y Equipo, están consideradas dentro del Costo de Explotación, deducida la cuota parte de las amortizaciones de los bienes que han sido afectados a las Obras en Proceso y en consecuencia fueron activadas.
B46: RESULTADOS DIVERSOS Y EXTRAORDINARIOS
B47: Ingresos incluye ingresos ajenos a la explotación, ingresos diversos, ingresos extraordinarios.
B48: Gastos incluye donaciones, indemnizaciones por litigios (variación anual en los montos previsionados por tal concepto), faltantes por hurto y egresos diversos.
B50: RESULTADOS FINANCIEROS
B51: Ingresos incluye los ingresos por intereses, multas a clientes por atraso en los pagos y diferencia de cotización.
B52: Gastos incluye intereses, comisiones y gastos bancarios, recargos sobres deudas fiscales, multas por atraso en los pagos y dife-
B53: rencia de cotización.
B55: Los Resultados Diversos y Extraordinarios, Resultados Financieros, e IRAE, se asignan en base a los Ingresos de Explotación del Ejercicio.
B57: COSTOS PROPIOS
B58: Refleja la estructura de los Costos Propios, Costo Operativo (agua y alcantarillado) y el Costo Administrativo-Comercial por
B59: concepto de gasto.
B61: COBERTURAS Y COSTOS PROMEDIOS
B63: En éste informe se incluyen los siguientes conceptos:
B65: COMPOSICIÓN DEL COSTO PROPIO POR CONEXIÓN
B67: Representa la estructura por concepto del gasto ,del costo propio por conexión ,según la actividad: Agua , Alcantarillado y
B68: Administrativo-Comercial.
B70: COBERTURAS COSTO - INGRESO
B72: VARIABLE
B73: Representa la proporción del costo variable operativo respecto al ingreso por cargo variable.
B74: FIJO
B75: Representa la proporción del costo fijo de explotación ( total costo explotación menos costo variable operativo) respecto al in-
B76: greso por cargo fijo.
B77: EXPLOTACIÓN
B78: Representa la proporción entre el costo de explotación y los ingresos de explotación.
B79: FINANCIERO
B80: Representa la proporción entre los gastos financieros y los ingresos financieros.
B81: TOTAL
B82: Representa la proporción entre el gasto total (suma de costo de explotación, gastos diversos y extraordinarios, gastos financieros,
B83: e I.R.A.E) y el ingreso total (suma de ingreso de explotación, ingresos diversos y extraordinarios, e ingresos financieros)
B85: M3 ELEVADOS
B87: Corresponde al total de metros cúbicos elevados en el ejercicio, según información proporcionada por el sistema R.A.N.C .
B88: Permite el cálculo del costo variable por metro cúbico elevado.
B90: M3 FACTURADOS
B92: Corresponde al total de metros cúbicos facturados en el ejercicio, información proporcionada por el sistema R.A.N.C.
B93: Permite el cálculo de costos e ingresos unitarios por metro cúbico facturado.
B95: CONEXIONES
B97: Incluye las conexiones de agua y alcantarillado en funcionamiento promedio anual.
B99: COSTO PROMEDIO
B101: •VARIABLE POR M3 ELEVADO
B102: Es la proporción entre el costo operativo variable y el volumen de agua elevada.
B103: •VARIABLE POR M3 FACTURADO
B104: Es la proporción entre el costo operativo variable y el volumen de agua facturada.
B105: •COSTO FIJO POR CONEXION
B106: Es la relación entre el costo fijo de explotación ( total costo explotación menos costo variable operativo) y la cantidad de cone-
B107: xiones en funcionamiento promedio anual.
B108: •COSTO DE EXPLOTACIÓN POR M3 FACTURADO
B109: Es la proporción entre el costo de explotación y el volumen de agua facturada.
B110: •COSTO TOTAL POR M3 FACTURADO
B111: Es la relación entre el costo total (suma de costo de explotación, gastos diversos y extraordinarios, gastos financieros, e I.R.A.E)
B112: y el volumen de agua facturada.
B114: INGRESOS PROMEDIO
B116: •VARIABLE POR M3 FACTURADO
B117: Es la proporción entre el ingreso por cargo variable y el volumen de agua facturada.
B118: •INGRESO FIJO POR CONEXION
B119: Es la proporción entre el ingreso por cargo fijo y la cantidad de conexiones en funcionamiento promedio anual
B120: •INGRESO DE EXPLOTACIÓN POR M3 FACTURADO
B121: Es la proporción entre el ingreso de explotación y el volumen de agua facturada.
B122: •INGRESO TOTAL POR M3 FACTURADO
B123: Es la relación entre el ingreso total (suma de ingreso de explotación, ingresos diversos y extraordinarios, e ingresos financieros)
B124: y el volumen de agua facturada.

Sheet A-OSE-ACT
B3: ESTADO DE RENDIMIENTO ECONÓMICO (a valores históricos) | G3: PERÍODO ENERO-DICIEMBRE-2020
B5: AGUA POTABLE | C5: PERFORACIÓN | D5: MIXTO | E5: SUB-TOTAL
A6: CONCEPTOS | B6: USINA | C6: PERFORACIÓN | D6: MIXTO | E6: SUB-TOTAL | F6: ALCANTARILLADO | G6: OTROS INGRESOS | H6: TOTAL
A7: INGRESOS
A8: Ingresos Variables | B8: 6286168702 | C8: 318544708.7 | D8: 960091315.3 | E8: 7564804726 | H8: 7564804726
A9: Ingresos Fijos | B9: 3904441840 | C9: 272901862.5 | D9: 822917585.6 | E9: 5000261288 | F9: -387606.25 | H9: 4999873682
A10: INGRESOS DE EXPLOTACION | B10: 1.019061054e+10 | C10: 591446571.2 | D10: 1783008901 | E10: 1.256506601e+10 | F10: -387606.25 | H10: 1.256467841e+10
A11: Ingresos Alcantarillado | F11: 2413080396 | H11: 2413080396
A12: Ingresos Upas
A13: Otros Ingresos | B13: 466388691 | C13: 42231645.67 | D13: 132414608.3 | E13: 641034945 | F13: 34514716.04 | G13: 181558.79 | H13: 675731219.8
A14: TOTAL ING. DE EXPLOTACION | B14: 1.065699923e+10 | C14: 633678216.9 | D14: 1915423509 | E14: 1.320610096e+10 | F14: 2447207506 | G14: 181558.79 | H14: 1.565349002e+10
A15: COSTOS DE EXPLOTACION
A16: OPERATIVO
A17: Costo Operativo Var | B17: 1877935071 | C17: 81567000.38 | D17: 346989347 | E17: 2306491418 | F17: 379415826.3 | H17: 2685907245
A18: Costo Operativo Fijo | B18: 2222417258 | C18: 261948950.1 | D18: 881812634.5 | E18: 3366178843 | F18: 1119323805 | H18: 4485502648
A19: TOTAL OPERATIVO | B19: 4100352329 | C19: 343515950.5 | D19: 1228801982 | E19: 5672670261 | F19: 1498739631 | H19: 7171409893
A20: NO OPERATIVO
A21: COMERCIALIZACION
A22: Comercial Propios | B22: 1588352077 | C22: 166109363.5 | D22: 567580444.4 | E22: 2322041885 | F22: 354607572.4 | H22: 2676649458
A23: Comercial Asignados | B23: 1019424034 | C23: 69764002.01 | D23: 210876129.6 | E23: 1300064166 | F23: 209286902.1 | H23: 1509351068
A24: Comercialización Upas
A25: TOTAL COMERCIALIZACION | B25: 2607776112 | C25: 235873365.5 | D25: 778456574 | E25: 3622106051 | F25: 563894474.5 | H25: 4186000526
A26: ADMINISTRACION
A27: Administración Propios | B27: 217280772.5 | C27: 36005244.92 | D27: 132393236.5 | E27: 385679253.9 | F27: 87676056.13 | H27: 473355310
A28: Administ. Asignados | B28: 1105358889 | C28: 75068116.12 | D28: 226908911.9 | E28: 1407335917 | F28: 228705423.7 | H28: 1636041341
A29: Gastos Fiscales | B29: 533431735.2 | C29: 31872512.52 | D29: 96341263.23 | E29: 661645510.9 | F29: 122079817.7 | H29: 783725329.6
A30: TOTAL ADMINISTRACION | B30: 1856071397 | C30: 142945873.6 | D30: 455643411.6 | E30: 2454660682 | F30: 438461297.5 | H30: 2893121979
A31: TOTAL NO OPERATIVO | B31: 4463847508 | C31: 378819239.1 | D31: 1234099986 | E31: 6076766733 | F31: 1002355772 | H31: 7079122505
A32: COSTO DE EXPLOTACION | B32: 8564199837 | C32: 722335189.6 | D32: 2462901967 | E32: 1.174943699e+10 | F32: 2501095403 | H32: 1.42505324e+10
A33: RESULTADO DE EXPLOTACION | B33: 2092799396 | C33: -88656972.74 | D33: -547478458.1 | E33: 1456663965 | F33: -53887897.63 | G33: 181558.79 | H33: 1402957626
A34: DIVERSOS Y EXTRAORDINARIOS
A35: Ingresos Div. y Extr | B35: 176407028 | C35: 11850448.39 | D35: 35820432.4 | E35: 224077908.8 | F35: 36848898.86 | H35: 260926807.7
A36: Gtos. Div. y Extraor | B36: 152112192.9 | C36: 10170884.4 | D36: 30743601.33 | E36: 193026678.7 | F36: 31901834.65 | H36: 224928513.3
A37: RESULTADOS DIV. Y EXTRAORDINARIOS | B37: 24294835.09 | C37: 1679563.99 | D37: 5076831.07 | E37: 31051230.15 | F37: 4947064.21 | H37: 35998294.36
A38: FINANCIEROS
A39: Ingresos Financieros | B39: 605123046.3 | C39: 39692429.34 | D39: 119978579.9 | E39: 764794055.5 | F39: 128977091.7 | H39: 893771147.3
A40: Gastos Financieros | B40: 1782216612 | C40: 121734882.4 | D40: 367968868.3 | E40: 2271920362 | F40: 366870572.1 | H40: 2638790935
A41: RESULTADO FINANCIERO | B41: -1177093565 | C41: -82042453.09 | D41: -247990288.4 | E41: -1507126307 | F41: -237893480.4 | H41: -1745019787
A42: I.R.A.E. | B42: 478877047.4 | C42: 28945424.14 | D42: 87493533.04 | E42: 595316004.5 | F42: 108700295 | H42: 704016300
A43: RESULTADO NETO | B43: 1418877713 | C43: -140074437.7 | D43: -702898382.4 | E43: 575904892.6 | F43: -178134019 | G43: 181558.79 | H43: 397952432

Sheet B-OSE-ACT
A3: E M P R E S A
C5: C O S T O S T O T A L E S
B9: C O N C E P T O | C9: C O S T O S O P E R A T I V O S
C12: AGUA | D12: ALCANTARILLADO | E12: TOTAL
B14: RETRIBUCIONES AL PERSONAL | C14: 1528977265 | D14: 284569767.3 | E14: 1813547032
B16: MATERIALES Y SUMINISTROS | C16: 1111482467 | D16: 77819818.91 | E16: 1189302286
B18: ENERGÍA Y FLUÍDOS | C18: 1162311613 | D18: 153286678 | E18: 1315598291
B20: SERVICIOS CONTRATADOS | C20: 545306627.6 | D20: 399474435.4 | E20: 944781063
B22: GASTOS VARIOS | C22: 187186892.9 | D22: 29515797.82 | E22: 216702690.7
B24: AMORTIZACIÓN | C24: 1137405396 | D24: 554073134 | E24: 1691478530
B27: TOTAL | C27: 5672670261 | D27: 1498739632 | E27: 7171409893
B32: C O N C E P T O | C32: C O S T O D E A D M I N I S T R A T I V O - C O M E R C I A L
C35: COMERCIALIZACIÓN | D35: ADMINISTRACIÓN | E35: COMERC. UPAS | F35: ADM.ASIGNADOS | G35: COM.ASIGNADOS
B37: RETRIBUCIONES AL PERSONAL | C37: 1156713007 | D37: 214902555.3 | E37: 0 | F37: 1116137276 | G37: 312006552
B39: MATERIALES Y SUMINISTROS | C39: 101648683 | D39: 10474036.19 | E39: 0 | F39: 39774776.96 | G39: 13869322.49
B41: ENERGÍA Y FLUÍDOS | C41: 8633067.823 | D41: 70608880.83 | E41: 0 | F41: 40313854.56 | G41: 2199374.19
B43: SERVICIOS CONTRATADOS | C43: 899347011.3 | D43: 100263960.8 | E43: 0 | F43: 396102403.3 | G43: 709814204.3
B45: GASTOS VARIOS | C45: 282116506.2 | D45: 45493301.59 | E45: 0 | F45: 26595691.07 | G45: 446020797.5
B47: AMORTIZACIÓN | C47: 228191182 | D47: 31612575.25 | E47: 0 | F47: 17117339.33 | G47: 25440817.49
B51: TOTAL | C51: 2676649458 | D51: 473355310 | E51: 0 | F51: 1636041341 | G51: 1509351068
B54: FISCALES | E54: 783725328.6
A58: C O S T O D E E X P L O T A C I Ó N | G58: 1.42505324e+10

Sheet C-OSE-ACT
A3: COBERTURAS, COSTOS E INGRESOS PROMEDIO
A5: E M P R E S A
B9: 1. COMPOSICIÓN DEL COSTO PROPIO POR CONEXIÓN | C9: OPERATIVOS | D9: 0 | E9: ADMINISTRATIVO-COMERCIAL
C11: AGUA | D11: ALCANTARILLADO
C12: ($/conex.agua) | D12: ($/conex.desagüe) | E12: ($/conex.agua)
B14: RETRIBUCIONES AL PERSONAL | C14: 1291.357208 | D14: 827.5408065 | E14: 1158.451263
B16: MATERIALES Y SUMINISTROS | C16: 938.7457411 | D16: 226.303294 | E16: 94.69760274
B18: ENERGÍA Y FLUÍDOS | C18: 981.6754724 | D18: 445.7640822 | E18: 66.92686929
B20: SERVICIOS CONTRATADOS | C20: 460.5599182 | D20: 1161.688396 | E20: 844.2603193
B22: GASTOS VARIOS | C22: 158.0959697 | D22: 85.83317673 | E22: 276.6956032
B24: AMORTIZACIÓN | C24: 960.6399581 | D24: 1611.267889 | E24: 219.4273664
B28: TOTAL | C28: 4791.074267 | D28: 4358.397644 | E28: 2660.459024
B31: 2.CONEXIONES (promedio anual) | C31: 1184008 | D31: 343874
B34: 3.COBERTURAS COSTO/INGRESO
B36: 3.1 COSTO DE EXPLOTACIÓN/ INGRESO DE EXPLOT. | C36: 0.8896976504 | D36: 1.022020159 | E36: 0.01303863431
B38: 3.2 FINANCIERO | C38: 2.952423495
B40: 3.3 TOTAL | C40: 1.043305973 | D40: 1.151369896
B43: 4.M3 ELEVADOS | C43: 357939990
B45: 5.M3 FACTURADOS | C45: 173413300
B48: 6. COSTO PROMEDIO
B50: 6.1 COSTO VARIABLE/ M3 ELEVADOS | C50: 6.443793605
B52: 6.2 COSTO VARIABLE / M3 FACTURADOS | C52: 13.3005451
B54: 6.3 COSTO EXPLOTACIÓN/ M3 FACTURADOS | C54: 67.7539554
B56: 6.4 COSTO EXPLOTACIÓN/ M3 ELEVADOS | C56: 32.82515875
B58: 6.5 TOTAL/ M3 FACTURADOS | C58: 85.40117765
B60: TOTAL /M3ELEVADO | C60: 41.37481269
B63: 7. INGRESOS PROMEDIO
B65: 7.1 VARIABLE/ M3 FACTURADOS | C65: 43.6229789
B67: 7.2 FIJO/CONEXIONES | C67: 351.9304267
B69: 7.3 INGRESO EXPLOTACIÓN/ M3 FACTURADOS | C69: 76.15391068
B71: 7.4 TOTAL/ M3 FACTURADOS | C71: 81.85631046

Sheet A-MDEO-600
B2: ESTADO DE RENDIMIENTO ECONÓMICO (a valores históricos) | G2: PERÍODO ENERO-DICIEMBRE-2020
B4: USINA | C4: PERFORACIÓN | D4: MIXTO | E4: SUB-TOTAL
A5: CONCEPTOS | B5: USINA | C5: PERFORACIÓN | D5: MIXTO | E5: SUB-TOTAL | F5: ALCANTARILLADO | G5: OTROS INGRESOS | H5: TOTAL
A6: INGRESOS
A7: Ingresos Variables | B7: 3597732995 | E7: 3597732995 | H7: 3597732995
A8: Ingresos Fijos | B8: 1938604894 | E8: 1938604894 | H8: 1938604894
A9: INGRESOS DE EXPLOTACION | B9: 5536337889 | E9: 5536337889 | H9: 5536337889
A10: Ingresos Upas | B10: 171491705.1 | E10: 171491705.1 | H10: 171648263.6
A11: Otros Ingresos | B11: 171491705.1 | E11: 171491705.1 | G11: 156558.55 | H11: 171648263.6
A12: TOTAL ING. DE EXPLOTACION | B12: 5707829594 | E12: 5707829594 | G12: 156558.55 | H12: 5707986152
A13: COSTOS DE EXPLOTACION
A14: OPERATIVO
A15: Costo Operativo Var | B15: 1226101004 | E15: 1226101004 | H15: 1226101004
A16: Costo Operativo Fijo | B16: 1057923598 | E16: 1057923598 | H16: 1057923598
A17: TOTAL OPERATIVO | B17: 2284024601 | E17: 2284024601 | H17: 2284024601
A18: NO OPERATIVO
A19: COMERCIALIZACION
A20: Comercial Propios | B20: 688138893.9 | E20: 688138893.9 | H20: 688138893.9
A21: Comercial Asignados | B21: 628396281.6 | E21: 628396281.6 | H21: 628396281.6
A22: Comercialización Upas
A23: TOTAL COMERCIALIZACION | B23: 1316535175 | E23: 1316535175 | H23: 1316535175
A24: ADMINISTRACION
A25: Administración Propios | B25: 7000704.42 | E25: 7000704.42 | H25: 7000704.42
A26: Administ. Asignados | B26: 676172865.2 | E26: 676172865.2 | H26: 676172865.2
A27: Gastos Fiscales | B27: 287090301.6 | E27: 287090301.6 | H27: 287090301.6
A28: TOTAL ADMINISTRACION | B28: 970263871.2 | E28: 970263871.2 | H28: 970263871.2
A29: TOTAL NO OPERATIVO | B29: 2286799047 | E29: 2286799047 | H29: 2286799047
A30: COSTO DE EXPLOTACION | B30: 4570823648 | E30: 4570823648 | H30: 4570823648
A31: RESULTADO DE EXPLOTACION | B31: 1137005946 | E31: 1137005946 | G31: 156558.55 | H31: 1137162504
A32: DIVERSOS Y EXTRAORDINARIOS
A33: Ingresos Div. y Extr | B33: 106742412.6 | E33: 106742412.6 | H33: 106742412.6
A34: Gtos. Div. y Extraor | B34: 91613805.61 | E34: 91613805.61 | H34: 91613805.61
A35: RESULTADOS DIV. Y EXTRAORDINARIOS | B35: 15128607.02 | E35: 15128607.02 | H35: 15128607.02
A36: FINANCIEROS
A37: Ingresos Financieros | B37: 357527870.4 | E37: 357527870.4 | H37: 357527870.4
A38: Gastos Financieros | B38: 1096521779 | E38: 1096521779 | H38: 1096521779
A39: RESULTADO FINANCIERO | B39: -738993909 | E39: -738993909 | H39: -738993909
A40: I.R.A.E. | B40: 260724677.5 | E40: 260724677.5 | H40: 260724677.5
A41: RESULTADO NETO | B41: 673865321.7 | E41: 673865322 | G41: 156559 | H41: 674021881

Sheet B-MDEO-600
A3: M O N T E V I D E O
C5: C O S T O S T O T A L E S
B9: C O N C E P T O | C9: C O S T O S O P E R A T I V O S
C12: AGUA | D12: ALCANTARILLADO | E12: TOTAL
B14: RETRIBUCIONES AL PERSONAL | C14: 475912967.5 | D14: 0 | E14: 475912967.5
B16: MATERIALES Y SUMINISTROS | C16: 639918107.6 | D16: 0 | E16: 639918107.6
B18: ENERGÍA Y FLUÍDOS | C18: 702487590.9 | D18: 0 | E18: 702487590.9
B20: SERVICIOS CONTRATADOS | C20: 152631793.4 | D20: 0 | E20: 152631793.4
B22: GASTOS VARIOS | C22: 54776560.28 | D22: 0 | E22: 54776560.28
B24: AMORTIZACIÓN | C24: 258297581.6 | D24: 0 | E24: 258297581.6
B27: TOTAL | C27: 2284024601 | D27: 0 | E27: 2284024601 | G27: 0.7666662353
B32: C O N C E P T O | C32: C O S T O D E A D M I N I S T R A T I V O - C O M E R C I A L
C35: COMERCIALIZACIÓN | D35: ADMINISTRACIÓN | E35: TOTAL
B37: RETRIBUCIONES AL PERSONAL | C37: 223626751.8 | D37: 4768852.72 | E37: 228395604.5
B39: MATERIALES Y SUMINISTROS | C39: 25680947.25 | D39: 58945.09 | E39: 25739892.34
B41: ENERGÍA Y FLUÍDOS | C41: 2255570.95 | D41: 0 | E41: 2255570.95
B43: SERVICIOS CONTRATADOS | C43: 213052794.3 | D43: 741965.52 | E43: 213794759.9
B45: GASTOS VARIOS | C45: 85037516.07 | D45: 1349978.71 | E45: 86387494.78
B47: AMORTIZACIÓN | C47: 138485313.5 | D47: 80962.38 | E47: 138566275.8
B51: TOTAL | C51: 688138893.9 | D51: 7000704.42 | E51: 695139598.3 | G51: 0.2333337647
A56: C O S T O D E E X P L O T A C I Ó N | G56: 2979164200

Sheet C-MDEO-600
A3: COBERTURAS, COSTOS E INGRESOS PROMEDIO
A5: M O N T E V I D E O
B9: 1. COMPOSICIÓN DEL COSTO PROPIO POR CONEXIÓN | C9: OPERATIVOS | E9: ADMINISTRATIVO-COMERCIAL
C11: AGUA | D11: ALCANTARILLADO
C12: ($/conex.agua) | D12: ($/conex.desagüe) | E12: ($/conex.agua)
B14: RETRIBUCIONES AL PERSONAL | C14: 1283.884752 | E14: 616.1497038
B16: MATERIALES Y SUMINISTROS | C16: 1726.32636 | E16: 69.43928311
B18: ENERGÍA Y FLUÍDOS | C18: 1895.12194 | E18: 6.084921712
B20: SERVICIOS CONTRATADOS | C20: 411.7593879 | E20: 576.7605653
B22: GASTOS VARIOS | C22: 147.7723771 | E22: 233.0501475
B24: AMORTIZACIÓN | C24: 696.8171683 | E24: 373.8144173
B28: TOTAL | C28: 6161.681984 | E28: 1875.299039
B31: 2.CONEXIONES (promedio anual) | C31: 370682
B34: 3.COBERTURAS COSTO/INGRESO
B36: 3.1 COSTO DE EXPLOTACIÓN/ INGRESO DE EXPLOT. | C36: 0.8007988979 | E36: 0
B38: 3.3 TOTAL | C38: 0.9753056545
B41: 4.M3 ELEVADOS | C41: 174579810
B43: 5.M3 FACTURADOS | C43: 77075440
B46: 6. COSTO PROMEDIO
B48: 6.1 COSTO VARIABLE/ M3ELEVADOS | C48: 7.023154647
B50: 6.2 COSTO VARIABLE / M3FACTURADOS | C50: 15.90780414
B52: 6.3 COSTO EXPLOTACIÓN/M3FACT | C52: 59.3032443
B54: 6.4 TOTAL/M3FACT | C54: 78.10119423
B57: 7. INGRESOS PROMEDIO
B59: 7.1 VARIABLE/M3 FACT | C59: 46.67807274
B61: 7.2 FIJO/CONEXIONES | C61: 435.8194027
B63: 7.3 INGRESO EXPLOTACIÓN/M3FACT | C63: 74.05510229
B65: 7.4 TOTAL/M3FACT | C65: 80.07868494

Sheet A-400-AG-CENTRO
A2: ÁMBITO GEOGRÁFICO CENTRO | B2: ESTADO DE RENDIMIENTO ECONÓMICO (a valores históricos) | G2: PERÍODO ENERO-DICIEMBRE-2020
B4: AGUA POTABLE
A5: CONCEPTOS | B5: USINA | C5: PERFORACIÓN | D5: MIXTO | E5: SUB-TOTAL | F5: ALCANTARILLADO | G5: OTROS INGRESOS | H5: TOTAL
A6: INGRESOS
A7: Ingresos Variables | B7: 1034687584 | C7: 10052523.53 | D7: 240233795.6 | E7: 1284973904 | H7: 1284973904
A8: Ingresos Fijos | B8: 673601763.6 | C8: 8939431.53 | D8: 256724269.7 | E8: 939265464.8 | F8: -61056.91 | H8: 939204407.9
A9: INGRESOS DE EXPLOTACION | B9: 1708289348 | C9: 18991955.06 | D9: 496958065.3 | E9: 2224239368 | F9: -61056.91 | H9: 2224178311
A10: Ingresos Alcantarillado | F10: 459497727.1 | H10: 459497727.1
A11: Otros Ingresos | B11: 112468150.2 | C11: 1409488.82 | D11: 33262268.76 | E11: 147139907.8 | F11: 9655289.02 | H11: 156795196.8
A12: TOTAL ING. DE EXPLOTACION | B12: 1820757498 | C12: 20401443.88 | D12: 530220334.1 | E12: 2371379276 | F12: 469091959.2 | H12: 2840471235
A13: COSTOS DE EXPLOTACION
A14: OPERATIVO
A15: Costo Operativo Var | B15: 92656913.26 | C15: 1962323.99 | D15: 65865870.36 | E15: 160485107.6 | F15: 73714640.88 | H15: 234199748.5
A16: Costo Operativo Fijo | B16: 334781777.7 | C16: 23431237.83 | D16: 188950853.9 | E16: 547163869.4 | F16: 327192064.9 | H16: 874355934.3
A17: TOTAL OPERATIVO | B17: 427438690.9 | C17: 25393561.82 | D17: 254816724.2 | E17: 707648977 | F17: 400906705.8 | H17: 1108555683
A18: NO OPERATIVO
A19: COMERCIALIZACION
A20: Comercial Propios | B20: 388044498.7 | C20: 6985456.55 | D20: 184991081.9 | E20: 580021037.2 | F20: 82640396.08 | H20: 662661433.2
A21: Comercial Asignados | B21: 200453994.3 | C21: 2246071.27 | D21: 58373937.57 | E21: 261074003.2 | F21: 51558361.71 | H21: 312632364.9
A22: TOTAL COMERCIALIZACION | B22: 588498493 | C22: 9231527.82 | D22: 243365019.5 | E22: 841095040.3 | F22: 134198757.8 | H22: 975293798.1
A23: ADMINISTRACION
A24: Administración Propios | B24: 43913535.77 | C24: 1011785.67 | D24: 38828203.2 | E24: 83753524.64 | F24: 11433518.09 | H24: 95187042.73
A25: Administ. Asignados | B25: 215694388.4 | C25: 2416838.55 | D25: 62812071.73 | E25: 280923298.7 | F25: 55570554.13 | H25: 336493852.8
A26: Gastos Fiscales | B26: 91579787.12 | C26: 1026144.28 | D26: 26668826.28 | E26: 119274757.7 | F26: 23594213.93 | H26: 142868971.6
A27: TOTAL ADMINISTRACION | B27: 351187711.3 | C27: 4454768.5 | D27: 128309101.2 | E27: 483951581 | F27: 90598286.15 | H27: 574549867.2
A28: TOTAL NO OPERATIVO | B28: 939686204.3 | C28: 13686296.32 | D28: 371674120.7 | E28: 1325046621 | F28: 224797043.9 | H28: 1549843665
A29: COSTO DE EXPLOTACION | B29: 1367124895 | C29: 39079858.14 | D29: 626490845 | E29: 2032695598 | F29: 625703749.8 | H29: 2658399348
A30: RESULTADO DE EXPLOTACION | B30: 453632602.9 | C30: -18678414.26 | D30: -96270510.88 | E30: 338683677.8 | F30: -156611790.6 | H30: 182071887.2
A31: DIVERSOS Y EXTRAORDINARIOS
A32: Ingresos Div. y Extr | B32: 34050078.6 | C32: 381528.32 | D32: 9915677.44 | E32: 44347284.36 | F32: 8772512.61 | H32: 53119796.97
A33: Gtos. Div. y Extraor | B33: 29224159.7 | C33: 327454.42 | D33: 8510328.09 | E33: 38061942.21 | F33: 7529184.23 | H33: 45591126.44
A34: RESULTADOS DIV. Y EXTRAORDINARIOS | B34: 4825918.9 | C34: 54073.9 | D34: 1405349.35 | E34: 6285342.15 | F34: 1243328.38 | H34: 7528670.53
A35: FINANCIEROS
A36: Ingresos Financieros | B36: 114048876.2 | C36: 1277908.65 | D36: 33212019.42 | E36: 148538804.3 | F36: 29383051.23 | H36: 177921855.5
A37: Gastos Financieros | B37: 349782735.8 | C37: 3919287.92 | D37: 101859758.7 | E37: 455561782.3 | F37: 90116486.83 | H37: 545678269.2
A38: RESULTADO FINANCIERO | B38: -235733859.5 | C38: -2641379.27 | D38: -68647739.24 | E38: -307022978 | F38: -60733435.6 | H38: -367756413.6
A39: I.R.A.E. | B39: 83169338 | C39: 931906 | D39: 24219631 | E39: 108320875 | F39: 21427383 | H39: 129748258
A40: RESULTADO NETO | B40: 305894001 | C40: -20333814 | D40: -139293270 | E40: 146266917 | F40: -194674515 | H40: -48407598

Sheet B-400-AG-CENTRO
A3: ÁMBITO GEOGRÁFICO CENTRO
C5: C O S T O S T O T A L E S
B9: C O N C E P T O | C9: C O S T O S O P E R A T I V O S
C12: AGUA | D12: ALCANTARILLADO | E12: TOTAL
B14: RETRIBUCIONES AL PERSONAL | C14: 214382663 | D14: 91439304.18 | E14: 305821967.2
B16: MATERIALES Y SUMINISTROS | C16: 81129341.11 | D16: 25929551.46 | E16: 107058892.6
B18: ENERGÍA Y FLUÍDOS | C18: 68781097 | D18: 35010471.18 | E18: 103791568.2
B20: SERVICIOS CONTRATADOS | C20: 88336411.91 | D20: 86205251.77 | E20: 174541663.7
B22: GASTOS VARIOS | C22: 36763797.11 | D22: 9552584.841 | E22: 46316381.95
B24: AMORTIZACIÓN | C24: 218255666.8 | D24: 152769542.4 | E24: 371025209.2
B27: TOTAL | C27: 707648977 | D27: 400906705.8 | E27: 1108555683 | G27: 0.5939526429
B32: C O N C E P T O | C32: C O S T O D E A D M I N I S T R A T I V O - C O M E R C I A L
C35: COMERCIALIZACIÓN | D35: ADMINISTRACIÓN | E35: TOTAL
B37: RETRIBUCIONES AL PERSONAL | C37: 292256379.2 | D37: 49289248.97 | E37: 341545628.1
B39: MATERIALES Y SUMINISTROS | C39: 25320991.44 | D39: 2246088.079 | E39: 27567079.51
B41: ENERGÍA Y FLUÍDOS | C41: 1556733.486 | D41: 16128394.4 | E41: 17685127.88
B43: SERVICIOS CONTRATADOS | C43: 215854700.8 | D43: 15401911.55 | E43: 231256612.3
B45: GASTOS VARIOS | C45: 98820077.51 | D45: 5879612.215 | E45: 104699689.7
B47: AMORTIZACIÓN | C47: 28852550.88 | D47: 6241787.525 | E47: 35094338.41
B51: TOTAL | C51: 662661433.2 | D51: 95187042.73 | E51: 757848476 | G51: 0.4060473571
A56: C O S T O D E E X P L O T A C I Ó N | G56: 1866404159

Sheet C-400-AG-CENTRO
A3: COBERTURAS, COSTOS E INGRESOS PROMEDIO
A5: Á M B I T O G E O G R Á F I C O C E N T R O
B9: 1. COMPOSICIÓN DEL COSTO PROPIO POR CONEXIÓN | C9: OPERATIVOS | E9: ADMINISTRATIVO-COMERCIAL
C11: AGUA | D11: ALCANTARILLADO
C12: ($/conex.agua) | D12: ($/conex.desagüe) | E12: ($/conex.agua)
B14: RETRIBUCIONES AL PERSONAL | C14: 841.4191581 | D14: 1334.802408 | E14: 1340.514344
B16: MATERIALES Y SUMINISTROS | C16: 318.4202534 | D16: 378.511495 | E16: 108.1965701
B18: ENERGÍA Y FLUÍDOS | C18: 269.9552842 | D18: 511.0719254 | E18: 69.41142163
B20: SERVICIOS CONTRATADOS | C20: 346.7069038 | D20: 1258.397346 | E20: 907.6468278
B22: GASTOS VARIOS | C22: 144.2922799 | D22: 139.4456505 | E22: 410.9302662
B24: AMORTIZACIÓN | C24: 856.6201056 | D24: 2230.082074 | E24: 137.7399098
B28: TOTAL | C28: 2777.413985 | D28: 5852.310899 | E28: 2974.439339
B31: 2.CONEXIONES (promedio anual) | C31: 254787 | D31: 68504
B34: 3.COBERTURAS COSTO/INGRESO
B36: 3.1 COSTO DE EXPLOTACIÓN/ INGRESO DE EXPLOT. | C36: 0.8571786128 | D36: 1.333861597 | E36: 0
B38: 3.3 TOTAL | C38: 1.027444442 | D38: 1.468270952
B41: 4.M3 ELEVADOS | C41: 63624960
B43: 5.M3 FACTURADOS | C43: 30943570
B46: 6. COSTO PROMEDIO
B48: 6.1 COSTO VARIABLE/ M3ELEVADOS | C48: 2.522360841
B50: 6.2 COSTO VARIABLE / M3FACTURADOS | C50: 5.186379839
B52: 6.3 COSTO EXPLOTACIÓN/M3FACT | C52: 65.69040348
B54: 6.4 TOTAL/M3FACT | C54: 85.14338191
B57: 7. INGRESOS PROMEDIO
B59: 7.1 VARIABLE/M3 FACT | C59: 41.52636246
B61: 7.2 FIJO/CONEXIONES | C61: 307.2061058
B63: 7.3 INGRESO EXPLOTACIÓN/M3FACT | C63: 76.63560721
B65: 7.4 TOTAL/M3FACT | C65: 82.86908604

Sheet A-CAN-401
A2: CANELONES | B2: ESTADO DE RENDIMIENTO ECONÓMICO (a valores históricos) | G2: PERÍODO ENERO-DICIEMBRE-2020
B4: AGUA POTABLE
A5: CONCEPTOS | B5: USINA | C5: PERFORACIÓN | D5: MIXTO | E5: SUB-TOTAL | F5: ALCANTARILLADO | G5: OTROS INGRESOS | H5: TOTAL
A6: INGRESOS
A7: Ingresos Variables | B7: 136124183.8 | D7: 53265000.07 | E7: 189389183.9 | H7: 189389183.9
A8: Ingresos Fijos | B8: 78795816.45 | D8: 43131608.74 | E8: 121927425.2 | F8: -16783.18 | H8: 121910642
A9: INGRESOS DE EXPLOTACIÓN | B9: 214920000.3 | D9: 96396608.81 | E9: 311316609.1 | H9: 311299825.9
A10: Ingresos Alcantarillado | F10: 82435662.55 | H10: 82435662.55
A11: Otros Ingresos | B11: 11634945.98 | D11: 6107132.05 | E11: 17742078.03 | F11: 454454.27 | H11: 18196532.3
A12: TOTAL ING. DE EXPLOTACIÓN | B12: 226554946.3 | D12: 102503740.9 | E12: 329058687.1 | F12: 82873333.64 | H12: 411932020.8
A13: COSTOS DE EXPLOTACIÓN
A14: OPERATIVO
A15: Costo Operativo Var | B15: 19477362.86 | D15: 9861160.45 | E15: 29338523.31 | F15: 12351032.64 | H15: 41689555.95
A16: Costo Operativo Fijo | B16: 113947200.6 | D16: 85506180.76 | E16: 199453381.4 | F16: 93963892.37 | H16: 293417273.7
A17: TOTAL OPERATIVO | B17: 133424563.5 | D17: 95367341.21 | E17: 228791904.7 | F17: 106314925 | H17: 335106829.7
A18: NO OPERATIVO
A19: COMERCIALIZACIÓN
A20: Comercial Propios | B20: 63888081.93 | D20: 31833255.25 | E20: 95721337.18 | F20: 16537279.25 | H20: 112258616.4
A21: Comercial Asignados | B21: 24942280.27 | D21: 11285019.89 | E21: 36227300.16 | F21: 9123834.92 | H21: 45351135.08
A22: TOTAL COMERCIALIZACIÓN | B22: 88830362.2 | D22: 43118275.14 | E22: 131948637.3 | F22: 25661114.17 | H22: 157609751.5
A23: ADMINISTRACIÓN
A24: Administración Propios | B24: 8469033.43 | D24: 4219830.86 | E24: 12688864.29 | F24: 2192189.66 | H24: 14881053.95
A25: Administ. Asignados | B25: 26838626.46 | D25: 12143012.68 | E25: 38981639.14 | F25: 9817514.5 | H25: 48799153.64
A26: Gastos Fiscales | B26: 11395176.85 | D26: 5155695.25 | E26: 16550872.1 | F26: 4168332.29 | H26: 20719204.39
A27: TOTAL ADMINISTRACIÓN | B27: 46702836.74 | D27: 21518538.79 | E27: 68221375.53 | F27: 16178036.45 | H27: 84399411.98
A28: TOTAL NO OPERATIVO | B28: 135533198.9 | D28: 64636813.93 | E28: 200170012.9 | F28: 41839150.62 | H28: 242009163.5
A29: COSTO DE EXPLOTACIÓN | B29: 268957762.4 | D29: 160004155.1 | E29: 428961917.5 | F29: 148154075.6 | H29: 577115993.2
A30: RESULTADO DE EXPLOTACIÓN | B30: -42402816.12 | D30: -57500414.28 | E30: -99903230.4 | F30: -65280741.99 | H30: -165183972.4
A31: DIVERSOS Y EXTRAORDINARIOS
A32: Ingresos Div. y Extr | B32: 4236815.6 | D32: 1916927.58 | E32: 6153743.18 | F32: 1549818.38 | H32: 7703561.56
A33: Gtos. Div. y Extraor | B33: 3636331.51 | D33: 1645241.46 | E33: 5281572.97 | F33: 1330162.63 | H33: 6611735.6
A34: RESULTADOS DIV. Y EXTRAORDINARIOS | B34: 600484.09 | D34: 271686.12 | E34: 872170.21 | F34: 219655.75 | H34: 1091825.96
A35: FINANCIEROS
A36: Ingresos Financieros | B36: 14190982.06 | D36: 6420644.42 | E36: 20611626.48 | F36: 5191032.11 | H36: 25802658.59
A37: Gastos Financieros | B37: 43523098.99 | D37: 19691825.5 | E37: 63214924.49 | F37: 15920660.25 | H37: 79135584.74
A38: RESULTADO FINANCIERO | B38: -29332116.93 | D38: -13271181.08 | E38: -42603298.01 | F38: -10729628.14 | H38: -53332926.15
A39: I.R.A.E. | B39: 10348673.57 | D39: 4682209.65 | E39: 15030883.22 | F39: 3785523.54 | H39: 18816406.76
A40: RESULTADO NETO | B40: -60785775.39 | D40: -65817699.59 | E40: -126603475 | F40: -72005190.84 | H40: -198608665.8

Sheet B-CAN-401
A3: C A N E L O N E S
C5: C O S T O S T O T A L E S
B9: C O N C E P T O | C9: C O S T O S O P E R A T I V O S
C12: AGUA | D12: ALCANTARILLADO | E12: TOTAL
B14: RETRIBUCIONES AL PERSONAL | C14: 85950468.37 | D14: 40922496.39 | E14: 126872964.8
B16: MATERIALES Y SUMINISTROS | C16: 13977213.54 | D16: 3579798.731 | E16: 17557012.28
B18: ENERGÍA Y FLUÍDOS | C18: 15550969.71 | D18: 8454373.914 | E18: 24005343.62
B20: SERVICIOS CONTRATADOS | C20: 23437774.42 | D20: 14443392.77 | E20: 37881167.19
B22: GASTOS VARIOS | C22: 18058123.28 | D22: 7491800.583 | E22: 25549923.86
B24: AMORTIZACIÓN | C24: 71817355.34 | D24: 31423062.62 | E24: 103240418
B27: TOTAL | C27: 228791904.7 | D27: 106314925 | E27: 335106829.7 | G27: 0.7249526598
B32: C O N C E P T O | C32: C O S T O D E A D M I N I S T R A T I V O - C O M E R C I A L
C35: COMERCIALIZACIÓN | D35: ADMINISTRACIÓN | E35: TOTAL
B37: RETRIBUCIONES AL PERSONAL | C37: 55227911.45 | D37: 5854495.601 | E37: 61082407.05
B39: MATERIALES Y SUMINISTROS | C39: 3424106.605 | D39: 1037852.782 | E39: 4461959.387
B41: ENERGÍA Y FLUÍDOS | C41: 196810.2136 | D41: 3615501.218 | E41: 3812311.432
B43: SERVICIOS CONTRATADOS | C43: 30179898.81 | D43: 2658213.564 | E43: 32838112.38
B45: GASTOS VARIOS | C45: 19773556.3 | D45: 721458.2478 | E45: 20495014.55
B47: AMORTIZACIÓN | C47: 3456333.044 | D47: 993532.5374 | E47: 4449865.582
B51: TOTAL | C51: 112258616.4 | D51: 14881053.95 | E51: 127139670.4 | G51: 0.2750473402
A56: C O S T O D E E X P L O T A C I Ó N | G56: 462246500.1

Sheet C-CAN-401
A3: COBERTURAS, COSTOS E INGRESOS PROMEDIO
A5: C A N E L O N E S
B9: 1. COMPOSICIÓN DEL COSTO PROPIO POR CONEXIÓN | C9: OPERATIVOS | E9: ADMINISTRATIVO-COMERCIAL
C11: AGUA | D11: ALCANTARILLADO
C12: ($/conex.agua) | D12: ($/conex.desagüe) | E12: ($/conex.agua)
B14: RETRIBUCIONES AL PERSONAL | C14: 2260.843001 | D14: 3115.293574 | E14: 1606.712972
B16: MATERIALES Y SUMINISTROS | C16: 367.656931 | D16: 272.5181738 | E16: 117.3674774
B18: ENERGÍA Y FLUÍDOS | C18: 409.0530475 | D18: 643.6033735 | E18: 100.2791233
B20: SERVICIOS CONTRATADOS | C20: 616.5077314 | D20: 1099.527464 | E20: 863.7744267
B22: GASTOS VARIOS | C22: 475.00127 | D22: 570.3258665 | E22: 539.1013112
B24: AMORTIZACIÓN | C24: 1889.085287 | D24: 2392.133269 | E24: 117.0493616
B28: TOTAL | C28: 6018.147268 | D28: 8093.401721 | E28: 3344.284672
B31: 2.CONEXIONES (promedio anual) | C31: 38017 | D31: 13136
B34: 3.COBERTURAS COSTO/INGRESO
B36: 3.1 COSTO DE EXPLOTACIÓN/ INGRESO DE EXPLOT. | C36: 1.303603078 | D36: 1.787717099 | E36: 0
B38: 3.3 TOTAL | C38: 1.440288503 | D38: 1.887987083
B41: 4.M3 ELEVADOS | C41: 8276650
B43: 5.M3 FACTURADOS | C43: 4223050
B46: 6. COSTO PROMEDIO
B48: 6.1 COSTO VARIABLE/ M3ELEVADOS | C48: 3.544734078
B50: 6.2 COSTO VARIABLE / M3FACTURADOS | C50: 6.947235602
B52: 6.3 COSTO EXPLOTACIÓN/M3FACT | C52: 101.5763293
B54: 6.4 TOTAL/M3FACT | C54: 121.3552523
B57: 7. INGRESOS PROMEDIO
B59: 7.1 VARIABLE/M3 FACT | C59: 44.84654075
B61: 7.2 FIJO/CONEXIONES | C61: 267.2651384
B63: 7.3 INGRESO EXPLOTACIÓN/M3FACT | C63: 77.91967586
B65: 7.4 TOTAL/M3FACT | C65: 84.25759979

Sheet A-LP-402
A2: LAS PIEDRAS | B2: ESTADO DE RENDIMIENTO ECONÓMICO (a valores históricos) | G2: PERÍODO ENERO-DICIEMBRE-2020
B4: AGUA POTABLE
A5: CONCEPTOS | B5: USINA | C5: PERFORACIÓN | D5: MIXTO | E5: SUB-TOTAL | F5: ALCANTARILLADO | G5: OTROS INGRESOS | H5: TOTAL
A6: INGRESOS
A7: Ingresos Variables | B7: 240340719.6 | E7: 240340719.6 | H7: 240340719.6
A8: Ingresos Fijos | B8: 168648482.1 | E8: 168648482.1 | F8: -7134.95 | H8: 168641347.2
A9: INGRESOS DE EXPLOTACIÓN | B9: 408989201.7 | E9: 408989201.7 | F9: -7134.95 | H9: 408982066.8
A10: Ingresos Alcantarillado | F10: 59039780.75 | H10: 59039780.75
A11: Otros Ingresos | B11: 32463280.04 | E11: 32463280.04 | F11: 2699814.37 | H11: 35163094.41
A12: TOTAL ING. DE EXPLOTACIÓN | B12: 441452481.8 | E12: 441452481.8 | F12: 61732460.17 | H12: 503184941.9
A13: COSTOS DE EXPLOTACIÓN
A14: OPERATIVO
A15: Costo Operativo Var | B15: 3477850.76 | E15: 3477850.76 | F15: 1424907.96 | H15: 4902758.72
A16: Costo Operativo Fijo | B16: 49423186.7 | E16: 49423186.7 | F16: 23255204.32 | H16: 72678391.02
A17: TOTAL OPERATIVO | B17: 52901037.46 | E17: 52901037.46 | F17: 24680112.28 | H17: 77581149.74
A18: NO OPERATIVO
A19: COMERCIALIZACIÓN
A20: Comercial Propios | B20: 126410627.1 | E20: 126410627.1 | F20: 9555650.42 | H20: 135966277.5
A21: Comercial Asignados | B21: 48601152.84 | E21: 48601152.84 | F21: 6796356.89 | H21: 55397509.73
A22: TOTAL COMERCIALIZACIÓN | B22: 175011780 | E22: 175011780 | F22: 16352007.31 | H22: 191363787.3
A23: ADMINISTRACIÓN
A24: Administración Propios | B24: 8739036.91 | E24: 8739036.91 | F24: 660602.5 | H24: 9399639.41
A25: Administ. Asignados | B25: 52296268.68 | E25: 52296268.68 | F25: 7313079.91 | H25: 59609348.59
A26: Gastos Fiscales | B26: 22204013.66 | E26: 22204013.66 | F26: 3104996.47 | H26: 25309010.13
A27: TOTAL ADMINISTRACIÓN | B27: 83239319.25 | E27: 83239319.25 | F27: 11078678.88 | H27: 94317998.13
A28: TOTAL NO OPERATIVO | B28: 258251099.2 | E28: 258251099.2 | F28: 27430686.19 | H28: 285681785.4
A29: COSTO DE EXPLOTACIÓN | B29: 311152136.7 | E29: 311152136.7 | F29: 52110798.47 | H29: 363262935.1
A30: RESULTADO DE EXPLOTACIÓN | B30: 130300345.1 | E30: 130300345.1 | F30: 9621661.7 | H30: 139922006.8
A31: DIVERSOS Y EXTRAORDINARIOS
A32: Ingresos Div. y Extr | B32: 8255625.44 | E32: 8255625.44 | F32: 1154461.92 | H32: 9410087.36
A33: Gtos. Div. y Extraor | B33: 7085555.28 | E33: 7085555.28 | F33: 990839.97 | H33: 8076395.25
A34: RESULTADOS DIV. Y EXTRAORDINARIOS | B34: 1170070.16 | E34: 1170070.16 | F34: 163621.95 | H34: 1333692.11
A35: FINANCIEROS
A36: Ingresos Financieros | B36: 27651765.55 | E36: 27651765.55 | F36: 3866806.89 | H36: 31518572.44
A37: Gastos Financieros | B37: 84806712.04 | E37: 84806712.04 | F37: 11859321.64 | H37: 96666033.68
A38: RESULTADO FINANCIERO | B38: -57154946.49 | E38: -57154946.49 | F38: -7992514.75 | H38: -65147461.24
A39: I.R.A.E. | B39: 20164854.98 | E39: 20164854.98 | F39: 2819841.67 | H39: 22984696.65
A40: RESULTADO NETO | B40: 94480323.76 | E40: 94480323.76 | F40: 4612610.57 | H40: 99092934.33

Sheet B-LP-402
A3: L A S P I E D R A S
C5: C O S T O S T O T A L E S
B9: C O N C E P T O | C9: C O S T O S O P E R A T I V O S
C12: AGUA | D12: ALCANTARILLADO | E12: TOTAL
B14: RETRIBUCIONES AL PERSONAL | C14: 2577353.26 | D14: 3295355.18 | E14: 5872708.44
B16: MATERIALES Y SUMINISTROS | C16: 83861.03 | D16: 242371.14 | E16: 326232.17
B18: ENERGÍA Y FLUÍDOS | C18: 2766473.56 | D18: 364408.61 | E18: 3130882.17
B20: SERVICIOS CONTRATADOS | C20: 14667829.35 | D20: 17232809.18 | E20: 31900638.53
B22: GASTOS VARIOS | C22: 610470.11 | D22: 615091.46 | E22: 1225561.57
B24: AMORTIZACIÓN | C24: 32195050.15 | D24: 2930076.71 | E24: 35125126.86
B27: TOTAL | C27: 52901037.46 | D27: 24680112.28 | E27: 77581149.74 | G27: 0.3479801322
B32: C O N C E P T O | C32: C O S T O D E A D M I N I S T R A T I V O - C O M E R C I A L
C35: COMERCIALIZACIÓN | D35: ADMINISTRACIÓN | E35: TOTAL
B37: RETRIBUCIONES AL PERSONAL | C37: 52393185.53 | D37: 4524937.444 | E37: 56918122.97
B39: MATERIALES Y SUMINISTROS | C39: 3599417.618 | D39: 92205.82787 | E39: 3691623.446
B41: ENERGÍA Y FLUÍDOS | C41: 269201.3951 | D41: 1670755.48 | E41: 1939956.875
B43: SERVICIOS CONTRATADOS | C43: 54281337.68 | D43: 1704054.244 | E43: 55985391.93
B45: GASTOS VARIOS | C45: 20430866.42 | D45: 609625.3909 | E45: 21040491.81
B47: AMORTIZACIÓN | C47: 4992268.896 | D47: 798061.0228 | E47: 5790329.919
B51: TOTAL | C51: 135966277.5 | D51: 9399639.41 | E51: 145365917 | G51: 0.6520198678
A56: C O S T O D E E X P L O T A C I Ó N | G56: 222947066.7

Sheet C-LP-402
A3: COBERTURAS, COSTOS E INGRESOS PROMEDIO
A5: L A S P I E D R A S
B9: 1. COMPOSICIÓN DEL COSTO PROPIO POR CONEXIÓN | C9: OPERATIVOS | E9: ADMINISTRATIVO-COMERCIAL
C11: AGUA | D11: ALCANTARILLADO
C12: ($/conex.agua) | D12: ($/conex.desagüe) | E12: ($/conex.agua)
B14: RETRIBUCIONES AL PERSONAL | C14: 50.16160176 | D14: 424.2218306 | E14: 1107.765964
B16: MATERIALES Y SUMINISTROS | C16: 1.632140869 | D16: 31.20122812 | E16: 71.84802643
B18: ENERGÍA Y FLUÍDOS | C18: 53.84234561 | D18: 46.91151004 | E18: 37.75630826
B20: SERVICIOS CONTRATADOS | C20: 285.4718544 | D20: 2218.435785 | E20: 1089.612735
B22: GASTOS VARIOS | C22: 11.88124229 | D22: 79.18273172 | E22: 409.4994611
B24: AMORTIZACIÓN | C24: 626.5944639 | D24: 377.1983406 | E24: 112.6939904
B28: TOTAL | C28: 1029.583649 | D28: 3177.151426 | E28: 2829.176484
B31: 2.CONEXIONES (promedio anual) | C31: 51381 | D31: 7768
B34: 3.COBERTURAS COSTO/INGRESO
B36: 3.1 COSTO DE EXPLOTACIÓN/ INGRESO DE EXPLOT. | C36: 0.7048372124 | D36: 0.8441393446 | E36: 0
B38: 3.3 TOTAL | C38: 0.8865622837 | D38: 1.015385998
B41: 4.M3 ELEVADOS | C41: 17965800
B43: 5.M3 FACTURADOS | C43: 6094510
B46: 6. COSTO PROMEDIO
B48: 6.1 COSTO VARIABLE/ M3ELEVADOS | C48: 0.1935817364
B50: 6.2 COSTO VARIABLE / M3FACTURADOS | C50: 0.5706530566
B52: 6.3 COSTO EXPLOTACIÓN/M3FACT | C52: 51.05449604
B54: 6.4 TOTAL/M3FACT | C54: 69.441064
B57: 7. INGRESOS PROMEDIO
B59: 7.1 VARIABLE/M3 FACT | C59: 39.43561002
B61: 7.2 FIJO/CONEXIONES | C61: 273.526015
B63: 7.3 INGRESO EXPLOTACIÓN/M3FACT | C63: 72.43445031
B65: 7.4 TOTAL/M3FACT | C65: 78.32621044

Sheet A-SAT-403
A2: SISTEMA ATLÁNTIDA | B2: ESTADO DE RENDIMIENTO ECONÓMICO (a valores históricos) | G2: PERÍODO ENERO-DICIEMBRE-2020
B4: AGUA POTABLE
A5: CONCEPTOS | B5: USINA | C5: PERFORACIÓN | D5: MIXTO | E5: SUB-TOTAL | F5: ALCANTARILLADO | G5: OTROS INGRESOS | H5: TOTAL
A6: INGRESOS
A7: Ingresos Variables | B7: 144080905.2 | D7: 168941016.9 | E7: 313021922.1 | H7: 313021922.1
A8: Ingresos Fijos | B8: 82191552.77 | D8: 196330102.8 | E8: 278521655.6 | F8: -12833.1 | H8: 278508822.5
A9: INGRESOS DE EXPLOTACIÓN | B9: 226272457.9 | D9: 365271119.8 | E9: 591543577.7 | F9: -12833.1 | H9: 591530744.6
A10: Ingresos Alcantarillado | F10: 46552880.06 | H10: 46552880.06
A11: Otros Ingresos | B11: 16175602.2 | D11: 24917606.87 | E11: 41093209.07 | F11: 276394.17 | H11: 41369603.24
A12: TOTAL ING. DE EXPLOTACIÓN | B12: 242448060.1 | D12: 390188726.6 | E12: 632636786.8 | F12: 46816441.13 | H12: 679453227.9
A13: COSTOS DE EXPLOTACIÓN
A14: OPERATIVO
A15: Costo Operativo Var | B15: 3236693.99 | D15: 49849590.22 | E15: 53086284.21 | F15: 3349179.92 | H15: 56435464.13
A16: Costo Operativo Fijo | B16: 18243630.69 | D16: 72181074.13 | E16: 90424704.82 | F16: 3269983.95 | H16: 93694688.77
A17: TOTAL OPERATIVO | B17: 21480324.68 | D17: 122030664.3 | E17: 143510989 | F17: 6619163.87 | H17: 150130152.9
A18: NO OPERATIVO
A19: COMERCIALIZACIÓN
A20: Comercial Propios | D20: 138540498.2 | E20: 138540498.2 | F20: 6855723.71 | H20: 145396221.9
A21: Comercial Asignados | B21: 26692012.53 | D21: 42957334.62 | E21: 69649347.15 | F21: 5154196.88 | H21: 74803544.03
A22: TOTAL COMERCIALIZACIÓN | B22: 26692012.53 | D22: 181497832.9 | E22: 208189845.4 | F22: 12009920.59 | H22: 220199766
A23: ADMINISTRACIÓN
A24: Administración Propios | D24: 32491173.1 | E24: 32491173.1 | F24: 1607836.77 | H24: 34099009.87
A25: Administ. Asignados | B25: 28721389.92 | D25: 46223354.4 | E25: 74944744.32 | F25: 5546067.28 | H25: 80490811.6
A26: Gastos Fiscales | B26: 12194562.85 | D26: 19625568.26 | E26: 31820131.11 | F26: 2354756.02 | H26: 34174887.13
A27: TOTAL ADMINISTRACIÓN | B27: 40915952.77 | D27: 98340095.76 | E27: 139256048.5 | F27: 9508660.07 | H27: 148764708.6
A28: TOTAL NO OPERATIVO | B28: 67607965.3 | D28: 279837928.6 | E28: 347445893.9 | F28: 21518580.66 | H28: 368964474.6
A29: COSTO DE EXPLOTACIÓN | B29: 89088289.98 | D29: 401868593 | E29: 490956882.9 | F29: 28137744.53 | H29: 519094627.5
A30: RESULTADO DE EXPLOTACIÓN | B30: 153359770.2 | D30: -11679866.34 | E30: 141679903.8 | F30: 18678696.6 | H30: 160358600.4
A31: DIVERSOS Y EXTRAORDINARIOS
A32: Ingresos Div. y Extr | B32: 4534033.39 | D32: 7296939.32 | E32: 11830972.71 | F32: 875516.7 | H32: 12706489.41
A33: Gtos. Div. y Extraor | B33: 3891424.74 | D33: 6262743.76 | E33: 10154168.5 | F33: 751429.63 | H33: 10905598.13
A34: RESULTADOS DIV. Y EXTRAORDINARIOS | B34: 642608.65 | D34: 1034195.56 | E34: 1676804.21 | F34: 124087.07 | H34: 1800891.28
A35: FINANCIEROS
A36: Ingresos Financieros | B36: 15186497.28 | D36: 24440698.93 | E36: 39627196.21 | F36: 2932495.13 | H36: 42559691.34
A37: Gastos Financieros | B37: 46576299.03 | D37: 74958516.18 | E37: 121534815.2 | F37: 8993829.66 | H37: 130528644.9
A38: RESULTADO FINANCIERO | B38: -31389801.75 | D38: -50517817.25 | E38: -81907619 | F38: -6061334.53 | H38: -87968953.53
A39: I.R.A.E. | B39: 11074646.01 | D39: 17823207.29 | E39: 28897853.3 | F39: 2138501.38 | H39: 31036354.68
A40: RESULTADO NETO | B40: 133687223.1 | D40: -43340280.74 | E40: 90346942.33 | F40: 14879950.52 | H40: 105226892.8

Sheet B-SAT-403
A3: S I S T E M A A T L Á N T I D A
C5: C O S T O S T O T A L E S
B9: C O N C E P T O | C9: C O S T O S O P E R A T I V O S
C12: AGUA | D12: ALCANTARILLADO | E12: TOTAL
B14: RETRIBUCIONES AL PERSONAL | C14: 32706191.28 | D14: 350983.3427 | E14: 33057174.62
B16: MATERIALES Y SUMINISTROS | C16: 26936587.67 | D16: 105038.9369 | E16: 27041626.61
B18: ENERGÍA Y FLUÍDOS | C18: 20067347.8 | D18: 3149245.16 | E18: 23216592.96
B20: SERVICIOS CONTRATADOS | C20: 17821253.69 | D20: 718588.8383 | E20: 18539842.53
B22: GASTOS VARIOS | C22: 7235606.461 | D22: 31584.50321 | E22: 7267190.964
B24: AMORTIZACIÓN | C24: 38744002.13 | D24: 2263723.089 | E24: 41007725.22
B27: TOTAL | C27: 143510989 | D27: 6619163.87 | E27: 150130152.9 | G27: 0.4554568909
B32: C O N C E P T O | C32: C O S T O D E A D M I N I S T R A T I V O - C O M E R C I A L
C35: COMERCIALIZACIÓN | D35: ADMINISTRACIÓN | E35: TOTAL
B37: RETRIBUCIONES AL PERSONAL | C37: 62510430.43 | D37: 22662537.82 | E37: 85172968.25
B39: MATERIALES Y SUMINISTROS | C39: 5229470.231 | D39: 488530.7919 | E39: 5718001.023
B41: ENERGÍA Y FLUÍDOS | C41: 547905.9524 | D41: 3235858.394 | E41: 3783764.346
B43: SERVICIOS CONTRATADOS | C43: 48035141.01 | D43: 5259864.819 | E43: 53295005.83
B45: GASTOS VARIOS | C45: 18021315.43 | D45: 1093243.456 | E45: 19114558.88
B47: AMORTIZACIÓN | C47: 11051958.9 | D47: 1358974.591 | E47: 12410933.49
B51: TOTAL | C51: 145396221.9 | D51: 34099009.87 | E51: 179495231.8 | G51: 0.5445431091
A56: C O S T O D E E X P L O T A C I Ó N | G56: 329625384.7

Sheet C-SAT-403
A3: COBERTURAS, COSTOS E INGRESOS PROMEDIO
A5: S I S T E M A A T L Á N T I D A
B9: 1. COMPOSICIÓN DEL COSTO PROPIO POR CONEXIÓN | C9: OPERATIVOS | E9: ADMINISTRATIVO-COMERCIAL
C11: AGUA | D11: ALCANTARILLADO
C12: ($/conex.agua) | D12: ($/conex.desagüe) | E12: ($/conex.agua)
B14: RETRIBUCIONES AL PERSONAL | C14: 472.8241381 | D14: 51.26838193 | E14: 1231.321463
B16: MATERIALES Y SUMINISTROS | C16: 389.4146139 | D16: 15.34311086 | E16: 82.66352025
B18: ENERGÍA Y FLUÍDOS | C18: 290.1079598 | D18: 460.0124394 | E18: 54.7008088
B20: SERVICIOS CONTRATADOS | C20: 257.6368139 | D20: 104.9647733 | E20: 770.4707949
B22: GASTOS VARIOS | C22: 104.603112 | D22: 4.613570437 | E22: 276.3337605
B24: AMORTIZACIÓN | C24: 560.1110584 | D24: 330.6636122 | E24: 179.4213481
B28: TOTAL | C28: 2074.697696 | D28: 966.8658881 | E28: 2594.911696
B31: 2.CONEXIONES (promedio anual) | C31: 69172 | D31: 6846
B34: 3.COBERTURAS COSTO/INGRESO
B36: 3.1 COSTO DE EXPLOTACIÓN/ INGRESO DE EXPLOT. | C36: 0.7760485846 | D36: 0.6010227145 | E36: 0
B38: 3.3 TOTAL | C38: 0.9524170797 | D38: 0.7905567934
B41: 4.M3 ELEVADOS | C41: 16017480
B43: 5.M3 FACTURADOS | C43: 7640010
B46: 6. COSTO PROMEDIO
B48: 6.1 COSTO VARIABLE/ M3ELEVADOS | C48: 3.314271921
B50: 6.2 COSTO VARIABLE / M3FACTURADOS | C50: 6.948457425
B52: 6.3 COSTO EXPLOTACIÓN/M3FACT | C52: 64.26
B54: 6.4 TOTAL/M3FACT | C54: 85.28047999
B57: 7. INGRESOS PROMEDIO
B59: 7.1 VARIABLE/M3 FACT | C59: 40.97140215
B61: 7.2 FIJO/CONEXIONES | C61: 335.5423866
B63: 7.3 INGRESO EXPLOTACIÓN/M3FACT | C63: 82.80575376
B65: 7.4 TOTAL/M3FACT | C65: 89.54110737

Sheet A-CC-404
A2: CIUDAD DE LA COSTA | B2: ESTADO DE RENDIMIENTO ECONÓMICO (a valores históricos) | G2: PERÍODO ENERO-DICIEMBRE-2020
B4: AGUA POTABLE
A5: CONCEPTOS | B5: USINA | C5: PERFORACIÓN | D5: MIXTO | E5: SUB-TOTAL | F5: ALCANTARILLADO | G5: OTROS INGRESOS | H5: TOTAL
A6: INGRESOS
A7: Ingresos Variables | B7: 327511816.4 | E7: 327511816.4 | H7: 327511816.4
A8: Ingresos Fijos | B8: 214709411.9 | E8: 214709411.9 | F8: -17842.04 | H8: 214691569.9
A9: INGRESOS DE EXPLOTACIÓN | B9: 542221228.3 | E9: 542221228.3 | F9: -17842.04 | H9: 542203386.3
A10: Ingresos Alcantarillado | F10: 91408969.37 | H10: 91408969.37
A11: Otros Ingresos | B11: 31349847.87 | E11: 31349847.87 | F11: 4313362.33 | H11: 35663210.2
A12: TOTAL ING. DE EXPLOTACIÓN | B12: 573571076.2 | E12: 573571076.2 | F12: 95704489.66 | H12: 669275565.9
A13: COSTOS DE EXPLOTACIÓN
A14: OPERATIVO
A15: Costo Operativo Var | B15: 2062852.72 | E15: 2062852.72 | F15: 28893778.66 | H15: 30956631.38
A16: Costo Operativo Fijo | B16: 20595363.19 | E16: 20595363.19 | F16: 118779948 | H16: 139375311.1
A17: TOTAL OPERATIVO | B17: 22658215.91 | E17: 22658215.91 | F17: 147673726.6 | H17: 170331942.5
A18: NO OPERATIVO
A19: COMERCIALIZACIÓON
A20: Comercial Propios | B20: 94898741.68 | E20: 94898741.68 | F20: 9728516.88 | H20: 104627258.6
A21: Comercial Asignados | B21: 63146582.28 | E21: 63146582.28 | F21: 10536464.9 | H21: 73683047.18
A22: TOTAL COMERCIALIZACIÓN | B22: 158045324 | E22: 158045324 | F22: 20264981.78 | H22: 178310305.7
A23: ADMINISTRACIÓN
A24: Administración Propios | B24: 11934933.05 | E24: 11934933.05 | F24: 1223506.15 | H24: 13158439.2
A25: Administ. Asignados | B25: 67947578.2 | E25: 67947578.2 | F25: 11337545.75 | H25: 79285123.95
A26: Gastos Fiscales | B26: 28849265.82 | E26: 28849265.82 | F26: 4813709.05 | H26: 33662974.87
A27: TOTAL ADMINISTRACIÓN | B27: 108731777.1 | E27: 108731777.1 | F27: 17374760.95 | H27: 126106538
A28: TOTAL NO OPERATIVO | B28: 266777101 | E28: 266777101 | F28: 37639742.73 | H28: 304416843.8
A29: COSTO DE EXPLOTACIÓN | B29: 289435316.9 | E29: 289435316.9 | F29: 185313469.3 | H29: 474748786.3
A30: RESULTADO DE EXPLOTACIÓON | B30: 284135759.2 | E30: 284135759.2 | F30: -89608979.68 | H30: 194526779.6
A31: DIVERSOS Y EXTRAORDINARIOS
A32: Ingresos Div. y Extr | B32: 10726381.95 | E32: 10726381.95 | F32: 1789774.47 | H32: 12516156.42
A33: Gtos. Div. y Extraor | B33: 9206131.4 | E33: 9206131.4 | F33: 1536109.74 | H33: 10742241.14
A34: RESULTADOS DIV. Y EXTRAORDINARIOS | B34: 1520250.55 | E34: 1520250.55 | F34: 253664.73 | H34: 1773915.28
A35: FINANCIEROS
A36: Ingresos Financieros | B36: 35927429.5 | E36: 35927429.5 | F36: 5994751.94 | H36: 41922181.44
A37: Gastos Financieros | B37: 110187798.4 | E37: 110187798.4 | F37: 18385632.55 | H37: 128573431
A38: RESULTADO FINANCIERO | B38: -74260368.92 | E38: -74260368.92 | F38: -12390880.61 | H38: -86651249.53
A39: I.R.A.E. | B39: 26199824.53 | E39: 26199824.53 | F39: 4371630.56 | H39: 30571455.09
A40: RESULTADO NETO | B40: 237595465.4 | E40: 237595465.4 | F40: -97374565 | H40: 140220900.4

Sheet B-CC-404
A3: C I U D A D D E L A C O S T A
C5: C O S T O S T O T A L E S
B9: C O N C E P T O | C9: C O S T O S O P E R A T I V O S
C12: AGUA | D12: ALCANTARILLADO | E12: TOTAL
B14: RETRIBUCIONES AL PERSONAL | C14: 82664.82 | D14: 9573416.44 | E14: 9656081.26
B16: MATERIALES Y SUMINISTROS | C16: 37148.45 | D16: 17388626.45 | E16: 17425774.9
B18: ENERGÍA Y FLUÍDOS | C18: 2021652.67 | D18: 7939442.61 | E18: 9961095.28
B20: SERVICIOS CONTRATADOS | C20: 322229.36 | D20: 27383209.91 | E20: 27705439.27
B22: GASTOS VARIOS | C22: 208159.42 | D22: 157427.2 | E22: 365586.62
B24: AMORTIZACIÓN | C24: 19986361.19 | D24: 85231604 | E24: 105217965.2
B27: TOTAL | C27: 22658215.91 | D27: 147673726.6 | E27: 170331942.5 | G27: 0.5911888712
B32: C O N C E P T O | C32: C O S T O D E A D M I N I S T R A T I V O - C O M E R C I A L
C35: COMERCIALIZACIÓN | D35: ADMINISTRACIÓN | E35: TOTAL
B37: RETRIBUCIONES AL PERSONAL | C37: 31288701.32 | D37: 5607479.015 | E37: 36896180.33
B39: MATERIALES Y SUMINISTROS | C39: 4672793.373 | D39: 195518.7408 | E39: 4868312.114
B41: ENERGÍIA Y FLUÍDOS | C41: 199253.2279 | D41: 2149583.88 | E41: 2348837.108
B43: SERVICIOS CONTRATADOS | C43: 46019024.69 | D43: 2077382.925 | E43: 48096407.61
B45: GASTOS VARIOS | C45: 17829269.06 | D45: 1884534.592 | E45: 19713803.65
B47: AMORTIZACIÓN | C47: 4618216.893 | D47: 1243940.046 | E47: 5862156.939
B51: TOTAL | C51: 104627258.6 | D51: 13158439.2 | E51: 117785697.8 | G51: 0.4088111288
A56: C O S T O D E E X P L O T A C I Ó N | G56: 288117640.3

Sheet C-CC-404
A3: COBERTURAS, COSTOS E INGRESOS PROMEDIO
A5: CIUDAD DE LA COSTA
B9: 1. COMPOSICIÓN DEL COSTO PROPIO POR CONEXIÓN | C9: OPERATIVOS | E9: ADMINISTRATIVO-COMERCIAL
C11: AGUA | D11: ALCANTARILLADO
C12: ($/conex.agua) | D12: ($/conex.desagüe) | E12: ($/conex.agua)
B14: RETRIBUCIONES AL PERSONAL | C14: 1.730874181 | D14: 977.6773325 | E14: 772.5492647
B16: MATERIALES Y SUMINISTROS | C16: 0.7778314035 | D16: 1775.79927 | E16: 101.9349675
B18: ENERGÍA Y FLUÍDOS | C18: 42.33029733 | D18: 810.8090901 | E18: 49.1810362
B20: SERVICIOS CONTRATADOS | C20: 6.746987165 | D20: 2796.48794 | E20: 1007.064796
B22: GASTOS VARIOS | C22: 4.358538077 | D22: 16.07712418 | E22: 412.7767259
B24: AMORTIZACIÓN | C24: 418.4836615 | D24: 8704.207925 | E24: 122.7445495
B28: TOTAL | C28: 474.4281897 | D28: 15081.05868 | E28: 2466.25134
B31: 2.CONEXIONES (promedio anual) | C31: 47759 | D31: 9792
B34: 3.COBERTURAS COSTO/INGRESO
B36: 3.1 COSTO DE EXPLOTACIÓN/ INGRESO DE EXPLOT. | C36: 0.5046197916 | D36: 1.936309049 | E36: 0
B38: 3.3 TOTAL | C38: 0.7014053772 | D38: 2.025401827
B41: 4.M3 ELEVADOS | C41: 13340650
B43: 5.M3 FACTURADOS | C43: 7553220
B46: 6. COSTO PROMEDIO
B48: 6.1 COSTO VARIABLE/ M3ELEVADOS | C48: 0.1546291013
B50: 6.2 COSTO VARIABLE / M3FACTURADOS | C50: 0.2731090475
B52: 6.3 COSTO EXPLOTACIÓN/M3FACT | C52: 38.3194607
B54: 6.4 TOTAL/M3FACT | C54: 57.59518077
B57: 7. INGRESOS PROMEDIO
B59: 7.1 VARIABLE/M3 FACT | C59: 43.36055568
B61: 7.2 FIJO/CONEXIONES | C61: 374.6404028
B63: 7.3 INGRESO EXPLOTACIÓN/M3FACT | C63: 75.93729246
B65: 7.4 TOTAL/M3FACT | C65: 82.11397095

Sheet A-FDA-405
A2: FLORIDA | B2: ESTADO DE RENDIMIENTO ECONÓMICO (a valores históricos) | F2: PERÍODO ENERO-DICIEMBRE-2020
B4: AGUA POTABLE
A5: CONCEPTOS | B5: USINA | C5: PERFORACIÓN | D5: MIXTO | E5: SUB-TOTAL | F5: ALCANTARILLADO | G5: OTROS INGRESOS | H5: TOTAL
A6: INGRESOS
A7: Ingresos Variables | B7: 81860496.08 | C7: 5534882.59 | D7: 18027778.59 | E7: 105423157.3 | F7: 0 | H7: 105423157.3
A8: Ingresos Fijos | B8: 60305719.42 | C8: 4834853.64 | D8: 17262558.16 | E8: 82403131.22 | F8: -676.58 | H8: 82402454.64
A9: INGRESOS DE EXPLOTACIÓN | B9: 142166215.5 | C9: 10369736.23 | D9: 35290336.75 | E9: 187826288.5 | F9: -676.58 | H9: 187825611.9
A10: Ingresos Alcantarillado | F10: 90609372.54 | H10: 90609372.54
A11: Otros Ingresos | B11: 9550117.72 | C11: 704109.83 | D11: 2237529.84 | E11: 12491757.39 | F11: 901866.95 | H11: 13393624.34
A12: TOTAL ING. DE EXPLOTACIÓN | B12: 151716333.2 | C12: 11073846.06 | D12: 37527866.59 | E12: 200318045.9 | F12: 91510562.91 | H12: 291828608.8
A13: COSTOS DE EXPLOTACIÓN
A14: OPERATIVO
A15: Costo Operativo Var | B15: 30259092.24 | C15: 1907198.92 | D15: 6155119.69 | E15: 38321410.85 | F15: 16120976.82 | H15: 54442387.67
A16: Costo Operativo Fijo | B16: 70153473.8 | C16: 12126532.08 | D16: 31263598.98 | E16: 113543604.9 | F16: 55646781.09 | H16: 169190385.9
A17: TOTAL OPERATIVO | B17: 100412566 | C17: 14033731 | D17: 37418718.67 | E17: 151865015.7 | F17: 71767757.91 | H17: 223632773.6
A18: NO OPERATIVO
A19: COMERCIALIZACIÓN
A20: Comercial Propios | B20: 55216384.79 | C20: 6985456.55 | D20: 14617328.46 | E20: 76819169.8 | F20: 25237009.75 | H20: 102056179.5
A21: Comercial Asignados | B21: 16703017.91 | C21: 1219161.1 | D21: 4131583.06 | E21: 22053762.07 | F21: 10074739.67 | H21: 32128501.74
A22: TOTAL COMERCIALIZACIÓN | B22: 71919402.7 | C22: 8204617.65 | D22: 18748911.52 | E22: 98872931.87 | F22: 35311749.42 | H22: 134184681.3
A23: ADMINISTRACIÓN
A24: Administración Propios | B24: 7997636.96 | C24: 1011785.67 | D24: 2117199.24 | E24: 11126621.87 | F24: 3655372.29 | H24: 14781994.16
A25: Administ. Asignados | B25: 17972938 | C25: 1311853.17 | D25: 4445704.65 | E25: 23730495.82 | F25: 10840716 | H25: 34571211.82
A26: Gastos Fiscales | B26: 7630971.99 | C26: 556988.22 | D26: 1887562.77 | E26: 10075522.98 | F26: 4602764.47 | H26: 14678287.45
A27: TOTAL ADMINISTRACIÓN | B27: 33601546.95 | C27: 2880627.06 | D27: 8450466.66 | E27: 44932640.67 | F27: 19098852.76 | H27: 64031493.43
A28: TOTAL NO OPERATIVO | B28: 105520949.7 | C28: 11085244.71 | D28: 27199378.18 | E28: 143805572.5 | F28: 54410602.18 | H28: 198216174.7
A29: COSTO DE EXPLOTACIÓN | B29: 205933515.7 | C29: 25118975.71 | D29: 64618096.85 | E29: 295670588.2 | F29: 126178360.1 | H29: 421848948.3
A30: RESULTADO DE EXPLOTACIÓN | B30: -54217182.47 | C30: -14045129.65 | D30: -27090230.26 | E30: -95352542.38 | F30: -34667797.18 | H30: -130020339.6
A31: DIVERSOS Y EXTRAORDINARIOS
A32: Ingresos Div. y Extr | B32: 2837254.84 | C32: 207092.57 | D32: 701810.54 | E32: 3746157.95 | F32: 1711343.7 | H32: 5457501.65
A33: Gtos. Div. y Extraor | B33: 2435130.6 | C33: 177741.35 | D33: 602342.87 | E33: 3215214.82 | F33: 1468794.93 | H33: 4684009.75
A34: RESULTADOS DIV. Y EXTRAORDINARIOS | B34: 402124.24 | C34: 29351.22 | D34: 99467.67 | E34: 530943.13 | F34: 242548.77 | H34: 773491.9
A35: FINANCIEROS
A36: Ingresos Financieros | B36: 9503230.01 | C36: 693645.19 | D36: 2350676.07 | E36: 12547551.27 | F36: 5732052.11 | H36: 18279603.38
A37: Gastos Financieros | B37: 29145975.82 | C37: 2127378.39 | D37: 7209416.98 | E37: 38482771.19 | F37: 17579944.12 | H37: 56062715.31
A38: RESULTADO FINANCIERO | B38: -19642745.81 | C38: -1433733.2 | D38: -4858740.91 | E38: -25935219.92 | F38: -11847892.01 | H38: -37783111.93
A39: I.R.A.E. | B39: 6930163.44 | C39: 505835.87 | D39: 1714213.93 | E39: 9150213.24 | F39: 4180058.57 | H39: 13330271.81
A40: RESULTADO NETO | B40: -66527640.6 | C40: -14943675.76 | D40: -30135289.57 | E40: -111606605.9 | F40: -42093081.85 | H40: -153699687.8

Sheet B-FDA-405
A3: F LO R I D A
C5: C O S T O S T O T A L E S
B9: C O N C E P T O | C9: C O S T O S O P E R A T I V O S
C12: AGUA | D12: ALCANTARILLADO | E12: TOTAL
B14: RETRIBUCIONES AL PERSONAL | C14: 59620478.5 | D14: 27584367.75 | E14: 87204846.25
B16: MATERIALES Y SUMINISTROS | C16: 20017738.02 | D16: 2416209.843 | E16: 22433947.86
B18: ENERGÍA Y FLUÍDOS | C18: 15434721.46 | D18: 8930225.047 | E18: 24364946.5
B20: SERVICIOS CONTRATADOS | C20: 18069158.09 | D20: 12115333.34 | E20: 30184491.43
B22: GASTOS VARIOS | C22: 6499663.683 | D22: 795144.9653 | E22: 7294808.648
B24: AMORTIZACIÓN | C24: 32223255.96 | D24: 19926476.96 | E24: 52149732.92
B27: TOTAL | C27: 151865015.7 | D27: 71767757.91 | E27: 223632773.6 | G27: 0.6568336458
B32: C O N C E P T O | C32: C O S T O D E A D M I N I S T R A T I V O - C O M E R C I A L
C35: COMERCIALIZACIÓN | D35: ADMINISTRACIÓN | E35: TOTAL
B37: RETRIBUCIONES AL PERSONAL | C37: 53598465.35 | D37: 6763471.555 | E37: 60361936.9
B39: MATERIALES Y SUMINISTROS | C39: 5116755.069 | D39: 275827.976 | E39: 5392583.045
B41: ENERGÍA Y FLUÍDOS | C41: 187907.817 | D41: 2899866.991 | E41: 3087774.808
B43: SERVICIOS CONTRATADOS | C43: 24865606.54 | D43: 2550098.58 | E43: 27415705.12
B45: GASTOS VARIOS | C45: 15872764.14 | D45: 1143640.498 | E45: 17016404.64
B47: AMORTIZACIÓN | C47: 2414680.639 | D47: 1149088.56 | E47: 3563769.199
B51: TOTAL | C51: 102056179.6 | D51: 14781994.16 | E51: 116838173.7 | G51: 0.3431663542
A56: C O S T O D E E X P L O T A C I Ó N | G56: 340470947.3

Sheet C-FDA-405
A3: COBERTURAS, COSTOS E INGRESOS PROMEDIO
A5: F L O R I D A
B9: 1. COMPOSICIÓN DEL COSTO PROPIO POR CONEXIÓN | C9: OPERATIVOS | E9: ADMINISTRATIVO-COMERCIAL
C11: AGUA | D11: ALCANTARILLADO
C12: ($/conex.agua) | D12: ($/conex.desagüe) | E12: ($/conex.agua)
B14: RETRIBUCIONES AL PERSONAL | C14: 2311.946584 | D14: 1627.972601 | E14: 2340.698655
B16: MATERIALES Y SUMINISTROS | C16: 776.2423616 | D16: 142.599731 | E16: 209.1121081
B18: ENERGÍA Y FLUÍDOS | C18: 598.5234006 | D18: 527.043499 | E18: 119.7368857
B20: SERVICIOS CONTRATADOS | C20: 700.6808628 | D20: 715.0220339 | E20: 1063.118703
B22: GASTOS VARIOS | C22: 252.0421779 | D22: 46.92781901 | E22: 659.8574777
B24: AMORTIZACIÓN | C24: 1249.544593 | D24: 1176.019651 | E24: 138.1948658
B28: TOTAL | C28: 5888.979979 | D28: 4235.585335 | E28: 4530.718695
B31: 2.CONEXIONES (promedio anual) | C31: 25788 | D31: 16944
B34: 3.COBERTURAS COSTO/INGRESO
B36: 3.1 COSTO DE EXPLOTACIÓN/ INGRESO DE EXPLOT. | C36: 1.476005754 | D36: 1.378839295
B38: 3.3 TOTAL | C38: 1.599722911 | D38: 1.509865392
B41: 4.M3 ELEVADOS | C41: 3890740
B43: 5.M3 FACTURADOS | C43: 2833950
B46: 6. COSTO PROMEDIO
B48: 6.1 COSTO VARIABLE/ M3ELEVADOS | C48: 9.849388767
B50: 6.2 COSTO VARIABLE / M3FACTURADOS | C50: 13.52226075
B52: 6.3 COSTO EXPLOTACIÓN/M3FACT | C52: 104.3316178
B54: 6.4 TOTAL/M3FACT | C54: 122.2741359
B57: 7. INGRESOS PROMEDIO
B59: 7.1 VARIABLE/M3 FACT | C59: 37.20007666
B61: 7.2 FIJO/CONEXIONES | C61: 266.2838375
B63: 7.3 INGRESO EXPLOTACIÓN/M3FACT | C63: 70.68510237
B65: 7.4 TOTAL/M3FACT | C65: 76.43457192

Sheet A-DUR-406
A2: DURAZNO | B2: ESTADO DE RENDIMIENTO ECONÓMICO (a valores históricos) | F2: PERÍODO ENERO-DICIEMBRE-2020
B4: AGUA POTABLE
A5: CONCEPTOS | B5: USINA | C5: PERFORACIÓN | D5: MIXTO | E5: SUB-TOTAL | F5: ALCANTARILLADO | G5: OTROS INGRESOS | H5: TOTAL
A6: INGRESOS
A7: Ingresos Variables | B7: 104769463.3 | C7: 4517640.94 | E7: 109287104.2 | H7: 109287104.2
A8: Ingresos Fijos | B8: 68950780.86 | C8: 4104577.89 | E8: 73055358.75 | F8: -5787.06 | H8: 73049571.69
A9: INGRESOS DE EXPLOTACIÓN | B9: 173720244.2 | C9: 8622218.83 | E9: 182342463 | F9: -5787.06 | H9: 182336675.9
A10: Ingresos Alcantarillado | F10: 89451061.79 | H10: 89451061.79
A11: Otros Ingresos | B11: 11294356.41 | C11: 705378.99 | E11: 11999735.4 | F11: 1009396.93 | H11: 13009132.33
A12: TOTAL ING. DE EXPLOTACIÓN | B12: 185014600.6 | C12: 9327597.82 | E12: 194342198.4 | F12: 90454671.66 | H12: 284796870
A13: COSTOS DE EXPLOTACIÓN
A14: OPERATIVO
A15: Costo Operativo Var | B15: 34143060.69 | C15: 55125.07 | E15: 34198185.76 | F15: 11574764.88 | H15: 45772950.64
A16: Costo Operativo Fijo | B16: 62418922.7 | C16: 11304705.75 | E16: 73723628.45 | F16: 32276255.25 | H16: 105999883.7
A17: TOTAL OPERATIVO | B17: 96561983.39 | C17: 11359830.82 | E17: 107921814.2 | F17: 43851020.13 | H17: 151772834.3
A18: NO OPERATIVO
A19: COMERCIALIZACIÓN
A20: Comercial Propios | B20: 47630663.15 | E20: 47630663.15 | F20: 14726216.07 | H20: 62356879.22
A21: Comercial Asignados | B21: 20368948.49 | C21: 1026910.17 | E21: 21395858.66 | F21: 9872768.45 | H21: 31268627.11
A22: TOTAL COMERCIALIZACIÓN | B22: 67999611.64 | C22: 1026910.17 | E22: 69026521.81 | F22: 24598984.52 | H22: 93625506.33
A23: ADMINISTRACIÓN
A24: Administración Propios | B24: 6772895.42 | E24: 6772895.42 | F24: 2094010.72 | H24: 8866906.14
A25: Administ. Asignados | B25: 21917587.17 | C25: 1104985.38 | E25: 23022572.55 | F25: 10715630.69 | H25: 33738203.24
A26: Gastos Fiscales | B26: 9305795.95 | C26: 469156.06 | E26: 9774952.01 | F26: 4549655.63 | H26: 14324607.64
A27: TOTAL ADMINISTRACIÓN | B27: 37996278.54 | C27: 1574141.44 | E27: 39570419.98 | F27: 17359297.04 | H27: 56929717.02
A28: TOTAL NO OPERATIVO | B28: 105995890.2 | C28: 2601051.61 | E28: 108596941.8 | F28: 41958281.56 | H28: 150555223.3
A29: COSTO DE EXPLOTACIÓN | B29: 202557873.6 | C29: 13960882.43 | E29: 216518756 | F29: 85809301.69 | H29: 302328057.7
A30: RESULTADO DE EXPLOTACIÓN | B30: -17543273.01 | C30: -4633284.61 | E30: -22176557.62 | F30: 4645369.97 | H30: -17531187.65
A31: DIVERSOS Y EXTRAORDINARIOS
A32: Ingresos Div. y Extr | B32: 3459967.38 | C32: 174435.75 | E32: 3634403.13 | F32: 1691597.44 | H32: 5326000.57
A33: Gtos. Div. y Extraor | B33: 2969586.17 | C33: 149713.07 | E33: 3119299.24 | F33: 1451847.33 | H33: 4571146.57
A34: RESULTADOS DIV. Y EXTRAORDINARIOS | B34: 490381.21 | C34: 24722.68 | E34: 515103.89 | F34: 239750.11 | H34: 754854
A35: FINANCIEROS
A36: Ingresos Financieros | B36: 11588971.83 | C36: 584263.46 | E36: 12173235.29 | F36: 5665913.05 | H36: 17839148.34
A37: Gastos Financieros | B37: 35542851.46 | C37: 1791909.53 | E37: 37334760.99 | F37: 17377098.61 | H37: 54711859.6
A38: RESULTADO FINANCIERO | B38: -23953879.63 | C38: -1207646.07 | E38: -25161525.7 | F38: -11711185.56 | H38: -36872711.26
A39: I.R.A.E. | B39: 8451175.95 | C39: 426070 | E39: 8877245.95 | F39: 4131827.13 | H39: 13009073.08
A40: RESULTADO NETO | B40: -32555595.48 | C40: -5390138 | E40: -37945733.48 | F40: -2694238.35 | H40: -40639971.83

Sheet B-DUR-406
A3: D U R A Z N O
C5: C O S T O S T O T A L E S
B9: C O N C E P T O | C9: C O S T O S O P E R A T I V O S
C12: AGUA | D12: ALCANTARILLADO | E12: TOTAL
B14: RETRIBUCIONES AL PERSONAL | C14: 33445506.79 | D14: 9712685.067 | E14: 43158191.86
B16: MATERIALES Y SUMINISTROS | C16: 20076792.39 | D16: 2197506.355 | E16: 22274298.74
B18: ENERGÍA Y FLUÍDOS | C18: 12939931.81 | D18: 6172775.84 | E18: 19112707.65
B20: SERVICIOS CONTRATADOS | C20: 14018167 | D20: 14311917.74 | E20: 28330084.73
B22: GASTOS VARIOS | C22: 4151774.158 | D22: 461536.1298 | E22: 4613310.288
B24: AMORTIZACIÓN | C24: 23289642.07 | D24: 10994599 | E24: 34284241.07
B27: TOTAL | C27: 107921814.2 | D27: 43851020.13 | E27: 151772834.3 | G27: 0.6806059865
B32: C O N C E P T O | C32: C O S T O D E A D M I N I S T R A T I V O - C O M E R C I A L
C35: COMERCIALIZACIÓN | D35: ADMINISTRACIÓN | E35: TOTAL
B37: RETRIBUCIONES AL PERSONAL | C37: 37237685.09 | D37: 3876327.533 | E37: 41114012.62
B39: MATERIALES Y SUMINISTROS | C39: 3278448.54 | D39: 156151.9598 | E39: 3434600.5
B41: ENERGÍA Y FLUÍDOS | C41: 155654.8802 | D41: 2556828.434 | E41: 2712483.314
B43: SERVICIOS CONTRATADOS | C43: 12473692.03 | D43: 1152297.416 | E43: 13625989.45
B45: GASTOS VARIOS | C45: 6892306.167 | D45: 427110.03 | E45: 7319416.197
B47: AMORTIZACIÓN | C47: 2319092.507 | D47: 698190.7671 | E47: 3017283.274
B51: TOTAL | C51: 62356879.22 | D51: 8866906.14 | E51: 71223785.36 | G51: 0.3193940135
A56: C O S T O D E E X P L O T A C I Ó N | G56: 222996619.7

Sheet C-DUR-406
A3: COBERTURAS, COSTOS E INGRESOS PROMEDIO
A5: D U R A Z N O
B9: 1. COMPOSICIÓN DEL COSTO PROPIO POR CONEXIÓN | C9: OPERATIVOS | E9: ADMINISTRATIVO-COMERCIAL
C11: AGUA | D11: ALCANTARILLADO
C12: ($/conex.agua) | D12: ($/conex.desagüe) | E12: ($/conex.agua)
B14: RETRIBUCIONES AL PERSONAL | C14: 1475.320105 | D14: 692.8723832 | E14: 1813.586794
B16: MATERIALES Y SUMINISTROS | C16: 885.6106039 | D16: 156.763187 | E16: 151.5042126
B18: ENERGÍA Y FLUÍDOS | C18: 570.795404 | D18: 440.3464003 | E18: 119.6507858
B20: SERVICIOS CONTRATADOS | C20: 618.357609 | D20: 1020.967166 | E20: 601.0582025
B22: GASTOS VARIOS | C22: 183.1395747 | D22: 32.92453487 | E22: 322.8679399
B24: AMORTIZACIÓN | C24: 1027.333131 | D24: 784.3200884 | E24: 133.0958656
B28: TOTAL | C28: 4760.556427 | D28: 3128.19376 | E28: 3141.763801
B31: 2.CONEXIONES (promedio anual) | C31: 22670 | D31: 14018
B34: 3.COBERTURAS COSTO/INGRESO
B36: 3.1 COSTO DE EXPLOTACIÓN/ INGRESO DE EXPLOT. | C36: 1.114110871 | D36: 0.9486442227 | E36: 0
B38: 3.3 TOTAL | C38: 1.270291374 | D38: 1.112029937
B41: 4.M3 ELEVADOS | C41: 4133640
B43: 5.M3 FACTURADOS | C43: 2598830
B46: 6. COSTO PROMEDIO
B48: 6.1 COSTO VARIABLE/ M3ELEVADOS | C48: 8.273140806
B50: 6.2 COSTO VARIABLE / M3FACTURADOS | C50: 13.15906995
B52: 6.3 COSTO EXPLOTACIÓN/M3FACT | C52: 83.31393589
B54: 6.4 TOTAL/M3FACT | C54: 102.2960571
B57: 7. INGRESOS PROMEDIO
B59: 7.1 VARIABLE/M3 FACT | C59: 42.05242522
B61: 7.2 FIJO/CONEXIONES | C61: 268.5463856
B63: 7.3 INGRESO EXPLOTACIÓN/M3FACT | C63: 74.78065067
B65: 7.4 TOTAL/M3FACT | C65: 80.86324877

Sheet A-300-AG-LITORAL SUR
A2: ÁMBITO GEOGRÁFICO LITORAL SUR | B2: ESTADO DE RENDIMIENTO ECONÓMICO (a valores históricos) | H2: PERÍODO ENERO-DICIEMBRE-2020
B4: AGUA POTABLE
A5: CONCEPTOS | B5: USINA | C5: PERFORACIÓN | D5: MIXTO | E5: SUB-TOTAL | F5: ALCANTARILLADO | G5: OTROS INGRESOS | H5: TOTAL
A6: INGRESOS
A7: Ingresos Variables | B7: 345328057.4 | C7: 146327601.1 | D7: 104977760.8 | E7: 596633419.3 | H7: 596633419.3
A8: Ingresos Fijos | B8: 263189299.6 | C8: 113631166.8 | D8: 88635432.67 | E8: 465455899.1 | F8: -121597.42 | H8: 465334301.7
A9: INGRESOS DE EXPLOTACIÓN | B9: 608517357 | C9: 259958767.9 | D9: 193613193.5 | E9: 1062089318 | F9: -121597.42 | H9: 1061967721
A10: Ingresos Alcantarillado | F10: 373013569.7 | H10: 373013569.7
A11: Otros Ingresos | B11: 36449392.87 | C11: 20593421.98 | D11: 13028667.18 | E11: 70071482.03 | F11: 4707744.78 | H11: 74779226.81
A12: TOTAL ING. DE EXPLOTACIÓN | B12: 644966749.9 | C12: 280552189.9 | D12: 206641860.7 | E12: 1132160800 | F12: 377599717 | H12: 1509760517
A13: COSTOS DE EXPLOTACIÓN
A14: OPERATIVO
A15: Costo Operativo Var | B15: 152734834.1 | C15: 25894714.58 | D15: 38268512.08 | E15: 216898060.7 | F15: 25915009.83 | H15: 242813070.6
A16: Costo Operativo Fijo | B16: 218121641.5 | C16: 65844981.81 | D16: 65931589.88 | E16: 349898213.2 | F16: 188361359.4 | H16: 538259572.6
A17: TOTAL OPERATIVO | B17: 370856475.6 | C17: 91739696.39 | D17: 104200102 | E17: 566796273.9 | F17: 214276369.2 | H17: 781072643.1
A18: NO OPERATIVO
A19: COMERCIALIZACIÓN
A20: Comercial Propios | B20: 142374294.5 | C20: 74556139.49 | D20: 48691744.38 | E20: 265622178.4 | F20: 60004497.19 | H20: 325626675.6
A21: Comercial Asignados | B21: 71006798.75 | C21: 30887038.56 | D21: 22749974.35 | E21: 124643811.7 | F21: 41571363.27 | H21: 166215174.9
A22: TOTAL COMERCIALIZACIÓN | B22: 213381093.3 | C22: 105443178 | D22: 71441718.73 | E22: 390265990.1 | F22: 101575860.5 | H22: 491841850.5
A23: ADMINISTRACIÓN
A24: Administración Propios | B24: 25103019.24 | C24: 11240329.1 | D24: 7679350.44 | E24: 44022698.78 | F24: 10591027.77 | H24: 54613726.55
A25: Administ. Asignados | B25: 76405401.99 | C25: 33235361.03 | D25: 24479641.31 | E25: 134120404.3 | F25: 44732008.69 | H25: 178852413
A26: Gastos Fiscales | B26: 32440298.97 | C26: 14111110.22 | D26: 10393595.89 | E26: 56945005.08 | F26: 18992370.85 | H26: 75937375.93
A27: TOTAL ADMINISTRACIÓN | B27: 133948720.2 | C27: 58586800.35 | D27: 42552587.64 | E27: 235088108.2 | F27: 74315407.31 | H27: 309403515.5
A28: TOTAL NO OPERATIVO | B28: 347329813.5 | C28: 164029978.4 | D28: 113994306.4 | E28: 625354098.2 | F28: 175891267.8 | H28: 801245366
A29: COSTO DE EXPLOTACIÓN | B29: 718186289.1 | C29: 255769674.8 | D29: 218194408.3 | E29: 1192150372 | F29: 390167637 | H29: 1582318009
A30: RESULTADO DE EXPLOTACIÓN | B30: -73219539.21 | C30: 24782515.11 | D30: -11552547.66 | E30: -59989571.76 | F30: -12567919.95 | H30: -72557491.71
A31: DIVERSOS Y EXTRAORDINARIOS
A32: Ingresos Div. y Extr | B32: 12061555.86 | C32: 5246620.62 | D32: 3864419.86 | E32: 21172596.34 | F32: 7061511.61 | H32: 28234107.95
A33: Gtos. Div. y Extraor | B33: 10352071.18 | C33: 4503017.08 | D33: 3316715.64 | E33: 18171803.9 | F33: 6060683.32 | H33: 24232487.22
A34: RESULTADOS DIV. Y EXTRAORDINARIOS | B34: 1709484.68 | C34: 743603.54 | D34: 547704.22 | E34: 3000792.44 | F34: 1000828.29 | H34: 4001620.73
A35: FINANCIEROS
A36: Ingresos Financieros | B36: 40399522.15 | C36: 17573269.3 | D36: 12943663.34 | E36: 70916454.79 | F36: 23652146.57 | H36: 94568601.36
A37: Gastos Financieros | B37: 123903504 | C37: 53896420.78 | D37: 39697628.93 | E37: 217497553.7 | F37: 72540061.97 | H37: 290037615.7
A38: RESULTADO FINANCIERO | B38: -83503981.84 | C38: -36323151.48 | D38: -26753965.59 | E38: -146581098.9 | F38: -48887915.4 | H38: -195469014.3
A39: I.R.A.E. | B39: 29461066.57 | C39: 12815182.69 | D39: 9439075.16 | E39: 51715324.42 | F39: 17248161.06 | H39: 68963485.48
A40: RESULTADO NETO | B40: -125552969.8 | C40: 2018149.86 | D40: -28319733.87 | E40: -151854553.8 | F40: -43206846 | H40: -195061399.8

Sheet B-300-AG-LITORAL SUR
A3: ÁMBITO GEOGRÁFICO LITORAL SUR
C5: C O S T O S T O T A L E S
B9: C O N C E P T O | C9: C O S T O S O P E R A T I V O S
C12: AGUA | D12: ALCANTARILLADO | E12: TOTAL
B14: RETRIBUCIONES AL PERSONAL | C14: 168606211.2 | D14: 24477389.57 | E14: 193083600.8
B16: MATERIALES Y SUMINISTROS | C16: 106328233.5 | D16: 2743763.806 | E16: 109071997.3
B18: ENERGÍA Y FLUÍDOS | C18: 84462925.05 | D18: 13811901.47 | E18: 98274826.53
B20: SERVICIOS CONTRATADOS | C20: 61670777.88 | D20: 85497264.24 | E20: 147168042.1
B22: GASTOS VARIOS | C22: 19490540.1 | D22: 12496504.58 | E22: 31987044.69
B24: AMORTIZACIÓN | C24: 126237586.2 | D24: 75249545.54 | E24: 201487131.7
B27: TOTAL | C27: 566796273.9 | D27: 214276369.2 | E27: 781072643.1 | G27: 0.6725771714
B32: C O N C E P T O | C32: C O S T O D E A D M I N I S T R A T I V O - C O M E R C I A L
C35: COMERCIALIZACIÓN | D35: ADMINISTRACIÓN | E35: TOTAL
B37: RETRIBUCIONES AL PERSONAL | C37: 170596434.5 | D37: 25626082.08 | E37: 196222516.5
B39: MATERIALES Y SUMINISTROS | C39: 12313106.94 | D39: 692333.7426 | E39: 13005440.68
B41: ENERGÍA Y FLUÍDOS | C41: 648350.5687 | D41: 10635700.82 | E41: 11284051.39
B43: SERVICIOS CONTRATADOS | C43: 103818302 | D43: 8004488.884 | E43: 111822790.9
B45: GASTOS VARIOS | C45: 26062909.12 | D45: 6190180.933 | E45: 32253090.05
B47: AMORTIZACIÓN | C47: 12187572.48 | D47: 3464940.089 | E47: 15652512.57
B51: TOTAL | C51: 325626675.6 | D51: 54613726.55 | E51: 380240402.1 | G51: 0.3274228286
A56: C O S T O D E E X P L O T A C I Ó N | G56: 1161313045

Sheet C-300-AG-LITORAL SUR
A3: COBERTURAS, COSTOS E INGRESOS PROMEDIO
A4: Á M B I T O G E O G R Á F I C O L I T O R A L S U R
B9: 1. COMPOSICIÓN DEL COSTO PROPIO POR CONEXIÓN | C9: OPERATIVOS | E9: ADMINISTRATIVO-COMERCIAL
C11: AGUA | D11: ALCANTARILLADO
C12: ($/conex.agua) | D12: ($/conex.desagüe) | E12: ($/conex.agua)
B14: RETRIBUCIONES AL PERSONAL | C14: 1197.283213 | D14: 392.1904372 | E14: 1393.388318
B16: MATERIALES Y SUMINISTROS | C16: 755.0434125 | D16: 43.96211956 | E16: 92.35244474
B18: ENERGÍA Y FLUÍDOS | C18: 599.7764944 | D18: 221.3020168 | E18: 80.12875212
B20: SERVICIOS CONTRATADOS | C20: 437.928037 | D20: 1369.885026 | E20: 794.0606069
B22: GASTOS VARIOS | C22: 138.4035399 | D22: 200.2259915 | E22: 229.0312024
B24: AMORTIZACIÓN | C24: 896.4209664 | D24: 1205.690341 | E24: 111.1494672
B28: TOTAL | C28: 4024.855663 | D28: 3433.255932 | E28: 2700.110792
B31: 2.CONEXIONES (promedio anual) | C31: 140824 | D31: 62412
B34: 3.COBERTURAS COSTO/INGRESO
B36: 3.1 COSTO DE EXPLOTACIÓN/ INGRESO DE EXPLOT. | C36: 1.052986795 | D36: 1.033283711 | E36: 0
B38: 3.3 TOTAL | C38: 1.208523777 | D38: 1.190302774
B41: 4.M3 ELEVADOS | C41: 26831880
B43: 5.M3 FACTURADOS | C43: 15168630
B46: 6. COSTO PROMEDIO
B48: 6.1 COSTO VARIABLE/ M3ELEVADOS | C48: 8.083595362
B50: 6.2 COSTO VARIABLE / M3FACTURADOS | C50: 14.29912001
B52: 6.3 COSTO EXPLOTACIÓN/M3FACT | C52: 78.59314732
B54: 6.4 TOTAL/M3FACT | C54: 97.53913532
B57: 7. INGRESOS PROMEDIO
B59: 7.1 VARIABLE/M3 FACT | C59: 39.33337548
B61: 7.2 FIJO/CONEXIONES | C61: 275.4359455
B63: 7.3 INGRESO EXPLOTACIÓN/M3FACT | C63: 74.63830289
B65: 7.4 TOTAL/M3FACT | C65: 80.70932257

Sheet A-SJ-301
A2: SAN JOSÉ | B2: ESTADO DE RENDIMIENTO ECONÓMICO (a valores históricos) | H2: PERÍODO ENERO-DICIEMBRE-2020
B4: AGUA POTABLE
A5: CONCEPTOS | B5: USINA | C5: PERFORACIÓN | D5: MIXTO | E5: SUB-TOTAL | F5: ALCANTARILLADO | G5: OTROS INGRESOS | H5: TOTAL
A6: INGRESOS
A7: Ingresos Variables | B7: 76226361.63 | C7: 88347230.88 | D7: 5420473.07 | E7: 169994065.6 | H7: 169994065.6
A8: Ingresos Fijos | B8: 58768401.74 | C8: 63879217.69 | D8: 4682048.5 | E8: 127329667.9 | F8: -4713.86 | H8: 127324954.1
A9: INGRESOS DE EXPLOTACIÓN | B9: 134994763.4 | C9: 152226448.6 | D9: 10102521.57 | E9: 297323733.5 | F9: -4713.86 | H9: 297319019.6
A10: Ingresos Alcantarillado | F10: 106922623.4 | H10: 106922623.4
A11: Otros Ingresos | B11: 7363663.06 | C11: 13130156.87 | D11: 824370.44 | E11: 21318190.37 | F11: 1480441.84 | H11: 22798632.21
A12: TOTAL ING. DE EXPLOTACIÓN | B12: 142358426.4 | C12: 165356605.4 | D12: 10926892.01 | E12: 318641923.9 | F12: 108398351.4 | H12: 427040275.3
A13: COSTOS DE EXPLOTACIÓN
A14: OPERATIVO
A15: Costo Operativo Var | B15: 35001677.35 | C15: 16065002.41 | D15: 1926905.62 | E15: 52993585.38 | F15: 9825707.42 | H15: 62819292.8
A16: Costo Operativo Fijo | B16: 42384017.08 | C16: 41299768.8 | D16: 3527121.81 | E16: 87210907.69 | F16: 88561436.75 | H16: 175772344.4
A17: TOTAL OPERATIVO | B17: 77385694.43 | C17: 57364771.21 | D17: 5454027.43 | E17: 140204493.1 | F17: 98387144.17 | H17: 238591637.2
A18: NO OPERATIVO
A19: COMERCIALIZACIÓN
A20: Comercial Propios | B20: 36564993.48 | C20: 47468750.24 | D20: 3291491.31 | E20: 87325235.03 | F20: 20880052.27 | H20: 108205287.3
A21: Comercial Asignados | B21: 15672770.91 | C21: 18204726.36 | D21: 1202982.34 | E21: 35080479.61 | F21: 11933979.41 | H21: 47014459.02
A22: TOTAL COMERCIALIZACIÓN | B22: 52237764.39 | C22: 65673476.6 | D22: 4494473.65 | E22: 122405714.6 | F22: 32814031.68 | H22: 155219746.3
A23: ADMINISTRACIÓN
A24: Administración Propios | B24: 5489628.2 | C24: 7126646.69 | D24: 494162.92 | E24: 13110437.81 | F24: 3134794.03 | H24: 16245231.84
A25: Administ. Asignados | B25: 16864361.98 | C25: 19588820.37 | D25: 1294444.51 | E25: 37747626.86 | F25: 12841312.51 | H25: 50588939.37
A26: Gastos Fiscales | B26: 7160291.45 | C26: 8317045.35 | D26: 549596.78 | E26: 16026933.58 | F26: 5452180.16 | H26: 21479113.74
A27: TOTAL ADMINISTRACIÓN | B27: 29514281.63 | C27: 35032512.41 | D27: 2338204.21 | E27: 66884998.25 | F27: 21428286.7 | H27: 88313284.95
A28: TOTAL NO OPERATIVO | B28: 81752046.02 | C28: 100705989 | D28: 6832677.86 | E28: 189290712.9 | F28: 54242318.38 | H28: 243533031.3
A29: COSTO DE EXPLOTACIÓN | B29: 159137740.4 | C29: 158070760.2 | D29: 12286705.29 | E29: 329495206 | F29: 152629462.6 | H29: 482124668.5
A30: RESULTADO DE EXPLOTACIÓN | B30: -16779314.02 | C30: 7285845.22 | D30: -1359813.28 | E30: -10853282.08 | F30: -44231111.14 | H30: -55084393.22
A31: DIVERSOS Y EXTRAORDINARIOS
A32: Ingresos Div. y Extr | B32: 2662252.12 | C32: 3092342.24 | D32: 204344.36 | E32: 5958938.72 | F32: 2027163.13 | H32: 7986101.85
A33: Gtos. Div. y Extraor | B33: 2284931.09 | C33: 2654064.53 | D33: 175382.62 | E33: 5114378.24 | F33: 1739853.16 | H33: 6854231.4
A34: RESULTADOS DIV. Y EXTRAORDINARIOS | B34: 377321.03 | C34: 438277.71 | D34: 28961.74 | E34: 844560.48 | F34: 287309.97 | H34: 1131870.45
A35: FINANCIEROS
A36: Ingresos Financieros | B36: 8917068.05 | C36: 10357631.36 | D36: 684440.26 | E36: 19959139.67 | F36: 6789871.86 | H36: 26749011.53
A37: Gastos Financieros | B37: 27348243.67 | C37: 31766386.11 | D37: 2099147.32 | E37: 61213777.1 | F37: 20824229.36 | H37: 82038006.46
A38: RESULTADO FINANCIERO | B38: -18431175.62 | C38: -21408754.75 | D38: -1414707.06 | E38: -41254637.43 | F38: -14034357.5 | H38: -55288994.93
A39: I.R.A.E. | B39: 6502708.97 | C39: 7553229.61 | D39: 499123.24 | E39: 14555061.82 | F39: 4951466.16 | G39: 0 | H39: 19506527.98
A40: RESULTADO NETO | B40: -28330459.64 | C40: -6131402.21 | D40: -2246435.36 | E40: -36708297.21 | F40: -53026692.51 | G40: 0 | H40: -89734989.72

Sheet B-SJ-301
A3: S AN J O S É
C5: C O S T O S T O T A L E S
B9: C O N C E P T O | C9: C O S T O S O P E R A T I V O S
C12: AGUA | D12: ALCANTARILLADO | E12: TOTAL
B14: RETRIBUCIONES AL PERSONAL | C14: 39132654.82 | D14: 6712062.399 | E14: 45844717.21
B16: MATERIALES Y SUMINISTROS | C16: 19490937.54 | D16: 777051.6225 | E16: 20267989.16
B18: ENERGÍA Y FLUÍDOS | C18: 28054758.45 | D18: 7646437.605 | E18: 35701196.06
B20: SERVICIOS CONTRATADOS | C20: 18231041.82 | D20: 49460265.74 | E20: 67691307.57
B22: GASTOS VARIOS | C22: 3866923.262 | D22: 11391315.69 | E22: 15258238.95
B24: AMORTIZACIÓN | C24: 31428177.19 | D24: 22400011.11 | E24: 53828188.3
B27: TOTAL | C27: 140204493.1 | D27: 98387144.17 | E27: 238591637.2 | G27: 0.6572009147
B32: C O N C E P T O | C32: C O S T O D E A D M I N I S T R A T I V O - C O M E R C I A L
C35: COMERCIALIZACIÓN | D35: ADMINISTRACIÓN | E35: TOTAL
B37: RETRIBUCIONES AL PERSONAL | C37: 46236951.74 | D37: 9283909.747 | E37: 55520861.49
B39: MATERIALES Y SUMINISTROS | C39: 3378800.26 | D39: 175403.3928 | E39: 3554203.653
B41: ENERGÍA Y FLUÍDOS | C41: 224490.453 | D41: 2700609.423 | E41: 2925099.876
B43: SERVICIOS CONTRATADOS | C43: 42257998.18 | D43: 1233878.42 | E43: 43491876.6
B45: GASTOS VARIOS | C45: 11792222.34 | D45: 2014253.665 | E45: 13806476
B47: AMORTIZACIÓN | C47: 4314824.327 | D47: 837177.193 | E47: 5152001.52
B51: TOTAL | C51: 108205287.3 | D51: 16245231.84 | E51: 124450519.1 | G51: 0.3427990853
A56: C O S T O D E E X P L O T A C I Ó N | G56: 363042156.4

Sheet C-SJ-301
A3: COBERTURAS, COSTOS E INGRESOS PROMEDIO
A5: S A N J O S É
B9: 1. COMPOSICIÓN DEL COSTO PROPIO POR CONEXIÓN | C9: OPERATIVOS | E9: ADMINISTRATIVO-COMERCIAL
C11: AGUA | D11: ALCANTARILLADO
C12: ($/conex.agua) | D12: ($/conex.desagüe) | E12: ($/conex.agua)
B14: RETRIBUCIONES AL PERSONAL | C14: 991.9306181 | D14: 355.7755963 | E14: 1407.337241
B16: MATERIALES Y SUMINISTROS | C16: 494.0543341 | D16: 41.18793716 | E16: 90.09159851
B18: ENERGÍA Y FLUÍDOS | C18: 711.1292097 | D18: 405.3025339 | E18: 74.14513892
B20: SERVICIOS CONTRATADOS | C20: 462.1186237 | D20: 2621.661494 | E20: 1102.427736
B22: GASTOS VARIOS | C22: 98.01838387 | D22: 603.8013193 | E22: 349.9651721
B24: AMORTIZACIÓN | C24: 796.6382902 | D24: 1187.321696 | E24: 130.5924189
B28: TOTAL | C28: 3553.88946 | D28: 5215.050576 | E28: 3154.559305
B31: 2.CONEXIONES (promedio anual) | C31: 39451 | D31: 18866
B34: 3.COBERTURAS COSTO/INGRESO
B36: 3.1 COSTO DE EXPLOTACIÓN/ INGRESO DE EXPLOT. | C36: 1.034061061 | D36: 1.408042286 | E36: 0
B38: 3.3 TOTAL | C38: 1.191021652 | D38: 1.536871709
B41: 4.M3 ELEVADOS | C41: 9240640
B43: 5.M3 FACTURADOS | C43: 4396430
B46: 6. COSTO PROMEDIO
B48: 6.1 COSTO VARIABLE/ M3ELEVADOS | C48: 5.734839295
B50: 6.2 COSTO VARIABLE / M3FACTURADOS | C50: 12.05377667
B52: 6.3 COSTO EXPLOTACIÓN/M3FACT | C52: 74.94608261
B54: 6.4 TOTAL/M3FACT | C54: 93.34355901
B57: 7. INGRESOS PROMEDIO
B59: 7.1 VARIABLE/M3 FACT | C59: 38.66638741
B61: 7.2 FIJO/CONEXIONES | C61: 268.96164
B63: 7.3 INGRESO EXPLOTACIÓN/M3FACT | C63: 72.47742461
B65: 7.4 TOTAL/M3FACT | C65: 78.37268017

Sheet A-COL-302
A2: COLONIA | B2: ESTADO DE RENDIMIENTO ECONÓMICO (a valores históricos) | G2: PERÍODO ENERO-DICIEMBRE-2020
B4: AGUA POTABLE
A5: CONCEPTOS | B5: USINA | C5: PERFORACIÓN | D5: MIXTO | E5: SUB-TOTAL | F5: ALCANTARILLADO | G5: OTROS INGRESOS | H5: TOTAL
A6: INGRESOS
A7: Ingresos Variables | B7: 143499937.6 | C7: 33240664.77 | D7: 62903818.51 | E7: 239644420.8 | H7: 239644420.8
A8: Ingresos Fijos | B8: 109096577.9 | C8: 29016572.9 | D8: 52505246.26 | E8: 190618397 | F8: -80960.04 | H8: 190537437
A9: INGRESOS DE EXPLOTACIÓN | B9: 252596515.4 | C9: 62257237.67 | D9: 115409064.8 | E9: 430262817.9 | F9: -80960.04 | H9: 430181857.9
A10: Ingresos Alcantarillado | F10: 104905730.6 | H10: 104905730.6
A11: Otros Ingresos | B11: 15974446.69 | C11: 4639643.49 | D11: 6456350.35 | E11: 27070440.53 | F11: 1147020.89 | H11: 28217461.42
A12: TOTAL ING. DE EXPLOTACIÓN | B12: 268570962.1 | C12: 66896881.16 | D12: 121865415.1 | E12: 457333258.4 | F12: 105971791.5 | H12: 563305049.9
A13: COSTOS DE EXPLOTACIÓN
A14: OPERATIVO
A15: Costo Operativo Var | B15: 56579963.46 | C15: 4759047.01 | D15: 25781307.13 | E15: 87120317.6 | F15: 5076085.2 | H15: 92196402.8
A16: Costo Operativo Fijo | B16: 100397117.6 | C16: 10058980.15 | D16: 35466375.23 | E16: 145922473 | F16: 46478015.1 | H16: 192400488.1
A17: TOTAL OPERATIVO | B17: 156977081.1 | C17: 14818027.16 | D17: 61247682.36 | E17: 233042790.6 | F17: 51554100.3 | H17: 284596890.9
A18: NO OPERATIVO
A19: COMERCIALIZACIÓN
A20: Comercial Propios | B20: 53402852.67 | C20: 15329492.36 | D20: 27917635.12 | E20: 96649980.15 | F20: 13172058.57 | H20: 109822038.7
A21: Comercial Asignados | B21: 29567980.47 | C21: 7364927.59 | D21: 13416618.79 | E21: 50349526.85 | F21: 11666830.26 | H21: 62016357.11
A22: TOTAL COMERCIALIZACIÓN | B22: 82970833.14 | C22: 22694419.95 | D22: 41334253.91 | E22: 146999507 | F22: 24838888.83 | H22: 171838395.8
A23: ADMINISTRACIÓN
A24: Administración Propios | B24: 8500521.44 | C24: 2440106.98 | D24: 4443853.57 | E24: 15384481.99 | F24: 2096692.6 | H24: 17481174.59
A25: Administ. Asignados | B25: 31816015.81 | C25: 7924878.36 | D25: 14436676.03 | E25: 54177570.2 | F25: 12553852.28 | H25: 66731422.48
A26: Gastos Fiscales | B26: 13508482.91 | C26: 3364754.58 | D26: 6129541.57 | E26: 23002779.06 | F26: 5330129.95 | H26: 28332909.01
A27: TOTAL ADMINISTRACIÓN | B27: 53825020.16 | C27: 13729739.92 | D27: 25010071.17 | E27: 92564831.25 | F27: 19980674.83 | H27: 112545506.1
A28: TOTAL NO OPERATIVO | B28: 136795853.3 | C28: 36424159.87 | D28: 66344325.08 | E28: 239564338.2 | F28: 44819563.66 | H28: 284383901.9
A29: COSTO DE EXPLOTACIÓN | B29: 293772934.4 | C29: 51242187.03 | D29: 127592007.4 | E29: 472607128.8 | F29: 96373663.96 | H29: 568980792.8
A30: RESULTADO DE EXPLOTACIÓN | B30: -25201972.21 | C30: 15654694.13 | D30: -5726592.32 | E30: -15273870.4 | F30: 9598127.53 | H30: -5675742.87
A31: DIVERSOS Y EXTRAORDINARIOS
A32: Ingresos Div. y Extr | B32: 5022559.2 | C32: 1251041.88 | D32: 2279011.26 | E32: 8552612.34 | F32: 1981783.89 | H32: 10534396.23
A33: Gtos. Div. y Extraor | B33: 4310711.72 | C33: 1073731.77 | D33: 1956006.98 | E33: 7340450.47 | F33: 1700905.57 | H33: 9041356.04
A34: RESULTADOS DIV. Y EXTRAORDINARIOS | B34: 711847.48 | C34: 177310.11 | D34: 323004.28 | E34: 1212161.87 | F34: 280878.32 | H34: 1493040.19
A35: FINANCIEROS
A36: Ingresos Financieros | B36: 16822787.46 | C36: 4190296.68 | D36: 7633423.83 | E36: 28646507.97 | F36: 6637876.63 | H36: 35284384.6
A37: Gastos Financieros | B37: 51594726.87 | C37: 12851450.08 | D37: 23411364.95 | E37: 87857541.9 | F37: 20358066.94 | H37: 108215608.8
A38: RESULTADO FINANCIERO | B38: -34771939.41 | C38: -8661153.4 | D38: -15777941.12 | E38: -59211033.93 | F38: -13720190.31 | H38: -72931224.24
A39: I.R.A.E. | B39: 12267899.09 | C39: 3055744.3 | D39: 5566620.46 | E39: 20890263.85 | F39: 4840624.72 | G39: 0 | H39: 25730888.57
A40: RESULTADO NETO | B40: -46994165.05 | C40: 10226595.14 | D40: -15614908.7 | E40: -52382478.61 | F40: 999440.26 | G40: 0 | H40: -51383038.35

Sheet B-COL-302
A3: C O L O N I A
C5: C O S T O S T O T A L E S
B9: C O N C E P T O | C9: C O S T O S O P E R A T I V O S
C12: AGUA | D12: ALCANTARILLADO | E12: TOTAL
B14: RETRIBUCIONES AL PERSONAL | C14: 75166329.27 | D14: 2141287.933 | E14: 77307617.2
B16: MATERIALES Y SUMINISTROS | C16: 42087105.89 | D16: 1054748.75 | E16: 43141854.64
B18: ENERGÍA Y FLUÍDOS | C18: 29242637.23 | D18: 1690490.671 | E18: 30933127.9
B20: SERVICIOS CONTRATADOS | C20: 25590057.17 | D20: 19246079.8 | E20: 44836136.98
B22: GASTOS VARIOS | C22: 8034773.662 | D22: 463126.5399 | E22: 8497900.202
B24: AMORTIZACIÓN | C24: 52921887.34 | D24: 26958366.61 | E24: 79880253.95
B27: TOTAL | C27: 233042790.6 | D27: 51554100.3 | E27: 284596890.9 | G27: 0.690936681
B32: C O N C E P T O | C32: C O S T O D E A D M I N I S T R A T I V O - C O M E R C I A L
C35: COMERCIALIZACIÓN | D35: ADMINISTRACIÓN | E35: TOTAL
B37: RETRIBUCIONES AL PERSONAL | C37: 60579834.03 | D37: 6908030.343 | E37: 67487864.37
B39: MATERIALES Y SUMINISTROS | C39: 5359582.361 | D39: 131023.2022 | E39: 5490605.563
B41: ENERGÍA Y FLUÍDOS | C41: 240303.2928 | D41: 4658967.46 | E41: 4899270.753
B43: SERVICIOS CONTRATADOS | C43: 32300363.78 | D43: 2552513.088 | E43: 34852876.86
B45: GASTOS VARIOS | C45: 7084660.974 | D45: 2049972.882 | E45: 9134633.856
B47: AMORTIZACIÓN | C47: 4257294.285 | D47: 1180667.615 | E47: 5437961.9
B51: TOTAL | C51: 109822038.7 | D51: 17481174.59 | E51: 127303213.3 | G51: 0.309063319
A56: C O S T O D E E X P L O T A C I Ó N | G56: 411900104.2

Sheet C-COL-302
A3: COBERTURAS, COSTOS E INGRESOS PROMEDIO
A5: C O L O N I A
B9: 1. COMPOSICIÓN DEL COSTO PROPIO POR CONEXIÓN | C9: OPERATIVOS | E9: ADMINISTRATIVO-COMERCIAL
C11: AGUA | D11: ALCANTARILLADO
C12: ($/conex.agua) | D12: ($/conex.desagüe) | E12: ($/conex.agua)
B14: RETRIBUCIONES AL PERSONAL | C14: 1320.120291 | D14: 137.9695833 | E14: 1185.266063
B16: MATERIALES Y SUMINISTROS | C16: 739.1613111 | D16: 67.96061534 | E16: 96.42960999
B18: ENERGÍA Y FLUÍDOS | C18: 513.5783423 | D18: 108.923368 | E18: 86.04420087
B20: SERVICIOS CONTRATADOS | C20: 449.4293397 | D20: 1240.082462 | E20: 612.1090441
B22: GASTOS VARIOS | C22: 141.111956 | D22: 29.84062757 | E22: 160.4284209
B24: AMORTIZACIÓN | C24: 929.4488372 | D24: 1737.008158 | E24: 95.5050475
B28: TOTAL | C28: 4092.850078 | D28: 3321.784813 | E28: 2235.782387
B31: 2.CONEXIONES (promedio anual) | C31: 56939 | D31: 15520
B34: 3.COBERTURAS COSTO/INGRESO
B36: 3.1 COSTO DE EXPLOTACIÓN/ INGRESO DE EXPLOT. | C36: 1.033397681 | D36: 0.9094275241 | E36: 0
B38: 3.3 TOTAL | C38: 1.190408172 | D38: 1.075763148
B41: 4.M3 ELEVADOS | C41: 8787120
B43: 5.M3 FACTURADOS | C43: 5896150
B46: 6. COSTO PROMEDIO
B48: 6.1 COSTO VARIABLE/ M3ELEVADOS | C48: 9.914547383
B50: 6.2 COSTO VARIABLE / M3FACTURADOS | C50: 14.77579736
B52: 6.3 COSTO EXPLOTACIÓN/M3FACT | C52: 80.15520786
B54: 6.4 TOTAL/M3FACT | C54: 99.84403128
B57: 7. INGRESOS PROMEDIO
B59: 7.1 VARIABLE/M3 FACT | C59: 40.64422053
B61: 7.2 FIJO/CONEXIONES | C61: 278.980425
B63: 7.3 INGRESO EXPLOTACIÓN/M3FACT | C63: 77.56472587
B65: 7.4 TOTAL/M3FACT | C65: 83.87377844

Sheet A-FLO-303
A2: FLORES | B2: ESTADO DE RENDIMIENTO ECONÓMICO (a valores históricos) | G2: PERÍODO ENERO-DICIEMBRE-2020
B4: AGUA POTABLE
A5: CONCEPTOS | B5: USINA | C5: PERFORACIÓN | D5: MIXTO | E5: SUB-TOTAL | F5: ALCANTARILLADO | G5: OTROS INGRESOS | H5: TOTAL
A6: INGRESOS
A7: Ingresos Variables | B7: 43029819.37 | D7: 2336387.58 | E7: 45366206.95 | H7: 45366206.95
A8: Ingresos Fijos | B8: 34543677.9 | D8: 2299371.96 | E8: 36843049.86 | F8: -26068.96 | H8: 36816980.9
A9: INGRESOS DE EXPLOTACIÓN | B9: 77573497.27 | D9: 4635759.54 | E9: 82209256.81 | F9: -26068.96 | H9: 82183187.85
A10: Ingresos Alcantarillado | F10: 48973168.17 | H10: 48973168.17
A11: Otros Ingresos | B11: 5190615.08 | D11: 287110.07 | E11: 5477725.15 | F11: 608046.67 | H11: 6085771.82
A12: TOTAL ING. DE EXPLOTACIÓN | B12: 82764112.35 | D12: 4922869.61 | E12: 87686981.96 | F12: 49555145.88 | H12: 137242127.8
A13: COSTOS DE EXPLOTACIÓN
A14: OPERATIVO
A15: Costo Operativo Var | B15: 17554338.88 | D15: 461427.34 | E15: 18015766.22 | F15: 7378394.61 | H15: 25394160.83
A16: Costo Operativo Fijo | B16: 25915927.74 | D16: 2020415.91 | E16: 27936343.65 | F16: 24513621.71 | H16: 52449965.36
A17: TOTAL OPERATIVO | B17: 43470266.62 | D17: 2481843.25 | E17: 45952109.87 | F17: 31892016.32 | H17: 77844126.19
A18: NO OPERATIVO
A19: COMERCIALIZACIÓN
A20: Comercial Propios | B20: 20423388.3 | D20: 1413851.44 | E20: 21837239.74 | F20: 9310633.47 | H20: 31147873.21
A21: Comercial Asignados | B21: 9111810.29 | D21: 541977.18 | E21: 9653787.47 | F21: 5455711.1 | H21: 15109498.57
A22: TOTAL COMERCIALIZACIÓN | B22: 29535198.59 | D22: 1955828.62 | E22: 31491027.21 | F22: 14766344.57 | H22: 46257371.78
A23: ADMINISTRACIÓN
A24: Administración Propios | B24: 6560519.82 | D24: 454165.55 | E24: 7014685.37 | F24: 2990815.95 | H24: 10005501.32
A25: Administ. Asignados | B25: 9804575.69 | D25: 583183.42 | E25: 10387759.11 | F25: 5870505.61 | H25: 16258264.72
A26: Gastos Fiscales | B26: 4162838.69 | D26: 247608.69 | E26: 4410447.38 | F26: 2492506.42 | H26: 6902953.8
A27: ADMINISTRACIÓN | B27: 20527934.2 | D27: 1284957.66 | E27: 21812891.86 | F27: 11353827.98 | H27: 33166719.84
A28: TOTAL NO OPERATIVO | B28: 50063132.79 | D28: 3240786.28 | E28: 53303919.07 | F28: 26120172.55 | H28: 79424091.62
A29: COSTO DE EXPLOTACIÓN | B29: 93533399.41 | D29: 5722629.53 | E29: 99256028.94 | F29: 58012188.87 | H29: 157268217.8
A30: RESULTADO DE EXPLOTACIÓN | B30: -10769287.06 | D30: -799759.92 | E30: -11569046.98 | F30: -8457042.99 | H30: -20026089.97
A31: DIVERSOS Y EXTRAORDINARIOS
A32: Ingresos Div. y Extr | B32: 1547775.87 | D32: 92062.83 | E32: 1639838.7 | F32: 926733.46 | H32: 2566572.16
A33: Gtos. Div. y Extraor | B33: 1328409.53 | D33: 79014.77 | E33: 1407424.3 | F33: 795387.42 | H33: 2202811.72
A34: RESULTADOS DIV. Y EXTRAORDINARIOS | B34: 219366.34 | D34: 13048.06 | E34: 232414.4 | F34: 131346.04 | H34: 363760.44
A35: FINANCIEROS
A36: Ingresos Financieros | B36: 5184190.61 | D36: 308359.47 | E36: 5492550.08 | F36: 3104042.52 | H36: 8596592.6
A37: Gastos Financieros | B37: 15899677.76 | D37: 945724.48 | E37: 16845402.24 | F37: 9519957.81 | H37: 26365360.05
A38: RESULTADO FINANCIERO | B38: -10715487.15 | D38: -637365.01 | E38: -11352852.16 | F38: -6415915.29 | H38: -17768767.45
A39: I.R.A.E. | B39: 3780534.45 | D39: 224868.96 | E39: 4005403.41 | F39: 2263601.12 | H39: 6269004.53
A40: RESULTADO NETO | B40: -17484873.42 | D40: -1199207.91 | E40: -18684081.33 | F40: -12478011.12 | H40: -31162092.45

Sheet B-FLO-303
A3: F L O R E S
C5: C O S T O S T O T A L E S
B9: C O N C E P T O | C9: C O S T O S O P E R A T I V O S
C12: AGUA | D12: ALCANTARILLADO | E12: TOTAL
B14: RETRIBUCIONES AL PERSONAL | C14: 12210723.1 | D14: 12258952.19 | E14: 24469675.29
B16: MATERIALES Y SUMINISTROS | C16: 9140981.932 | D16: 352874.2153 | E16: 9493856.147
B18: ENERGÍA Y FLUÍDOS | C18: 7371718.695 | D18: 4107723.254 | E18: 11479441.95
B20: SERVICIOS CONTRATADOS | C20: 2573833.558 | D20: 8248230.579 | E20: 10822064.14
B22: GASTOS VARIOS | C22: 2201523.118 | D22: 375151.999 | E22: 2576675.117
B24: AMORTIZACIÓN | C24: 12453329.46 | D24: 6549084.09 | E24: 19002413.55
B27: TOTAL | C27: 45952109.87 | D27: 31892016.32 | E27: 77844126.19 | G27: 0.65416606
B32: C O N C E P T O | C32: C O S T O D E A D M I N I S T R A T I V O - C O M E R C I A L
C35: COMERCIALIZACIÓN | D35: ADMINISTRACIÓN | E35: TOTAL
B37: RETRIBUCIONES AL PERSONAL | C37: 19891382.23 | D37: 4836781.296 | E37: 24728163.53
B39: MATERIALES Y SUMINISTROS | C39: 950701.3128 | D39: 166004.9393 | E39: 1116706.252
B41: ENERGÍA Y FLUÍDOS | C41: 30320.99356 | D41: 1222721.322 | E41: 1253042.316
B43: SERVICIOS CONTRATADOS | C43: 7675802.675 | D43: 2086029.085 | E43: 9761831.76
B45: GASTOS VARIOS | C45: 1596857.556 | D45: 1071676.662 | E45: 2668534.218
B47: AMORTIZACIÓN | C47: 1002808.438 | D47: 622288.0161 | E47: 1625096.454
B51: TOTAL | C51: 31147873.21 | D51: 10005501.32 | E51: 41153374.53 | G51: 0.34583394
A56: C O S T O D E E X P L O T A C I Ó N | G56: 118997500.7

Sheet C-FLO-303
A3: COBERTURAS, COSTOS E INGRESOS PROMEDIO
A5: F L O R E S
B9: 1. COMPOSICIÓN DEL COSTO PROPIO POR CONEXIÓN | C9: OPERATIVOS | E9: ADMINISTRATIVO-COMERCIAL
C11: AGUA | D11: ALCANTARILLADO
C12: ($/conex.agua) | D12: ($/conex.desagüe) | E12: ($/conex.agua)
B14: RETRIBUCIONES AL PERSONAL | C14: 1096.508899 | D14: 1290.959582 | E14: 2220.560662
B16: MATERIALES Y SUMINISTROS | C16: 820.8496706 | D16: 37.16030068 | E16: 100.2789379
B18: ENERGÍA Y FLUÍDOS | C18: 661.9718655 | D18: 432.5740579 | E18: 112.5217597
B20: SERVICIOS CONTRATADOS | C20: 231.1272951 | D20: 868.6005243 | E20: 876.6012715
B22: GASTOS VARIOS | C22: 197.6942455 | D22: 39.50631835 | E22: 239.6313055
B24: AMORTIZACIÓN | C24: 1118.294672 | D24: 689.667659 | E24: 145.9317936
B28: TOTAL | C28: 4126.446648 | D28: 3358.468442 | E28: 3695.52573
B31: 2.CONEXIONES (promedio anual) | C31: 11136 | D31: 9496
B34: 3.COBERTURAS COSTO/INGRESO
B36: 3.1 COSTO DE EXPLOTACIÓN/ INGRESO DE EXPLOT. | C36: 1.131935741 | D36: 1.170659229 | E36: 0
B38: 3.3 TOTAL | C38: 1.281534121 | D38: 1.317344794
B41: 4.M3 ELEVADOS | C41: 2058610
B43: 5.M3 FACTURADOS | C43: 1167200
B46: 6. COSTO PROMEDIO
B48: 6.1 COSTO VARIABLE/ M3ELEVADOS | C48: 8.751422669
B50: 6.2 COSTO VARIABLE / M3FACTURADOS | C50: 15.43502932
B52: 6.3 COSTO EXPLOTACIÓN/M3FACT | C52: 85.03772185
B54: 6.4 TOTAL/M3FACT | C54: 104.1074871
B57: 7. INGRESOS PROMEDIO
B59: 7.1 VARIABLE/M3 FACT | C59: 38.86755222
B61: 7.2 FIJO/CONEXIONES | C61: 275.7052941
B63: 7.3 INGRESO EXPLOTACIÓN/M3FACT | C63: 75.12592697
B65: 7.4 TOTAL/M3FACT | C65: 81.23660961

Sheet A-SOR-304
A2: SORIANO | B2: ESTADO DE RENDIMIENTO ECONÓMICO (a valores históricos) | G2: PERÍODO ENERO-DICIEMBRE-2020
B4: AGUA POTABLE
A5: CONCEPTOS | B5: USINA | C5: PERFORACIÓN | D5: MIXTO | E5: SUB-TOTAL | F5: ALCANTARILLADO | G5: OTROS INGRESOS | H5: TOTAL
A6: INGRESOS
A7: Ingresos Variables | B7: 82571938.79 | C7: 24739705.48 | D7: 34317081.66 | E7: 141628725.9 | H7: 141628725.9
A8: Ingresos Fijos | B8: 60780642.11 | C8: 20735376.2 | D8: 29148765.95 | E8: 110664784.3 | F8: -9854.56 | H8: 110654929.7
A9: INGRESOS DE EXPLOTACIÓN | B9: 143352580.9 | C9: 45475081.68 | D9: 63465847.61 | E9: 252293510.2 | F9: -9854.56 | H9: 252283655.6
A10: Ingresos Alcantarillado | F10: 112212047.4 | H10: 112212047.4
A11: Otros Ingresos | B11: 7920668.04 | C11: 2823621.62 | D11: 5460836.32 | E11: 16205125.98 | F11: 1472235.38 | H11: 17677361.36
A12: TOTAL ING. DE EXPLOTACIÓN | B12: 151273248.9 | C12: 48298703.3 | D12: 68926683.93 | E12: 268498636.2 | F12: 113674428.2 | H12: 382173064.4
A13: COSTOS DE EXPLOTACIÓN
A14: OPERATIVO
A15: Costo Operativo Var | B15: 43598854.38 | C15: 5070665.16 | D15: 10098871.99 | E15: 58768391.53 | F15: 3634822.6 | H15: 62403214.13
A16: Costo Operativo Fijo | B16: 49424579.11 | C16: 14486232.86 | D16: 24917676.93 | E16: 88828488.9 | F16: 28808285.81 | H16: 117636774.7
A17: TOTAL OPERATIVO | B17: 93023433.49 | C17: 19556898.02 | D17: 35016548.92 | E17: 147596880.4 | F17: 32443108.41 | H17: 180039988.8
A18: NO OPERATIVO
A19: COMERCIALIZACIÓN
A20: Comercial Propios | B20: 31983060.08 | C20: 11757896.89 | D20: 16068766.51 | E20: 59809723.48 | F20: 16641752.88 | H20: 76451476.36
A21: Comercial Asignados | B21: 16654237.08 | C21: 5317384.61 | D21: 7588396.04 | E21: 29560017.73 | F21: 12514842.5 | H21: 42074860.23
A22: TOTAL COMERCIALIZACIÓN | B22: 48637297.16 | C22: 17075281.5 | D22: 23657162.55 | E22: 89369741.21 | F22: 29156595.38 | H22: 118526336.6
A23: ADMINISTRACIÓN
A24: Administración Propios | B24: 4552349.78 | C24: 1673575.43 | D24: 2287168.4 | E24: 8513093.61 | F24: 2368725.19 | H24: 10881818.8
A25: Administ. Asignados | B25: 17920448.51 | C25: 5721662.3 | D25: 8165337.35 | E25: 31807448.16 | F25: 13466338.29 | H25: 45273786.45
A26: Gastos Fiscales | B26: 7608685.92 | C26: 2429310.29 | D26: 3466848.85 | E26: 13504845.06 | F26: 5717554.32 | H26: 19222399.38
A27: TOTAL ADMINISTRACIÓN | B27: 30081484.21 | C27: 9824548.02 | D27: 13919354.6 | E27: 53825386.83 | F27: 21552617.8 | H27: 75378004.63
A28: TOTAL NO OPERATIVO | B28: 78718781.37 | C28: 26899829.52 | D28: 37576517.15 | E28: 143195128 | F28: 50709213.18 | H28: 193904341.2
A29: COSTO DE EXPLOTACIÓN | B29: 171742214.9 | C29: 46456727.54 | D29: 72593066.07 | E29: 290792008.5 | F29: 83152321.59 | H29: 373944330.1
A30: RESULTADO DE EXPLOTACIÓN | B30: -20468965.92 | C30: 1841975.76 | D30: -3666382.14 | E30: -22293372.3 | F30: 30522106.65 | H30: 8228734.35
A31: DIVERSOS Y EXTRAORDINARIOS
A32: Ingresos Div. y Extr | B32: 2828968.67 | C32: 903236.5 | D32: 1289001.41 | E32: 5021206.58 | F32: 2125831.13 | H32: 7147037.71
A33: Gtos. Div. y Extraor | B33: 2428018.84 | C33: 775220.78 | D33: 1106311.27 | E33: 4309550.89 | F33: 1824537.17 | H33: 6134088.06
A34: RESULTADOS DIV. Y EXTRAORDINARIOS | B34: 400949.83 | C34: 128015.72 | D34: 182690.14 | E34: 711655.69 | F34: 301293.96 | H34: 1012949.65
A35: FINANCIEROS
A36: Ingresos Financieros | B36: 9475476.03 | C36: 3025341.26 | D36: 4317439.78 | E36: 16818257.07 | F36: 7120355.56 | H36: 23938612.63
A37: Gastos Financieros | B37: 29060855.69 | C37: 9278584.59 | D37: 13241392.18 | E37: 51580832.46 | F37: 21837807.86 | H37: 73418640.32
A38: RESULTADO FINANCIERO | B38: -19585379.66 | C38: -6253243.33 | D38: -8923952.4 | E38: -34762575.39 | F38: -14717452.3 | H38: -49480027.69
A39: I.R.A.E. | B39: 6909924.06 | C39: 2206208.78 | D39: 3148462.5 | E39: 12264595.34 | F39: 5192469.06 | G39: 0 | H39: 17457064.4
A40: RESULTADO NETO | B40: -32743471.69 | C40: -2077043.07 | D40: -9259181.9 | E40: -44079696.66 | F40: 21298417.37 | G40: 0 | H40: -22781279.29

Sheet B-SOR-304
A3: S O R I A N O
C5: C O S T O S T O T A L E S
B9: C O N C E P T O | C9: C O S T O S O P E R A T I V O S
C12: AGUA | D12: ALCANTARILLADO | E12: TOTAL
B14: RETRIBUCIONES AL PERSONAL | C14: 42096504.02 | D14: 3365087.047 | E14: 45461591.07
B16: MATERIALES Y SUMINISTROS | C16: 35609208.16 | D16: 559089.218 | E16: 36168297.38
B18: ENERGÍA Y FLUÍDOS | C18: 19793810.67 | D18: 367249.9431 | E18: 20161060.62
B20: SERVICIOS CONTRATADOS | C20: 15275845.33 | D20: 8542688.119 | E20: 23818533.45
B22: GASTOS VARIOS | C22: 5387320.062 | D22: 266910.3534 | E22: 5654230.415
B24: AMORTIZACIÓN | C24: 29434192.19 | D24: 19342083.73 | E24: 48776275.92
B27: TOTAL | C27: 147596880.4 | D27: 32443108.41 | E27: 180039988.8 | G27: 0.6733656637
B32: C O N C E P T O | C32: C O S T O D E A D M I N I S T R A T I V O - C O M E R C I A L
C35: COMERCIALIZACIÓN | D35: ADMINISTRACIÓN | E35: TOTAL
B37: RETRIBUCIONES AL PERSONAL | C37: 43888266.46 | D37: 4597360.695 | E37: 48485627.16
B39: MATERIALES Y SUMINISTROS | C39: 2624023.001 | D39: 219902.2083 | E39: 2843925.21
B41: ENERGÍA Y FLUÍDOS | C41: 153235.8293 | D41: 2053402.615 | E41: 2206638.444
B43: SERVICIOS CONTRATADOS | C43: 21584137.39 | D43: 2132068.292 | E43: 23716205.68
B45: GASTOS VARIOS | C45: 5589168.25 | D45: 1054277.725 | E45: 6643445.975
B47: AMORTIZACIÓN | C47: 2612645.434 | D47: 824807.2649 | E47: 3437452.698
B51: TOTAL | C51: 76451476.36 | D51: 10881818.8 | E51: 87333295.16 | G51: 0.3266343363
A56: C O S T O D E E X P L O T A C I Ó N | G56: 267373284

Sheet C-SOR-304
A3: COBERTURAS, COSTOS E INGRESOS PROMEDIO
A5: S O R I A N O
B9: 1. COMPOSICIÓN DEL COSTO PROPIO POR CONEXIÓN | C9: OPERATIVOS | E9: ADMINISTRATIVO-COMERCIAL
C11: AGUA | D11: ALCANTARILLADO
C12: ($/conex.agua) | D12: ($/conex.desagüe) | E12: ($/conex.agua)
B14: RETRIBUCIONES AL PERSONAL | C14: 1264.23521 | D14: 181.6021072 | E14: 1456.112294
B16: MATERIALES Y SUMINISTROS | C16: 1069.409819 | D16: 30.17211106 | E16: 85.40828907
B18: ENERGÍA Y FLUÍDOS | C18: 594.4444313 | D18: 19.81920902 | E18: 66.26939888
B20: SERVICIOS CONTRATADOS | C20: 458.7616471 | D20: 461.0193265 | E20: 712.2411459
B22: GASTOS VARIOS | C22: 161.7911004 | D22: 14.40422846 | E22: 199.514865
B24: AMORTIZACIÓN | C24: 883.9627661 | D24: 1043.82535 | E24: 103.2330079
B28: TOTAL | C28: 4432.604974 | D28: 1750.842332 | E28: 2622.779001
B31: 2.CONEXIONES (promedio anual) | C31: 33298 | D31: 18530
B34: 3.COBERTURAS COSTO/INGRESO
B36: 3.1 COSTO DE EXPLOTACIÓN/ INGRESO DE EXPLOT. | C36: 1.083029741 | D36: 0.7314954021 | E36: 0
B38: 3.3 TOTAL | C38: 1.236306869 | D38: 0.9112152241
B41: 4.M3 ELEVADOS | C41: 6745510
B43: 5.M3 FACTURADOS | C43: 3708850
B46: 6. COSTO PROMEDIO
B48: 6.1 COSTO VARIABLE/ M3ELEVADOS | C48: 8.712223617
B50: 6.2 COSTO VARIABLE / M3FACTURADOS | C50: 15.84544846
B52: 6.3 COSTO EXPLOTACIÓN/M3FACT | C52: 78.40489868
B54: 6.4 TOTAL/M3FACT | C54: 96.78120904
B57: 7. INGRESOS PROMEDIO
B59: 7.1 VARIABLE/M3 FACT | C59: 38.18669559
B61: 7.2 FIJO/CONEXIONES | C61: 276.9555335
B63: 7.3 INGRESO EXPLOTACIÓN/M3FACT | C63: 72.39404025
B65: 7.4 TOTAL/M3FACT | C65: 78.2825134

Sheet A-100-AG-LITORAL NORTE
A2: AMBITO GEOGRÁFICO LITORAL NORTE | B2: ESTADO DE RENDIMIENTO ECONÓMICO (a valores históricos) | G2: PERÍODO ENERO-DICIEMBRE-2020
B4: AGUA POTABLE
A5: CONCEPTOS | B5: USINA | C5: PERFORACIÓN | D5: MIXTO | E5: SUB-TOTAL | F5: ALCANTARILLADO | G5: OTROS INGRESOS | H5: TOTAL
A6: INGRESOS
A7: Ingresos Variables | B7: 214136710.3 | C7: 69262293.08 | D7: 274580735.7 | E7: 557979739.1 | H7: 557979739.1
A8: Ingresos Fijos | B8: 152117418.3 | C8: 49238702.22 | D8: 204936043.9 | E8: 406292164.5 | F8: -20433.99 | H8: 406271730.5
A9: INGRESOS DE EXPLOTACIÓN | B9: 366254128.6 | C9: 118500995.3 | D9: 479516779.6 | E9: 964271903.5 | F9: -20433.99 | H9: 964251469.6
A10: Ingresos Alcantarillado | F10: 532933491.8 | H10: 532933491.8
A11: Otros Ingresos | B11: 26262592.99 | C11: 8172058.51 | D11: 34083720.17 | E11: 68518371.67 | F11: 6440230.68 | H11: 74958602.35
A12: TOTAL ING. DE EXPLOTACIÓN | B12: 392516721.6 | C12: 126673053.8 | D12: 513600499.8 | E12: 1032790275 | F12: 539353288.5 | H12: 1572143564
A13: COSTOS DE EXPLOTACIÓN
A14: OPERATIVO
A15: Costo Operativo Var | B15: 91464727.95 | C15: 21844885.28 | D15: 100980643.6 | E15: 214290256.8 | F15: 22739518.85 | H15: 237029775.7
A16: Costo Operativo Fijo | B16: 106158890.1 | C16: 80128978 | D16: 312559622 | E16: 498847490.2 | F16: 123726428.2 | H16: 622573918.4
A17: TOTAL OPERATIVO | B17: 197623618.1 | C17: 101973863.3 | D17: 413540265.6 | E17: 713137747 | F17: 146465947.1 | H17: 859603694.1
A18: NO OPERATIVO
A19: COMERCIALIZACIÓN
A20: Comercial Propios | B20: 91107158.05 | C20: 39162799.17 | D20: 134407305.7 | E20: 264677262.9 | F20: 86197850.38 | H20: 350875113.3
A21: Comercial Asignados | B21: 43213632.07 | C21: 13945909.66 | D21: 56544197.7 | E21: 113703739.4 | F21: 59379418.33 | H21: 173083157.8
A22: TOTAL COMERCIALIZACIÓN | B22: 134320790.1 | C22: 53108708.83 | D22: 190951503.4 | E22: 378381002.4 | F22: 145577268.7 | H22: 523958271.1
A23: ADMINISTRACIÓN
A24: Administración Propios | B24: 21340032.74 | C24: 9053212.69 | D24: 32120544.32 | E24: 62513789.75 | F24: 20175136.35 | H24: 82688926.1
A25: Administ. Asignados | B25: 46499138.12 | C25: 15006208.64 | D25: 60843218.26 | E25: 122348565 | F25: 63893999.12 | H25: 186242564.1
A26: Gastos Fiscales | B26: 19742660.9 | C26: 6371354.41 | D26: 25832887.97 | E26: 51946903.28 | F26: 27128192.24 | H26: 79075095.52
A27: TOTAL ADMINISTRACIÓN | B27: 87581831.76 | C27: 30430775.74 | D27: 118796650.5 | E27: 236809258.1 | F27: 111197327.7 | H27: 348006585.8
A28: TOTAL NO OPERATIVO | B28: 221902621.9 | C28: 83539484.57 | D28: 309748154 | E28: 615190260.4 | F28: 256774596.4 | H28: 871964856.9
A29: COSTO DE EXPLOTACIÓN | B29: 419526240 | C29: 185513347.8 | D29: 723288419.6 | E29: 1328328007 | F29: 403240543.5 | H29: 1731568551
A30: RESULTADO DE EXPLOTACIÓN | B30: -27009518.36 | C30: -58840294.04 | D30: -209687919.8 | E30: -295537732.2 | F30: 136112745 | H30: -159424987.2
A31: DIVERSOS Y EXTRAORDINARIOS
A32: Ingresos Div. y Extr | B32: 7340475.5 | C32: 2368919.27 | D32: 9604868.96 | E32: 19314263.73 | F32: 10086473.27 | H32: 29400737
A33: Gtos. Div. y Extraor | B33: 6300109.4 | C33: 2033172.34 | D33: 8243570.59 | E33: 16576852.33 | F33: 8656917.03 | H33: 25233769.36
A34: RESULTADOS DIV. Y EXTRAORDINARIOS | B34: 1040366.1 | C34: 335746.93 | D34: 1361298.37 | E34: 2737411.4 | F34: 1429556.24 | H34: 4166967.64
A35: FINANCIEROS
A36: Ingresos Financieros | B36: 24586520.22 | C36: 7934565.4 | D36: 32170983.72 | E36: 64692069.34 | F36: 33784090.71 | H36: 98476160.05
A37: Gastos Financieros | B37: 75405743.46 | C37: 24334952.58 | D37: 98666949.43 | E37: 198407645.5 | F37: 103614275.5 | H37: 302021920.9
A38: RESULTADO FINANCIERO | B38: -50819223.24 | C38: -16400387.18 | D38: -66495965.71 | E38: -133715576.1 | F38: -69830184.74 | H38: -203545760.9
A39: I.R.A.E. | B39: 17929546.43 | C39: 5786225.85 | D39: 23460462.95 | E39: 47176235.23 | F39: 24636809.85 | H39: 71813045.08
A40: RESULTADO NETO | B40: -58858829.07 | C40: -69118708.44 | D40: -251362124.2 | E40: -379339661.7 | F40: 92348926.34 | H40: -286990735.4

Sheet B-100-AG-LITORAL NORTE
A3: AMBITO GEOGRÁFICO LITORAL NORTE
C5: C O S T O S T O T A L E S
B9: C O N C E P T O | C9: C O S T O S O P E R A T I V O S
C12: AGUA | D12: ALCANTARILLADO | E12: TOTAL
B14: RETRIBUCIONES AL PERSONAL | C14: 171408909.7 | D14: 14486637.19 | E14: 185895546.8
B16: MATERIALES Y SUMINISTROS | C16: 94111876.71 | D16: 1089764.876 | E16: 95201641.59
B18: ENERGIA Y FLUÍDOS | C18: 82747031.55 | D18: 17193952.58 | E18: 99940984.13
B20: SERVICIOS CONTRATADOS | C20: 83677008.97 | D20: 38091226.45 | E20: 121768235.4
B22: GASTOS VARIOS | C22: 24663372.2 | D22: 1440492.977 | E22: 26103865.17
B24: AMORTIZACIÓN | C24: 256529547.9 | D24: 74163873.02 | E24: 330693420.9
B27: TOTAL | C27: 713137747 | D27: 146465947.1 | E27: 859603694.1 | G27: 0.6647271439
B32: C O N C E P T O | C32: C O S T O D E A D M I N I S T R A T I V O - C O M E R C I A L
C35: COMERCIALIZACIÓN | D35: ADMINISTRACIÓN | E35: TOTAL
B37: RETRIBUCIONES AL PERSONAL | C37: 136018698.6 | D37: 25718979.97 | E37: 161737678.5
B39: MATERIALES Y SUMINISTROS | C39: 10806135.92 | D39: 1661838.719 | E39: 12467974.64
B41: ENERGIA Y FLUÍDOS | C41: 968504.6841 | D41: 11538838.04 | E41: 12507342.72
B43: SERVICIOS CONTRATADOS | C43: 152992710.4 | D43: 30545059.9 | E43: 183537770.3
B45: GASTOS VARIOS | C45: 32340753.58 | D45: 8639892.118 | E45: 40980645.7
B47: AMORTIZACIÓN | C47: 17748310.2 | D47: 4584317.356 | E47: 22332627.56
B51: TOTAL | C51: 350875113.3 | D51: 82688926.1 | E51: 433564039.4 | G51: 0.3352728561
A56: C O S T O D E E X P L O T A C I Ó N | G56: 1293167734

Sheet C-100-AG-LITORAL NORTE
C3: COBERTURAS, COSTOS E INGRESOS PROMEDIO
C5: A M B I T O G E O G R Á F I C O L I T O R A L N O R T E
B9: 1. COMPOSICIÓN DEL COSTO PROPIO POR CONEXIÓN | C9: OPERATIVOS | E9: ADMINISTRATIVO-COMERCIAL
C11: AGUA | D11: ALCANTARILLADO
C12: ($/conex.agua) | D12: ($/conex.desagüe) | E12: ($/conex.agua)
B14: RETRIBUCIONES AL PERSONAL | C14: 1329.93684 | D14: 171.1195302 | E14: 1254.899162
B16: MATERIALES Y SUMINISTROS | C16: 730.2003857 | D16: 12.87255636 | E16: 96.73720482
B18: ENERGIA Y FLUÍDOS | C18: 642.0222024 | D18: 203.0989697 | E18: 97.04265604
B20: SERVICIOS CONTRATADOS | C20: 649.2377621 | D20: 449.9424324 | E20: 1424.042909
B22: GASTOS VARIOS | C22: 191.3595236 | D22: 17.01543831 | E22: 317.9628793
B24: AMORTIZACIÓN | C24: 1990.375512 | D24: 876.0409296 | E24: 173.2756143
B28: TOTAL | C28: 5533.132226 | D28: 1730.089857 | E28: 3363.960425
B31: 2.CONEXIONES (promedio anual) | C31: 128885 | D31: 84658
B34: 3.COBERTURAS COSTO/INGRESO
B36: 3.1 COSTO DE EXPLOTACIÓN/ INGRESO DE EXPLOT. | C36: 1.286154643 | D36: 0.7476371278 | E36: 0
B38: 3.3 TOTAL | C38: 1.424152553 | D38: 0.9261427556
B41: 4.M3 ELEVADOS | C41: 33536080
B43: 5.M3 FACTURADOS | C43: 15897670
B46: 6. COSTO PROMEDIO
B48: 6.1 COSTO VARIABLE/ M3ELEVADOS | C48: 6.38984213
B50: 6.2 COSTO VARIABLE / M3FACTURADOS | C50: 13.47934992
B52: 6.3 COSTO EXPLOTACIÓN/M3FACT | C52: 83.55488618
B54: 6.4 TOTAL/M3FACT | C54: 100.0453991
B57: 7. INGRESOS PROMEDIO
B59: 7.1 VARIABLE/M3 FACT | C59: 35.09820867
B61: 7.2 FIJO/CONEXIONES | C61: 262.6968256
B63: 7.3 INGRESO EXPLOTACIÓN/M3FACT | C63: 64.96488323
B65: 7.4 TOTAL/M3FACT | C65: 73.58476641

Sheet A-PAY-101
A2: PAYSANDÚ | B2: ESTADO DE RENDIMIENTO ECONÓMICO (a valores históricos) | G2: PERÍODO ENERO-DICIEMBRE-2020
B4: AGUA POTABLE
A5: CONCEPTOS | B5: USINA | C5: PERFORACIÓN | D5: MIXTO | E5: SUB-TOTAL | F5: ALCANTARILLADO | G5: OTROS INGRESOS | H5: TOTAL
A6: INGRESOS
A7: Ingresos Variables | B7: 167302835.3 | C7: 20224596.3 | E7: 187527431.6 | H7: 187527431.6
A8: Ingresos Fijos | B8: 117780063.6 | C8: 15378059.64 | E8: 133158123.2 | F8: -4889.14 | H8: 133153234.1
A9: INGRESOS DE EXPLOTACIÓN | B9: 285082898.9 | C9: 35602655.94 | E9: 320685554.8 | F9: -4889.14 | H9: 320680665.7
A10: Ingresos Alcantarillado | F10: 171100133.5 | H10: 171100133.5
A11: Otros Ingresos | B11: 20434541.22 | C11: 2551884.98 | E11: 22986426.2 | F11: 1433465.79 | H11: 24419891.99
A12: TOTAL ING. DE EXPLOTACIÓN | B12: 305517440.1 | C12: 38154540.92 | E12: 343671981 | F12: 172528710.1 | H12: 516200691.1
A13: COSTOS DE EXPLOTACIÓN
A14: OPERATIVO
A15: Costo Operativo Var | B15: 66064130.68 | C15: 8476465.82 | E15: 74540596.5 | F15: 3171739.75 | H15: 77712336.25
A16: Costo Operativo Fijo | B16: 64376580.27 | C16: 29191509.92 | E16: 93568090.19 | F16: 24978420.08 | H16: 118546510.3
A17: TOTAL OPERATIVO | B17: 130440711 | C17: 37667975.74 | E17: 168108686.7 | F17: 28150159.83 | H17: 196258846.5
A18: NO OPERATIVO
A19: COMERCIALIZACIÓN
A20: Comercial Propios | B20: 62079351.6 | C20: 10353853.37 | E20: 72433204.97 | F20: 23351318.14 | H20: 95784523.11
A21: Comercial Asignados | B21: 33635556.17 | C21: 4200576.03 | E21: 37836132.2 | F21: 18994330.12 | H21: 56830462.32
A22: TOTAL COMERCIALIZACIÓN | B22: 95714907.77 | C22: 14554429.4 | E22: 110269337.2 | F22: 42345648.26 | H22: 152614985.4
A23: ADMINISTRACIÓN
A24: Administración Propios | B24: 14982381.63 | C24: 2498824.16 | E24: 17481205.79 | F24: 5635663.99 | H24: 23116869.78
A25: Administ. Asignados | B25: 36192846.92 | C25: 4519943.21 | E25: 40712790.13 | F25: 20438457.49 | H25: 61151247.62
A26: Gastos Fiscales | B26: 15366803.19 | C26: 1919083 | E26: 17285886.19 | F26: 8677785.25 | H26: 25963671.44
A27: TOTAL ADMINISTRACIÓN | B27: 66542031.74 | C27: 8937850.37 | E27: 75479882.11 | F27: 34751906.73 | H27: 110231788.8
A28: TOTAL NO OPERATIVO | B28: 162256939.5 | C28: 23492279.77 | E28: 185749219.3 | F28: 77097554.99 | H28: 262846774.3
A29: COSTO DE EXPLOTACIÓN | B29: 292697650.5 | C29: 61160255.51 | E29: 353857906 | F29: 105247714.8 | H29: 459105620.8
A30: RESULTADO DE EXPLOTACIÓN | B30: 12819789.64 | C30: -23005714.59 | E30: -10185924.95 | F30: 67280995.3 | H30: 57095070.35
A31: DIVERSOS Y EXTRAORDINARIOS
A32: Ingresos Div. y Extr | B32: 5713497.46 | C32: 713530.01 | E32: 6427027.47 | F32: 3226468.22 | H32: 9653495.69
A33: Gtos. Div. y Extraor | B33: 4903723.06 | C33: 612401.42 | E33: 5516124.48 | F33: 2769180.74 | H33: 8285305.22
A34: RESULTADOS DIV. Y EXTRAORDINARIOS | B34: 809774.4 | C34: 101128.59 | E34: 910902.99 | F34: 457287.48 | H34: 1368190.47
A35: FINANCIEROS
A36: Ingresos Financieros | B36: 19137046.39 | C36: 2389929.75 | E36: 21526976.14 | F36: 10806878.74 | H36: 32333854.88
A37: Gastos Financieros | B37: 58692454.13 | C37: 7329806.27 | E37: 66022260.4 | F37: 33144207.42 | H37: 99166467.82
A38: RESULTADO FINANCIERO | B38: -39555407.74 | C38: -4939876.52 | E38: -44495284.26 | F38: -22337328.68 | H38: -66832612.94
A39: I.R.A.E. | B39: 13955556.08 | C39: 1742839.42 | E39: 15698395.5 | F39: 7880840.09 | H39: 23579235.59
A40: RESULTADO NETO | B40: -11970287.62 | C40: -26101623.1 | E40: -38071910.72 | F40: 53281794.19 | H40: 15209883.47

Sheet B-PAY-101
A3: PAYSANDÚ
C5: C O S T O S T O T A L E S
B9: C O N C E P T O | C9: C O S T O S O P E R A T I V O S
C12: AGUA | D12: ALCANTARILLADO | E12: TOTAL
B14: RETRIBUCIONES AL PERSONAL | C14: 48676417.24 | D14: 3449755.232 | E14: 52126172.47
B16: MATERIALES Y SUMINISTROS | C16: 43360406.17 | D16: 329344.0841 | E16: 43689750.25
B18: ENERGIA Y FLUÍDOS | C18: 23820808.6 | D18: 2233724.469 | E18: 26054533.07
B20: SERVICIOS CONTRATADOS | C20: 16470310.64 | D20: 4828495.983 | E20: 21298806.62
B22: GASTOS VARIOS | C22: 5778099.918 | D22: 556219.0561 | E22: 6334318.974
B24: AMORTIZACIÓN | C24: 30002644.12 | D24: 16752621.01 | E24: 46755265.13
B27: TOTAL | C27: 168108686.7 | D27: 28150159.83 | E27: 196258846.5 | G27: 0.622727178
B32: C O N C E P T O | C32: C O S T O D E A D M I N I S T R A T I V O - C O M E R C I A L
C35: COMERCIALIZACIÓN | D35: ADMINISTRACIÓN | E35: TOTAL
B37: RETRIBUCIONES AL PERSONAL | C37: 40127835.58 | D37: 8673079.625 | E37: 48800915.21
B39: MATERIALES Y SUMINISTROS | C39: 2653010.395 | D39: 428644.911 | E39: 3081655.306
B41: ENERGIA Y FLUÍDOS | C41: 128535.4718 | D41: 3695207.259 | E41: 3823742.73
B43: SERVICIOS CONTRATADOS | C43: 40913384.36 | D43: 6037667.188 | E43: 46951051.55
B45: GASTOS VARIOS | C45: 6918859.216 | D45: 3180294.241 | E45: 10099153.46
B47: AMORTIZACIÓN | C47: 5042898.084 | D47: 1101976.556 | E47: 6144874.64
B51: TOTAL | C51: 95784523.11 | D51: 23116869.78 | E51: 118901392.9 | G51: 0.377272822
A56: C O S T O D E E X P L O T A C I Ó N | G56: 315160239.4

Sheet C-PAY-101
C3: COBERTURAS, COSTOS E INGRESOS PROMEDIO
C5: P A Y S A N D Ú
B9: 1. COMPOSICIÓN DEL COSTO PROPIO POR CONEXIÓN | C9: OPERATIVOS | E9: ADMINISTRATIVO-COMERCIAL
C11: AGUA | D11: ALCANTARILLADO
C12: ($/conex.agua) | D12: ($/conex.desagüe) | E12: ($/conex.agua)
B14: RETRIBUCIONES AL PERSONAL | C14: 1176.52617 | D14: 129.320559 | E14: 1179.53533
B16: MATERIALES Y SUMINISTROS | C16: 1048.036308 | D16: 12.34608202 | E16: 74.48469548
B18: ENERGIA Y FLUÍDOS | C18: 575.7573442 | D18: 83.73536019 | E18: 92.42121022
B20: SERVICIOS CONTRATADOS | C20: 398.0932163 | D20: 181.0052475 | E20: 1134.823473
B22: GASTOS VARIOS | C22: 139.6587126 | D22: 20.85091678 | E22: 244.1001005
B24: AMORTIZACIÓN | C24: 725.1744888 | D24: 628.0034866 | E24: 148.523787
B28: TOTAL | C28: 4063.24624 | D28: 1055.261652 | E28: 2873.888596
B31: 2.CONEXIONES (promedio anual) | C31: 41373 | D31: 26676
B34: 3.COBERTURAS COSTO/INGRESO
B36: 3.1 COSTO DE EXPLOTACIÓN/ INGRESO DE EXPLOT. | C36: 1.029638509 | D36: 0.6100301495 | E36: 0
B38: 3.3 TOTAL | C38: 1.186931766 | D38: 0.7988866836
B41: 4.M3 ELEVADOS | C41: 10455250
B43: 5.M3 FACTURADOS | C43: 5141760
B46: 6. COSTO PROMEDIO
B48: 6.1 COSTO VARIABLE/ M3ELEVADOS | C48: 7.129489634
B50: 6.2 COSTO VARIABLE / M3FACTURADOS | C50: 14.49709759
B52: 6.3 COSTO EXPLOTACIÓN/M3FACT | C52: 68.82038562
B54: 6.4 TOTAL/M3FACT | C54: 85.7867124
B57: 7. INGRESOS PROMEDIO
B59: 7.1 VARIABLE/M3 FACT | C59: 36.47144783
B61: 7.2 FIJO/CONEXIONES | C61: 268.2065663
B63: 7.3 INGRESO EXPLOTACIÓN/M3FACT | C63: 66.83936649
B65: 7.4 TOTAL/M3FACT | C65: 72.27602701

Sheet A-RN-102
A2: RÍO NEGRO | B2: ESTADO DE RENDIMIENTO ECONÓMICO (a valores históricos) | H2: PERÍODO ENERO-DICIEMBRE-2020
B4: AGUA POTABLE
A5: CONCEPTOS | B5: USINA | C5: PERFORACIÓN | D5: MIXTO | E5: SUB-TOTAL | F5: ALCANTARILLADO | G5: OTROS INGRESOS | H5: TOTAL
A6: INGRESOS
A7: Ingresos Variables | B7: 46833874.99 | C7: 40008647.98 | D7: 4380295.8 | E7: 91222818.77 | H7: 91222818.77
A8: Ingresos Fijos | B8: 34337354.74 | C8: 27386087.46 | D8: 3490087.73 | E8: 65213529.93 | F8: -6200.13 | H8: 65207329.8
A9: INGRESOS DE EXPLOTACIÓN | B9: 81171229.73 | C9: 67394735.44 | D9: 7870383.53 | E9: 156436348.7 | F9: -6200.13 | H9: 156430148.6
A10: Ingresos Alcantarillado | F10: 77428310.72 | H10: 77428310.72
A11: Otros Ingresos | B11: 5828051.77 | C11: 4266312.68 | D11: 452768.1 | E11: 10547132.55 | F11: 1818368.03 | H11: 12365500.58
A12: TOTAL ING. DE EXPLOTACIÓN | B12: 86999281.5 | C12: 71661048.12 | D12: 8323151.63 | E12: 166983481.2 | F12: 79240478.62 | H12: 246223959.9
A13: COSTOS DE EXPLOTACIÓN
A14: OPERATIVO
A15: Costo Operativo Var | B15: 25400597.27 | C15: 11199386.44 | D15: 1043218.24 | E15: 37643201.95 | F15: 4737035.98 | H15: 42380237.93
A16: Costo Operativo Fijo | B16: 41782309.86 | C16: 30105804.14 | D16: 9849513.74 | E16: 81737627.74 | F16: 14863169.73 | H16: 96600797.47
A17: TOTAL OPERATIVO | B17: 67182907.13 | C17: 41305190.58 | D17: 10892731.98 | E17: 119380829.7 | F17: 19600205.71 | H17: 138981035.4
A18: NO OPERATIVO
A19: COMERCIALIZACIÓN
A20: Comercial Propios | B20: 29027806.45 | C20: 23990311.12 | D20: 3033003.52 | E20: 56051121.09 | F20: 16978736.96 | H20: 73029858.05
A21: Comercial Asignados | B21: 9578075.9 | C21: 7889432.3 | D21: 916327.01 | E21: 18383835.21 | F21: 8723880.28 | H21: 27107715.49
A22: TOTAL COMERCIALIZACIÓN | B22: 38605882.35 | C22: 31879743.42 | D22: 3949330.53 | E22: 74434956.3 | F22: 25702617.24 | H22: 100137573.5
A23: ADMINISTRACIÓN
A24: Administración Propios | B24: 6357651.11 | C24: 5254342.12 | D24: 664286.48 | E24: 12276279.71 | F24: 3718671.73 | H24: 15994951.44
A25: Administ. Asignados | B25: 10306291.2 | C25: 8489261.16 | D25: 985994.62 | E25: 19781546.98 | F25: 9387151.6 | H25: 29168698.58
A26: Gastos Fiscales | B26: 4375857.71 | C26: 3604380.88 | D26: 418634.81 | E26: 8398873.4 | F26: 3985608.29 | H26: 12384481.69
A27: TOTAL ADMINISTRACIÓN | B27: 21039800.02 | C27: 17347984.16 | D27: 2068915.91 | E27: 40456700.09 | F27: 17091431.62 | H27: 57548131.71
A28: TOTAL NO OPERATIVO | B28: 59645682.37 | C28: 49227727.58 | D28: 6018246.44 | E28: 114891656.4 | F28: 42794048.86 | H28: 157685705.2
A29: COSTO DE EXPLOTACIÓN | B29: 126828589.5 | C29: 90532918.16 | D29: 16910978.42 | E29: 234272486.1 | F29: 62394254.57 | H29: 296666740.6
A30: RESULTADO DE EXPLOTACIÓN | B30: -39829308 | C30: -18871870.04 | D30: -8587826.79 | E30: -67289004.83 | F30: 16846224.05 | H30: -50442780.78
A31: DIVERSOS Y EXTRAORDINARIOS
A32: Ingresos Div. y Extr | B32: 1626978.04 | C32: 1340136.87 | D32: 155651.67 | E32: 3122766.58 | F32: 1481880.24 | H32: 4604646.82
A33: Gtos. Div. y Extraor | B33: 1396386.34 | C33: 1150199.33 | D33: 133591.12 | E33: 2680176.79 | F33: 1271853.26 | H33: 3952030.05
A34: RESULTADOS DIV. Y EXTRAORDINARIOS | B34: 230591.7 | C34: 189937.54 | D34: 22060.55 | E34: 442589.79 | F34: 210026.98 | H34: 652616.77
A35: FINANCIEROS
A36: Ingresos Financieros | B36: 5449473.83 | C36: 4488715.28 | D36: 521346.82 | E36: 10459535.93 | F36: 4963476.78 | H36: 15423012.71
A37: Gastos Financieros | B37: 16713289.33 | C37: 13766686.36 | D37: 1598947.08 | E37: 32078922.77 | F37: 15222758.4 | H37: 47301681.17
A38: RESULTADO FINANCIERO | B38: -11263815.5 | C38: -9277971.08 | D38: -1077600.26 | E38: -21619386.84 | F38: -10259281.62 | H38: -31878668.46
A39: I.R.A.E. | B39: 3973990.35 | C39: 3273363.95 | D39: 380188.49 | E39: 7627542.79 | F39: 3619580.44 | H39: 11247123.23
A40: RESULTADO NETO | B40: -46888541.45 | C40: -24686539.63 | D40: -9263178.01 | E40: -80838259.09 | F40: 10416549.85 | H40: -70421709.24

Sheet B-RN-102
A3: RÍO NEGRO
C5: C O S T O S T O T A L E S
B9: C O N C E P T O | C9: C O S T O S O P E R A T I V O S
C12: AGUA | D12: ALCANTARILLADO | E12: TOTAL
B14: RETRIBUCIONES AL PERSONAL | C14: 41668106.61 | D14: 6226877.661 | E14: 47894984.27
B16: MATERIALES Y SUMINISTROS | C16: 14118423.37 | D16: 120687.9469 | E16: 14239111.32
B18: ENERGIA Y FLUÍDOS | C18: 15146209.96 | D18: 2587069.362 | E18: 17733279.32
B20: SERVICIOS CONTRATADOS | C20: 16084015.39 | D20: 4731760.508 | E20: 20815775.9
B22: GASTOS VARIOS | C22: 6314529.363 | D22: 154395.7596 | E22: 6468925.123
B24: AMORTIZACIÓN | C24: 26049544.99 | D24: 5779414.475 | E24: 31828959.46
B27: TOTAL | C27: 119380829.7 | D27: 19600205.71 | E27: 138981035.4 | G27: 0.6095503186
B32: C O N C E P T O | C32: C O S T O D E A D M I N I S T R A T I V O - C O M E R C I A L
C35: COMERCIALIZACIÓN | D35: ADMINISTRACIÓN | E35: TOTAL
B37: RETRIBUCIONES AL PERSONAL | C37: 26369397.7 | D37: 5425546.365 | E37: 31794944.07
B39: MATERIALES Y SUMINISTROS | C39: 2140204.122 | D39: 281831.0859 | E39: 2422035.208
B41: ENERGIA Y FLUÍDOS | C41: 195237.7901 | D41: 2379491.874 | E41: 2574729.664
B43: SERVICIOS CONTRATADOS | C43: 34413488.95 | D43: 5998521.021 | E43: 40412009.97
B45: GASTOS VARIOS | C45: 7637109.786 | D45: 1125898.329 | E45: 8763008.115
B47: AMORTIZACIÓN | C47: 2274419.703 | D47: 783662.7651 | E47: 3058082.468
B51: TOTAL | C51: 73029858.05 | D51: 15994951.44 | E51: 89024809.49 | G51: 0.3904496814
A56: C O S T O D E E X P L O T A C I Ó N | G56: 228005844.9

Sheet C-RN-102
C3: COBERTURAS, COSTOS E INGRESOS PROMEDIO
C5: R Í O N E G R O
B9: 1. COMPOSICIÓN DEL COSTO PROPIO POR CONEXIÓN | C9: OPERATIVOS | E9: ADMINISTRATIVO-COMERCIAL
C11: AGUA | D11: ALCANTARILLADO
C12: ($/conex.agua) | D12: ($/conex.desagüe) | E12: ($/conex.agua)
B14: RETRIBUCIONES AL PERSONAL | C14: 2055.349806 | D14: 506.9921561 | E14: 1568.339371
B16: MATERIALES Y SUMINISTROS | C16: 696.4151026 | D16: 9.826408311 | E16: 119.4709815
B18: ENERGIA Y FLUÍDOS | C18: 747.1124137 | D18: 210.6390948 | E18: 127.0028937
B20: SERVICIOS CONTRATADOS | C20: 793.3712519 | D20: 385.259771 | E20: 1993.390715
B22: GASTOS VARIOS | C22: 311.4748366 | D22: 12.57089721 | E22: 432.2501907
B24: AMORTIZACIÓN | C24: 1284.937848 | D24: 470.5597195 | E24: 150.8450879
B28: TOTAL | C28: 5888.661258 | D28: 1595.848047 | E28: 4391.29924
B31: 2.CONEXIONES (promedio anual) | C31: 20273 | D31: 12282
B34: 3.COBERTURAS COSTO/INGRESO
B36: 3.1 COSTO DE EXPLOTACIÓN/ INGRESO DE EXPLOT. | C36: 1.402968032 | D36: 0.7874038075 | E36: 0
B38: 3.3 TOTAL | C38: 1.532179146 | D38: 0.9629181539
B41: 4.M3 ELEVADOS | C41: 4048540
B43: 5.M3 FACTURADOS | C43: 2432720
B46: 6. COSTO PROMEDIO
B48: 6.1 COSTO VARIABLE/ M3ELEVADOS | C48: 9.297969626
B50: 6.2 COSTO VARIABLE / M3FACTURADOS | C50: 15.47370924
B52: 6.3 COSTO EXPLOTACIÓN/M3FACT | C52: 96.30063718
B54: 6.4 TOTAL/M3FACT | C54: 113.724197
B57: 7. INGRESOS PROMEDIO
B59: 7.1 VARIABLE/M3 FACT | C59: 37.49828125
B61: 7.2 FIJO/CONEXIONES | C61: 268.0639682
B63: 7.3 INGRESO EXPLOTACIÓN/M3FACT | C63: 68.64064966
B65: 7.4 TOTAL/M3FACT | C65: 74.22382508

Sheet A-SAL-103
A2: SALTO | B2: ESTADO DE RENDIMIENTO ECONÓMICO (a valores históricos) | H2: PERÍODO ENERO-DICIEMBRE-2020
B4: AGUA POTABLE
A5: CONCEPTOS | B5: USINA | C5: PERFORACIÓN | D5: MIXTO | E5: SUB-TOTAL | F5: ALCANTARILLADO | G5: OTROS INGRESOS | H5: TOTAL
A6: INGRESOS
A7: Ingresos Variables | D7: 166593650.4 | E7: 166593650.4 | H7: 166593650.4
A8: Ingresos Fijos | D8: 126018858.7 | E8: 126018858.7 | F8: -8150.28 | H8: 126010708.4
A9: INGRESOS DE EXPLOTACIÓN | D9: 292612509.1 | E9: 292612509.1 | F9: -8150.28 | H9: 292604358.8
A10: Ingresos Alcantarillado | D10: 0 | E10: 0 | F10: 192814184.3 | H10: 192814184.3
A11: Otros Ingresos | D11: 21905022.19 | E11: 21905022.19 | F11: 2207793.79 | H11: 24112815.98
A12: TOTAL ING. DE EXPLOTACIÓN | D12: 314517531.3 | E12: 314517531.3 | F12: 195013827.8 | H12: 509531359.1
A13: COSTOS DE EXPLOTACIÓN
A14: OPERATIVO
A15: Costo Operativo Var | D15: 52379760.59 | E15: 52379760.59 | F15: 2577816.56 | H15: 54957577.15
A16: Costo Operativo Fijo | D16: 240412238.3 | E16: 240412238.3 | F16: 40309320.08 | H16: 280721558.4
A17: TOTAL OPERATIVO | D17: 292791998.9 | E17: 292791998.9 | F17: 42887136.64 | H17: 335679135.5
A18: NO OPERATIVO
A19: COMERCIALIZACIÓN
A20: Comercial Propios | D20: 77741737.85 | E20: 77741737.85 | F20: 30296426.84 | H20: 108038164.7
A21: Comercial Asignados | D21: 34626409.87 | E21: 34626409.87 | F21: 21469800.86 | H21: 56096210.73
A22: TOTAL COMERCIALIZACIÓN | D22: 112368147.7 | E22: 112368147.7 | F22: 51766227.7 | H22: 164134375.4
A23: ADMINISTRACIÓN
A24: Administración Propios | D24: 16986428.49 | E24: 16986428.49 | F24: 6619714.18 | H24: 23606142.67
A25: Administ. Asignados | D25: 37259034.65 | E25: 37259034.65 | F25: 23102136.52 | H25: 60361171.17
A26: Gastos Fiscales | D26: 15819486.44 | E26: 15819486.44 | F26: 9808733.4 | H26: 25628219.84
A27: TOTAL ADMINISTRACIÓN | D27: 70064949.58 | E27: 70064949.58 | F27: 39530584.1 | H27: 109595533.7
A28: TOTAL NO OPERATIVO | D28: 182433097.3 | E28: 182433097.3 | F28: 91296811.8 | H28: 273729909.1
A29: COSTO DE EXPLOTACIÓN | D29: 475225096.2 | E29: 475225096.2 | F29: 134183948.4 | H29: 609409044.6
A30: RESULTADO DE EXPLOTACIÓN | D30: -160707564.9 | E30: -160707564.9 | F30: 60829879.34 | H30: -99877685.53
A31: DIVERSOS Y EXTRAORDINARIOS
A32: Ingresos Div. y Extr | D32: 5881808.37 | E32: 5881808.37 | F32: 3646963.53 | H32: 9528771.9
A33: Gtos. Div. y Extraor | D33: 5048179.44 | E33: 5048179.44 | F33: 3130079.24 | H33: 8178258.68
A34: RESULTADOS DIV. Y EXTRAORDINARIOS | D34: 833628.93 | E34: 833628.93 | F34: 516884.29 | H34: 1350513.22
A35: FINANCIEROS
A36: Ingresos Financieros | D36: 19700795.41 | E36: 19700795.41 | F36: 12215304.86 | H36: 31916100.27
A37: Gastos Financieros | D37: 60421446.87 | E37: 60421446.87 | F37: 37463786.56 | H37: 97885233.43
A38: RESULTADO FINANCIERO | D38: -40720651.46 | E38: -40720651.46 | F38: -25248481.7 | H38: -65969133.16
A39: I.R.A.E. | D39: 14366666.08 | E39: 14366666.08 | F39: 8907924.91 | H39: 23274590.99
A40: RESULTADO NETO | D40: -186227921.3 | E40: -186227921.3 | F40: 45006206.84 | H40: -141221714.5

Sheet B-SAL-103
A3: SALTO
C5: C O S T O S T O T A L E S
B9: C O N C E P T O | C9: C O S T O S O P E R A T I V O S
C12: AGUA | D12: ALCANTARILLADO | E12: TOTAL
B14: RETRIBUCIONES AL PERSONAL | C14: 31347106.23 | D14: 1217321.697 | E14: 32564427.93
B16: MATERIALES Y SUMINISTROS | C16: 22733733.44 | D16: 174584.5627 | E16: 22908318
B18: ENERGIA Y FLUÍDOS | C18: 22382471.55 | D18: 2071387.211 | E18: 24453858.76
B20: SERVICIOS CONTRATADOS | C20: 25996794.8 | D20: 6278004.561 | E20: 32274799.36
B22: GASTOS VARIOS | C22: 5881442.432 | D22: 272854.2643 | E22: 6154296.696
B24: AMORTIZACIÓN | C24: 184450450.4 | D24: 32872984.35 | E24: 217323434.7
B27: TOTAL | C27: 292791998.9 | D27: 42887136.64 | E27: 335679135.5 | G27: 0.7183015118
B32: C O N C E P T O | C32: C O S T O D E A D M I N I S T R A T I V O - C O M E R C I A L
C35: COMERCIALIZACIÓN | D35: ADMINISTRACIÓN | E35: TOTAL
B37: RETRIBUCIONES AL PERSONAL | C37: 36873641.51 | D37: 6281996.84 | E37: 43155638.35
B39: MATERIALES Y SUMINISTROS | C39: 3715703.502 | D39: 435038.5466 | E39: 4150742.049
B41: ENERGIA Y FLUÍDOS | C41: 145807.1081 | D41: 2591677.786 | E41: 2737484.894
B43: SERVICIOS CONTRATADOS | C43: 52585427.03 | D43: 10519899.31 | E43: 63105326.33
B45: GASTOS VARIOS | C45: 7264596.409 | D45: 2120890.186 | E45: 9385486.596
B47: AMORTIZACIÓN | C47: 7452989.131 | D47: 1656640.004 | E47: 9109629.135
B51: TOTAL | C51: 108038164.7 | D51: 23606142.67 | E51: 131644307.4 | G51: 0.2816984882
A56: C O S T O D E E X P L O T A C I Ó N | G56: 467323442.9

Sheet C-SAL-103
C3: COBERTURAS, COSTOS E INGRESOS PROMEDIO
C5: SALTO
B9: 1. COMPOSICIÓN DEL COSTO PROPIO POR CONEXIÓN | C9: OPERATIVOS | E9: ADMINISTRATIVO-COMERCIAL
C11: AGUA | D11: ALCANTARILLADO
C12: ($/conex.agua) | D12: ($/conex.desagüe) | E12: ($/conex.agua)
B14: RETRIBUCIONES AL PERSONAL | C14: 782.836107 | D14: 39.0042197 | E14: 1077.732396
B16: MATERIALES Y SUMINISTROS | C16: 567.733023 | D16: 5.593866157 | E16: 103.6571198
B18: ENERGIA Y FLUÍDOS | C18: 558.9609058 | D18: 66.36934353 | E18: 68.36363145
B20: SERVICIOS CONTRATADOS | C20: 649.2219565 | D20: 201.1536226 | E20: 1575.939024
B22: GASTOS VARIOS | C22: 146.8781668 | D22: 8.742526893 | E22: 234.3852008
B24: AMORTIZACIÓN | C24: 4606.309477 | D24: 1053.283702 | E24: 227.49617
B28: TOTAL | C28: 7311.939636 | D28: 1374.147281 | E28: 3287.573542
B31: 2.CONEXIONES (promedio anual) | C31: 40043 | D31: 31210
B34: 3.COBERTURAS COSTO/INGRESO
B36: 3.1 COSTO DE EXPLOTACIÓN/ INGRESO DE EXPLOT. | C36: 1.510965364 | D36: 0.68807402 | E36: 0
B38: 3.3 TOTAL | C38: 1.632052832 | D38: 0.8710600323
B41: 4.M3 ELEVADOS | C41: 10778610
B43: 5.M3 FACTURADOS | C43: 4919210
B46: 6. COSTO PROMEDIO
B48: 6.1 COSTO VARIABLE/ M3ELEVADOS | C48: 4.859602545
B50: 6.2 COSTO VARIABLE / M3FACTURADOS | C50: 10.64800254
B52: 6.3 COSTO EXPLOTACIÓN/M3FACT | C52: 96.60597863
B54: 6.4 TOTAL/M3FACT | C54: 112.8354733
B57: 7. INGRESOS PROMEDIO
B59: 7.1 VARIABLE/M3 FACT | C59: 33.86593587
B61: 7.2 FIJO/CONEXIONES | C61: 262.2573623
B63: 7.3 INGRESO EXPLOTACIÓN/M3FACT | C63: 63.93659374
B65: 7.4 TOTAL/M3FACT | C65: 72.05766803

Sheet A-ART-104
A2: ARTIGAS | B2: ESTADO DE RENDIMIENTO ECONÓMICO (a valores históricos) | H2: PERÍODO ENERO-DICIEMBRE-2020
B4: AGUA POTABLE
A5: CONCEPTOS | B5: USINA | C5: PERFORACIÓN | D5: MIXTO | E5: SUB-TOTAL | F5: ALCANTARILLADO | G5: OTROS INGRESOS | H5: TOTAL
A6: INGRESOS
A7: Ingresos Variables | C7: 9029048.8 | D7: 103606789.5 | E7: 112635838.3 | F7: 0 | H7: 112635838.3
A8: Ingresos Fijos | C8: 6474555.12 | D8: 75427097.48 | E8: 81901652.6 | F8: -1194.44 | H8: 81900458.16
A9: INGRESOS DE EXPLOTACIÓN | C9: 15503603.92 | D9: 179033887 | E9: 194537490.9 | F9: -1194.44 | H9: 194536296.5
A10: Ingresos Alcantarillado | F10: 91590863.34 | H10: 91590863.34
A11: Otros Ingresos | C11: 1353860.85 | D11: 11725929.88 | E11: 13079790.73 | F11: 980603.07 | H11: 14060393.8
A12: TOTAL ING. DE EXPLOTACIÓN | C12: 16857464.77 | D12: 190759816.9 | E12: 207617281.7 | F12: 92570271.97 | H12: 300187553.6
A13: COSTOS DE EXPLOTACIÓN
A14: OPERATIVO
A15: Costo Operativo Var | C15: 2169033.02 | D15: 47557664.79 | E15: 49726697.81 | F15: 12252926.56 | H15: 61979624.37
A16: Costo Operativo Fijo | C16: 20831663.94 | D16: 62297870.02 | E16: 83129533.96 | F16: 43575518.34 | H16: 126705052.3
A17: TOTAL OPERATIVO | C17: 23000696.96 | D17: 109855534.8 | E17: 132856231.8 | F17: 55828444.9 | H17: 188684676.7
A18: NO OPERATIVO
A19: COMERCIALIZACIÓN
A20: Comercial Propios | C20: 4818634.68 | D20: 53632564.36 | E20: 58451199.04 | F20: 15571368.44 | H20: 74022567.48
A21: Comercial Asignados | C21: 1855901.33 | D21: 21001460.82 | E21: 22857362.15 | F21: 10191407.07 | H21: 33048769.22
A22: TOTAL COMERCIALIZACIÓN | C22: 6674536.01 | D22: 74634025.18 | E22: 81308561.19 | F22: 25762775.51 | H22: 107071336.7
A23: ADMINISTRACIÓN
A24: Administración Propios | C24: 1300046.41 | D24: 14469829.35 | E24: 15769875.76 | F24: 4201086.45 | H24: 19970962.21
A25: Administ. Asignados | C25: 1997004.27 | D25: 22598188.99 | E25: 24595193.26 | F25: 10966253.51 | H25: 35561446.77
A26: Gastos Fiscales | C26: 847890.53 | D26: 9594766.72 | E26: 10442657.25 | F26: 4656065.3 | H26: 15098722.55
A27: TOTAL ADMINISTRACIÓN | C27: 4144941.21 | D27: 46662785.06 | E27: 50807726.27 | F27: 19823405.26 | H27: 70631131.53
A28: TOTAL NO OPERATIVO | C28: 10819477.22 | D28: 121296810.2 | E28: 132116287.5 | F28: 45586180.77 | H28: 177702468.2
A29: COSTO DE EXPLOTACIÓN | C29: 33820174.18 | D29: 231152345.1 | E29: 264972519.2 | F29: 101414625.7 | H29: 366387144.9
A30: RESULTADO DE EXPLOTACIÓN | C30: -16962709.41 | D30: -40392528.16 | E30: -57355237.57 | F30: -8844353.7 | H30: -66199591.27
A31: DIVERSOS Y EXTRAORDINARIOS
A32: Ingresos Div. y Extr | C32: 315252.39 | D32: 3567408.92 | E32: 3882661.31 | F32: 1731161.28 | H32: 5613822.59
A33: Gtos. Div. y Extraor | C33: 270571.59 | D33: 3061800.03 | E33: 3332371.62 | F33: 1485803.79 | H33: 4818175.41
A34: RESULTADOS DIV. Y EXTRAORDINARIOS | C34: 44680.8 | D34: 505608.89 | E34: 550289.69 | F34: 245357.49 | H34: 795647.18
A35: FINANCIEROS
A36: Ingresos Financieros | C36: 1055920.37 | D36: 11948841.49 | E36: 13004761.86 | F36: 5798430.33 | H36: 18803192.19
A37: Gastos Financieros | C37: 3238459.95 | D37: 36646555.48 | E37: 39885015.43 | F37: 17783523.07 | H37: 57668538.5
A38: RESULTADO FINANCIERO | C38: -2182539.58 | D38: -24697713.99 | E38: -26880253.57 | F38: -11985092.74 | H38: -38865346.31
A39: I.R.A.E. | C39: 770022.48 | D39: 8713608.38 | E39: 9483630.86 | F39: 4228464.41 | G39: 0 | H39: 13712095.27
A40: RESULTADO NETO | C40: -18330545.71 | D40: -55871024.88 | E40: -74201570.59 | F40: -16355624.54 | G40: 0 | H40: -90557195.13

Sheet B-ART-104
A3: ARTIGAS
C5: COSTOS TOTALES
B9: C O N C E P T O | C9: C O S T O S O P E R A T I V O S
C12: AGUA | D12: ALCANTARILLADO | E12: TOTAL
B14: RETRIBUCIONES AL PERSONAL | C14: 49717279.57 | D14: 3592682.6 | E14: 53309962.17
B16: MATERIALES Y SUMINISTROS | C16: 13899313.74 | D16: 465148.2824 | E16: 14364462.02
B18: ENERGIA Y FLUÍDOS | C18: 21397541.44 | D18: 10301771.53 | E18: 31699312.97
B20: SERVICIOS CONTRATADOS | C20: 25125888.15 | D20: 22252965.39 | E20: 47378853.54
B22: GASTOS VARIOS | C22: 6689300.484 | D22: 457023.8967 | E22: 7146324.38
B24: AMORTIZACIÓN | C24: 16026908.4 | D24: 18758853.19 | E24: 34785761.59
B27: TOTAL | C27: 132856231.8 | D27: 55828444.9 | E27: 188684676.7 | G27: 0.667489295
B32: C O N C E P T O | C32: C O S T O D E A D M I N I S T R A T I V O - C O M E R C I A L
C35: COMERCIALIZACIÓN | D35: ADMINISTRACIÓN | E35: TOTAL
B37: RETRIBUCIONES AL PERSONAL | C37: 32647823.78 | D37: 5338357.138 | E37: 37986180.91
B39: MATERIALES Y SUMINISTROS | C39: 2297217.905 | D39: 516324.1757 | E39: 2813542.08
B41: ENERGIA Y FLUÍDOS | C41: 498924.314 | D41: 2872461.122 | E41: 3371385.436
B43: SERVICIOS CONTRATADOS | C43: 25080410.03 | D43: 7988972.382 | E43: 33069382.41
B45: GASTOS VARIOS | C45: 10520188.17 | D45: 2212809.362 | E45: 12732997.53
B47: AMORTIZACIÓN | C47: 2978003.281 | D47: 1042038.031 | E47: 4020041.313
B51: TOTAL | C51: 74022567.48 | D51: 19970962.21 | E51: 93993529.69 | G51: 0.332510705
A56: C O S T O D E E X P L O T A C I Ó N | G56: 282678206.4

Sheet C-ART-104
C3: COBERTURAS, COSTOS E INGRESOS PROMEDIO
C5: A R T I G A S
B9: 1. COMPOSICIÓN DEL COSTO PROPIO POR CONEXIÓN | C9: OPERATIVOS | E9: ADMINISTRATIVO-COMERCIAL
C11: AGUA | D11: ALCANTARILLADO
C12: ($/conex.agua) | D12: ($/conex.desagüe) | E12: ($/conex.agua)
B14: RETRIBUCIONES AL PERSONAL | C14: 1828.11 | D14: 247.9422084 | E14: 1396.756174
B16: MATERIALES Y SUMINISTROS | C16: 511.0793402 | D16: 32.10133074 | E16: 103.4542609
B18: ENERGIA Y FLUÍDOS | C18: 786.7900219 | D18: 710.9573178 | E18: 123.9662243
B20: SERVICIOS CONTRATADOS | C20: 923.8817527 | D20: 1535.746404 | E20: 1215.964937
B22: GASTOS VARIOS | C22: 245.9663364 | D22: 31.54064159 | E22: 468.1937614
B24: AMORTIZACIÓN | C24: 589.3112369 | D24: 1294.606846 | E24: 147.8173743
B28: TOTAL | C28: 4885.138688 | D28: 3852.894748 | E28: 3456.152732
B31: 2.CONEXIONES (promedio anual) | C31: 27196 | D31: 14490
B34: 3.COBERTURAS COSTO/INGRESO
B36: 3.1 COSTO DE EXPLOTACIÓN/ INGRESO DE EXPLOT. | C36: 1.276254641 | D36: 1.095542052 | E36: 0
B38: 3.3 TOTAL | C38: 1.414997237 | D38: 1.247877994
B41: 4.M3 ELEVADOS | C41: 8253680
B43: 5.M3 FACTURADOS | C43: 3403980
B46: 6. COSTO PROMEDIO
B48: 6.1 COSTO VARIABLE/ M3ELEVADOS | C48: 6.0247911
B50: 6.2 COSTO VARIABLE / M3FACTURADOS | C50: 14.60839894
B52: 6.3 COSTO EXPLOTACIÓN/M3FACT | C52: 77.84197299
B54: 6.4 TOTAL/M3FACT | C54: 93.32414913
B57: 7. INGRESOS PROMEDIO
B59: 7.1 VARIABLE/M3 FACT | C59: 33.08945362
B61: 7.2 FIJO/CONEXIONES | C61: 250.9610868
B63: 7.3 INGRESO EXPLOTACIÓN/M3FACT | C63: 60.99250926
B65: 7.4 TOTAL/M3FACT | C65: 68.73963293

Sheet A-200-AG-NORESTE
A2: AMBITO GEOGRÁFICO NORESTE | B2: ESTADO DE RENDIMIENTO ECONÓMICO (a valores históricos) | H2: PERÍODO ENERO-DICIEMBRE-2020
B4: AGUA POTABLE
A5: CONCEPTOS | B5: USINA | C5: PERFORACIÓN | D5: MIXTO | E5: SUB-TOTAL | F5: ALCANTARILLADO | G5: OTROS INGRESOS | H5: TOTAL
A6: INGRESOS
A7: Ingresos Variables | B7: 109980119.6 | C7: 16251937.37 | D7: 305611137.3 | E7: 431843194.3 | H7: 431843194.3
A8: Ingresos Fijos | B8: 93203567.31 | C8: 14718101.8 | D8: 235010781.2 | E8: 342932450.3 | F8: -28251.71 | H8: 342904198.6
A9: INGRESOS DE EXPLOTACIÓN | B9: 203183686.9 | C9: 30970039.17 | D9: 540621918.5 | E9: 774775644.6 | F9: -28251.71 | H9: 774747392.9
A10: Ingresos Alcantarillado | F10: 310713833.8 | H10: 310713833.8
A11: Otros Ingresos | B11: 15332209.85 | C11: 2263653.71 | D11: 47718780.51 | E11: 65314644.07 | F11: 4901899.15 | H11: 70216543.22
A12: TOTAL ING. DE EXPLOTACIÓN | B12: 218515896.8 | C12: 33233692.88 | D12: 588340699 | E12: 840090288.7 | F12: 315587481.2 | H12: 1155677770
A13: COSTOS DE EXPLOTACIÓN
A14: OPERATIVO
A15: Costo Operativo Var | B15: 45302469.03 | C15: 6275982.89 | D15: 127065305.5 | E15: 178643757.4 | F15: 49018465.86 | H15: 227662223.3
A16: Costo Operativo Fijo | B16: 106419479.1 | C16: 42186884.16 | D16: 256731400.1 | E16: 405337763.3 | F16: 185122088.4 | H16: 590459851.7
A17: TOTAL OPERATIVO | B17: 151721948.1 | C17: 48462867.05 | D17: 383796705.6 | E17: 583981520.7 | F17: 234140554.2 | H17: 818122075
A18: NO OPERATIVO
A19: COMERCIALIZACIÓN
A20: Comercial Propios | B20: 69437262.62 | C20: 13230659.65 | D20: 178685295.4 | E20: 261353217.7 | F20: 66061418.91 | H20: 327414636.6
A21: Comercial Asignados | B21: 24057231.3 | C21: 3658821.36 | D21: 64772625.43 | E21: 92488678.09 | F21: 34744204.63 | H21: 127232882.7
A22: TOTAL COMERCIALIZACIÓN | B22: 93494493.92 | C22: 16889481.01 | D22: 243457920.8 | E22: 353841895.7 | F22: 100805623.5 | H22: 454647519.3
A23: ADMINISTRACIÓN
A24: Administración Propios | B24: 20028941.38 | C24: 2622613.97 | D24: 45825802.66 | E24: 68477358.01 | F24: 17241674.2 | H24: 85719032.21
A25: Administ. Asignados | B25: 25886287.93 | C25: 3936999.37 | D25: 69697248.43 | E25: 99520535.73 | F25: 37385785.39 | H25: 136906321.1
A26: Gastos Fiscales | B26: 10990831.78 | C26: 1671576.03 | D26: 29592142.9 | E26: 42254550.71 | F26: 15873302.44 | H26: 58127853.15
A27: TOTAL ADMINISTRACIÓN | B27: 56906061.09 | C27: 8231189.37 | D27: 145115194 | E27: 210252444.4 | F27: 70500762.03 | H27: 280753206.5
A28: TOTAL NO OPERATIVO | B28: 150400555 | C28: 25120670.38 | D28: 388573114.8 | E28: 564094340.2 | F28: 171306385.6 | H28: 735400725.8
A29: COSTO DE EXPLOTACIÓN | B29: 302122503.1 | C29: 73583537.43 | D29: 772369820.4 | E29: 1148075861 | F29: 405446939.8 | H29: 1553522801
A30: RESULTADO DE EXPLOTACIÓN | B30: -83606606.32 | C30: -40349844.55 | D30: -184029121.3 | E30: -307985572.2 | F30: -89859458.6 | H30: -397845030.8
A31: DIVERSOS Y EXTRAORDINARIOS
A32: Ingresos Div. y Extr | B32: 4086476.84 | C32: 621505.01 | D32: 11002589.56 | E32: 15710571.41 | F32: 5901817.61 | H32: 21612389.02
A33: Gtos. Div. y Extraor | B33: 3507300.38 | C33: 533419.13 | D33: 9443191.99 | E33: 13483911.5 | F33: 5065352.72 | H33: 18549264.22
A34: RESULTADOS DIV. Y EXTRAORDINARIOS | B34: 579176.46 | C34: 88085.88 | D34: 1559397.57 | E34: 2226659.91 | F34: 836464.89 | H34: 3063124.8
A35: FINANCIEROS
A36: Ingresos Financieros | B36: 13687430.95 | C36: 2081696.93 | D36: 36852571.38 | E36: 52621699.26 | F36: 19767815.1 | H36: 72389514.36
A37: Gastos Financieros | B37: 41978730.5 | C37: 6384470.22 | D37: 113025166.7 | E37: 161388367.4 | F37: 60626993.19 | H37: 222015360.6
A38: RESULTADO FINANCIERO | B38: -28291299.55 | C38: -4302773.29 | D38: -76172595.28 | E38: -108766668.1 | F38: -40859178.09 | H38: -149625846.2
A39: I.R.A.E. | B39: 9981462.45 | C39: 1518062.82 | D39: 26874477.73 | E39: 38374003 | F39: 14415539.71 | H39: 52789542.71
A40: RESULTADO NETO | B40: -101337267 | C40: -43046469.14 | D40: -231767841.3 | E40: -376151577.4 | F40: -115466632.1 | H40: -491618209.5

Sheet B-200-AG-NORESTE
A3: AMBITO GEOGRÁFICO NORESTE
C5: C O S T O S T O T A L E S
B9: C O N C E P T O | C9: C O S T O S O P E R A T I V O S
C12: AGUA | D12: ALCANTARILLADO | E12: TOTAL
B14: RETRIBUCIONES AL PERSONAL | C14: 223792409.9 | D14: 61129894.19 | E14: 284922304.1
B16: MATERIALES Y SUMINISTROS | C16: 69735485.74 | D16: 8159579.841 | E16: 77895065.58
B18: ENERGIA Y FLUÍDOS | C18: 91079586.55 | D18: 31139044.15 | E18: 122218630.7
B20: SERVICIOS CONTRATADOS | C20: 74480471.1 | D20: 62988396.27 | E20: 137468867.4
B22: GASTOS VARIOS | C22: 25976751.44 | D22: 1881744.282 | E22: 27858495.72
B24: AMORTIZACIÓN | C24: 98916899.81 | D24: 68841898.5 | E24: 167758798.3
B27: TOTAL | C27: 583981604.6 | D27: 234140557.2 | E27: 818122161.8 | G27: 0.6644615534
B32: C O N C E P T O | C32: C O S T O D E A D M I N I S T R A T I V O - C O M E R C I A L
C35: COMERCIALIZACIÓN | D35: ADMINISTRACIÓN | E35: TOTAL
B37: RETRIBUCIONES AL PERSONAL | C37: 167929749.7 | D37: 42824325.45 | E37: 210754075.2
B39: MATERIALES Y SUMINISTROS | C39: 11493986.82 | D39: 1174960.447 | E39: 12668947.27
B41: ENERGIA Y FLUÍDOS | C41: 509119.495 | D41: 15331434.45 | E41: 15840553.95
B43: SERVICIOS CONTRATADOS | C43: 108038711 | D43: 14661469.12 | E43: 122700180.1
B45: GASTOS VARIOS | C45: 24256435.77 | D45: 7559492.214 | E45: 31815927.98
B47: AMORTIZACIÓN | C47: 15186633.76 | D47: 4167350.528 | E47: 19353984.29
B51: TOTAL | C51: 327414636.6 | D51: 85719032.21 | E51: 413133668.8 | G51: 0.3355384466
A56: C O S T O D E E X P L O T A C I Ó N | G56: 1231255831

Sheet C-200-AG-NORESTE
C3: COBERTURAS, COSTOS E INGRESOS PROMEDIO
C5: A M B I T O G E O G R A F I C O N O R E S T E
B9: 1. COMPOSICIÓN DEL COSTO PROPIO POR CONEXIÓN | C9: OPERATIVOS | E9: ADMINISTRATIVO-COMERCIAL
C11: AGUA | D11: ALCANTARILLADO
C12: ($/conex.agua) | D12: ($/conex.desagüe) | E12: ($/conex.agua)
B14: RETRIBUCIONES AL PERSONAL | C14: 2052.2 | D14: 1111.048604 | E14: 1932.637095
B16: MATERIALES Y SUMINISTROS | C16: 639.4817583 | D16: 148.3020691 | E16: 116.1755825
B18: ENERGIA Y FLUÍDOS | C18: 835.2094135 | D18: 565.9586359 | E18: 145.2595502
B20: SERVICIOS CONTRATADOS | C20: 682.9937744 | D20: 1144.827268 | E20: 1125.173591
B22: GASTOS VARIOS | C22: 238.2095501 | D22: 34.20109563 | E22: 291.7554148
B24: AMORTIZACIÓN | C24: 907.0784027 | D24: 1251.215894 | E24: 177.4780769
B28: TOTAL | C28: 5355.172899 | D28: 4255.553566 | E28: 3788.47931
B31: 2.CONEXIONES (promedio anual) | C31: 109050 | D31: 55020
B34: 3.COBERTURAS COSTO/INGRESO
B36: 3.1 COSTO DE EXPLOTACION/ INGRESO DE EXPLOT. | C36: 1.366610085 | D36: 1.284737082 | E36: 0
B38: 3.3 TOTAL | C38: 1.08497537 | D38: 3.598998223
B41: 4.M3 ELEVADOS | C41: 24008320
B43: 5.M3 FACTURADOS | C43: 11878590
B46: 6. COSTO PROMEDIO
B48: 6.1 COSTO VARIABLE/ M3ELEVADOS | C48: 7.440910377
B50: 6.2 COSTO VARIABLE / M3FACTURADOS | C50: 15.03913827
B52: 6.3 COSTO EXPLOTACION/M3FACT | C52: 96.65085342
B54: 6.4 TOTAL/M3FACT | C54: 114.6030078
B57: 7. INGRESOS PROMEDIO
B59: 7.1 VARIABLE/M3 FACT | C59: 36.35475206
B61: 7.2 FIJO/CONEXIONES | C61: 262.0605612
B63: 7.3 INGRESO EXPLOTACION/M3FACT | C63: 70.72306467
B65: 7.4 TOTAL/M3FACT | C65: 79.70614041

Sheet A-RIV-201
A2: RIVERA | B2: ESTADO DE RENDIMIENTO ECONÓMICO (a valores históricos) | H2: PERÍODO ENERO-DICIEMBRE-2020
B4: AGUA POTABLE
A5: CONCEPTOS | B5: USINA | C5: PERFORACIÓN | D5: MIXTO | E5: SUB-TOTAL | F5: ALCANTARILLADO | G5: OTROS INGRESOS | H5: TOTAL
A6: INGRESOS
A7: Ingresos Variables | C7: 8328255.29 | D7: 136104756.8 | E7: 144433012.1 | H7: 144433012.1
A8: Ingresos Fijos | C8: 8768178.56 | D8: 104464828.6 | E8: 113233007.1 | F8: -4189.95 | H8: 113228817.2
A9: INGRESOS DE EXPLOTACION | C9: 17096433.85 | D9: 240569585.4 | E9: 257666019.2 | F9: -4189.95 | H9: 257661829.3
A10: Ingresos Alcantarillado | F10: 106837393.8 | H10: 106837393.8
A11: Otros Ingresos | C11: 1360558.18 | D11: 19369840.34 | E11: 20730398.52 | F11: 1740239.26 | H11: 22470637.78
A12: TOTAL ING. DE EXPLOTACION | C12: 18456992.03 | D12: 259939425.7 | E12: 278396417.7 | F12: 108573443.1 | H12: 386969860.9
A13: COSTOS DE EXPLOTACION
A14: OPERATIVO
A15: Costo Operativo Var | C15: 3324283.94 | D15: 59356252.47 | E15: 62680536.41 | F15: 19261407.62 | H15: 81941944.03
A16: Costo Operativo Fijo | C16: 22734473.1 | D16: 146304251.1 | E16: 169038724.2 | F16: 64689086.54 | H16: 233727810.7
A17: TOTAL OPERATIVO | C17: 26058757.04 | D17: 205660503.5 | E17: 231719260.6 | F17: 83950494.16 | H17: 315669754.7
A18: NO OPERATIVO
A19: COMERCIALIZACIÓN
A20: Comercial Propios | C20: 8338549.01 | D20: 90316594.8 | E20: 98655143.81 | F20: 24926285.53 | H20: 123581429.3
A21: Comercial Asignados | C21: 2031999.15 | D21: 28617702.41 | E21: 30649701.56 | F21: 11953255.92 | H21: 42602957.48
A22: TOTAL COMERCIALIZACIÓN | C22: 10370548.16 | D22: 118934297.2 | E22: 129304845.4 | F22: 36879541.45 | H22: 166184386.8
A23: ADMINISTRACIÓN
A24: Administración Propios | C24: 1231427.9 | D24: 13337857.38 | E24: 14569285.28 | F24: 3681086.94 | H24: 18250372.22
A25: Administ. Asignados | C25: 2186490.8 | D25: 30793488.8 | E25: 32979979.6 | F25: 12862054.81 | H25: 45842034.41
A26: Gastos Fiscales | C26: 928342.97 | D26: 13074337.1 | E26: 14002680.07 | F26: 5460986.9 | H26: 19463666.97
A27: TOTAL ADMINISTRACIÓN | C27: 4346261.67 | D27: 57205683.28 | E27: 61551944.95 | F27: 22004128.65 | H27: 83556073.6
A28: TOTAL NO OPERATIVO | C28: 14716809.83 | D28: 176139980.5 | E28: 190856790.3 | F28: 58883670.1 | H28: 249740460.4
A29: COSTO DE EXPLOTACION | C29: 40775566.87 | D29: 381800484 | E29: 422576050.9 | F29: 142834164.3 | H29: 565410215.1
A30: RESULTADO DE EXPLOTACION | C30: -22318574.84 | D30: -121861058.3 | E30: -144179633.2 | F30: -34260721.12 | H30: -178440354.3
A31: DIVERSOS Y EXTRAORDINARIOS
A32: Ingresos Div. y Extr | C32: 345165.15 | D32: 4861140.55 | E32: 5206305.7 | F32: 2030437.46 | H32: 7236743.16
A33: Gtos. Div. y Extraor | C33: 296244.92 | D33: 4172170.85 | E33: 4468415.77 | F33: 1742663.54 | H33: 6211079.31
A34: RESULTADOS DIV. Y EXTRAORDINARI | C34: 48920.23 | D34: 688969.7 | E34: 737889.93 | F34: 287773.92 | H34: 1025663.85
A35: FINANCIEROS
A36: Ingresos Financieros | C36: 1156111.78 | D36: 16282124.04 | E36: 17438235.82 | F36: 6800839.31 | H36: 24239075.13
A37: Gastos Financieros | C37: 3545742.43 | D37: 49936536.65 | E37: 53482279.08 | F37: 20857866 | H37: 74340145.08
A38: RESULTADO FINANCIERO | C38: -2389630.65 | D38: -33654412.61 | E38: -36044043.26 | F38: -14057026.69 | H38: -50101069.95
A39: I.R.A.E. | C39: 843086.36 | D39: 11873624.1 | E39: 12716710.46 | F39: 4959464.09 | H39: 17676174.55
A40: RESULTADO NETO | C40: -23816198.9 | D40: -142952877.1 | E40: -166769076 | F40: -43070509.8 | H40: -209839585.8

Sheet B-RIV-201
A3: R I V E R A
C5: C O S T O S T O T A L E S
B9: C O N C E P T O | C9: C O S T O S O P E R A T I V O S
C12: AGUA | D12: ALCANTARILLADO | E12: TOTAL
B14: RETRIBUCIONES AL PERSONAL | C14: 73922950.85 | D14: 17577263.14 | E14: 91500213.99
B16: MATERIALES Y SUMINISTROS | C16: 16686250.79 | D16: 1109408.708 | E16: 17795659.5
B18: ENERGIA Y FLUÍDOS | C18: 41580332.64 | D18: 15607236.54 | E18: 57187569.18
B20: SERVICIOS CONTRATADOS | C20: 51479217.8 | D20: 29443647.76 | E20: 80922865.57
B22: GASTOS VARIOS | C22: 9793900.539 | D22: 390524.794 | E22: 10184425.33
B24: AMORTIZACIÓN | C24: 38256607.94 | D24: 19822413.22 | E24: 58079021.16
B27: TOTAL | C27: 231719260.6 | D27: 83950494.16 | E27: 315669754.7 | G27: 0.6899861878
B32: C O N C E P T O | C32: C O S T O D E A D M I N I S T R A T I V O - C O M E R C I A L
C35: COMERCIALIZACIÓN | D35: ADMINISTRACIÓN | E35: TOTAL
B37: RETRIBUCIONES AL PERSONAL | C37: 55631026.53 | D37: 5942438.817 | E37: 61573465.35
B39: MATERIALES Y SUMINISTROS | C39: 3879368.849 | D39: 212719.0265 | E39: 4092087.876
B41: ENERGIA Y FLUÍDOS | C41: 116864.7598 | D41: 4388777.471 | E41: 4505642.231
B43: SERVICIOS CONTRATADOS | C43: 52285770.07 | D43: 4966264.727 | E43: 57252034.79
B45: GASTOS VARIOS | C45: 7603210.985 | D45: 1823336.879 | E45: 9426547.863
B47: AMORTIZACIÓN | C47: 4065188.15 | D47: 916835.2999 | E47: 4982023.449
B51: TOTAL | C51: 123581429.3 | D51: 18250372.22 | E51: 141831801.6 | G51: 0.3100138122
A56: C O S T O D E E X P L O T A C I Ó N | G56: 457501556.3

Sheet C-RIV-201
C3: COBERTURAS, COSTOS E INGRESOS PROMEDIO
C5: R I V E R A
B9: 1. COMPOSICION DEL COSTO PROPIO POR CONEXIÓN | C9: OPERATIVOS | E9: ADMINISTRATIVO-COMERCIAL
C11: AGUA | D11: ALCANTARILLADO
C12: ($/conex.agua) | D12: ($/conex.desagüe) | E12: ($/conex.agua)
B14: RETRIBUCIONES AL PERSONAL | C14: 2092.474832 | D14: 984.6103035 | E14: 1742.908326
B16: MATERIALES Y SUMINISTROS | C16: 472.323675 | D16: 62.14478533 | E16: 115.8312918
B18: ENERGIA Y FLUÍDOS | C18: 1176.979525 | D18: 874.2570324 | E18: 127.5374273
B20: SERVICIOS CONTRATADOS | C20: 1457.178946 | D20: 1649.319279 | E20: 1620.585224
B22: GASTOS VARIOS | C22: 277.22771 | D22: 21.87568866 | E22: 266.8293666
B24: AMORTIZACIÓN | C24: 1082.897643 | D24: 1110.374928 | E24: 141.02195
B28: TOTAL | C28: 6559.08233 | D28: 4702.582017 | E28: 4014.713586
B31: 2.CONEXIONES (promedio anual) | C31: 35328 | D31: 17852
B34: 3.COBERTURAS COSTO/INGRESO
B36: 3.1 COSTO DE EXPLOTACION/ INGRESO DE EXPLOT. | C36: 1.517893277 | D36: 1.315553418 | E36: 0
B38: 3.3 TOTAL | C38: 1.638459622 | D38: 1.451339929
B41: 4.M3 ELEVADOS | C41: 9107630
B43: 5.M3 FACTURADOS | C43: 4012310
B46: 6. COSTO PROMEDIO
B48: 6.1 COSTO VARIABLE/ M3ELEVADOS | C48: 6.882200574
B50: 6.2 COSTO VARIABLE / M3FACTURADOS | C50: 15.62205722
B52: 6.3 COSTO EXPLOTACION/M3FACT | C52: 105.3198908
B54: 6.4 TOTAL/M3FACT | C54: 118.8055655
B57: 7. INGRESOS PROMEDIO
B59: 7.1 VARIABLE/M3 FACT | C59: 35.99747081
B61: 7.2 FIJO/CONEXIONES | C61: 267.0992959
B63: 7.3 INGRESO EXPLOTACION/M3FACT | C63: 69.38557034
B65: 7.4 TOTAL/M3FACT | C65: 78.19876074

Sheet A-TAC-202
A2: TACUAREMBÓ | B2: ESTADO DE RENDIMIENTO ECONÓMICO (a valores históricos) | H2: PERÍODO ENERO-DICIEMBRE-2020
B4: AGUA POTABLE
A5: CONCEPTOS | B5: USINA | C5: PERFORACIÓN | D5: MIXTO | E5: SUB-TOTAL | F5: ALCANTARILLADO | G5: OTROS INGRESOS | H5: TOTAL
A6: INGRESOS
A7: Ingresos Variables | B7: 4073911.46 | D7: 144048820 | E7: 148122731.4 | H7: 148122731.4
A8: Ingresos Fijos | B8: 4340531.74 | D8: 109370916.4 | E8: 113711448.1 | F8: -4629.21 | H8: 113706818.9
A9: INGRESOS DE EXPLOTACION | B9: 8414443.2 | D9: 253419736.4 | E9: 261834179.6 | F9: -4629.21 | H9: 261829550.4
A10: Ingresos Alcantarillado | F10: 101388177.2 | H10: 101388177.2
A11: Otros Ingresos | B11: 668476.81 | D11: 24941292.34 | E11: 25609769.15 | F11: 2422137.98 | H11: 28031907.13
A12: TOTAL ING. DE EXPLOTACION | B12: 9082920.01 | D12: 278361028.7 | E12: 287443948.7 | F12: 103805686 | H12: 391249634.7
A13: COSTOS DE EXPLOTACION
A14: OPERATIVO
A15: Costo Operativo Var | B15: 2239970.65 | D15: 56582531.07 | E15: 58822501.72 | F15: 15028431.62 | H15: 73850933.34
A16: Costo Operativo Fijo | B16: 26791984.31 | D16: 82051316.87 | E16: 108843301.2 | F16: 57672262.58 | H16: 166515563.8
A17: TOTAL OPERATIVO | B17: 29031954.96 | D17: 138633847.9 | E17: 167665802.9 | F17: 72700694.2 | H17: 240366497.1
A18: NO OPERATIVO
A19: COMERCIALIZACIÓN
A20: Comercial Propios | B20: 2713974.18 | D20: 70607427 | E20: 73321401.18 | F20: 17875348.73 | H20: 91196749.91
A21: Comercial Asignados | B21: 999972.59 | D21: 30645805.61 | E21: 31645778.2 | F21: 11428355.71 | H21: 43074133.91
A22: TOTAL COMERCIALIZACIÓN | B22: 3713946.77 | D22: 101253232.6 | E22: 104967179.4 | F22: 29303704.44 | H22: 134270883.8
A23: ADMINISTRACIÓN
A24: Administración Propios | B24: 1054614.54 | D24: 27437111.93 | E24: 28491726.47 | F24: 6946123.96 | H24: 35437850.43
A25: Administ. Asignados | B25: 1075999.97 | D25: 32975787.35 | E25: 34051787.32 | F25: 12297246.65 | H25: 46349033.97
A26: Gastos Fiscales | B26: 456849.37 | D26: 14000900.07 | E26: 14457749.44 | F26: 5221180 | H26: 19678929.44
A27: TOTAL ADMINISTRACIÓN | B27: 2587463.88 | D27: 74413799.35 | E27: 77001263.23 | F27: 24464550.61 | H27: 101465813.8
A28: TOTAL NO OPERATIVO | B28: 6301410.65 | D28: 175667032 | E28: 181968442.6 | F28: 53768255.05 | H28: 235736697.7
A29: COSTO DE EXPLOTACION | B29: 35333365.61 | D29: 314300879.9 | E29: 349634245.5 | F29: 126468949.2 | H29: 476103194.8
A30: RESULTADO DE EXPLOTACION | B30: -26250445.6 | D30: -35939851.18 | E30: -62190296.78 | F30: -22663263.24 | H30: -84853560.02
A31: DIVERSOS Y EXTRAORDINARIOS
A32: Ingresos Div. y Extr | B32: 169860.2 | D32: 5205643.84 | E32: 5375504.04 | F32: 1941275.45 | H32: 7316779.49
A33: Gtos. Div. y Extraor | B33: 145785.89 | D33: 4467847.65 | E33: 4613633.54 | F33: 1666138.33 | H33: 6279771.87
A34: RESULTADOS DIV. Y EXTRAORDINARIOS | B34: 24074.31 | D34: 737796.19 | E34: 761870.5 | F34: 275137.12 | H34: 1037007.62
A35: FINANCIEROS
A36: Ingresos Financieros | B36: 568937.28 | D36: 17436019.11 | E36: 18004956.39 | F36: 6502195.84 | H36: 24507152.23
A37: Gastos Financieros | B37: 1744904.88 | D37: 53475480.62 | E37: 55220385.5 | F37: 19941940.02 | H37: 75162325.52
A38: RESULTADO FINANCIERO | B38: -1175967.6 | D38: -36039461.51 | E38: -37215429.11 | F38: -13439744.18 | H38: -50655173.29
A39: I.R.A.E. | B39: 414893.5 | D39: 12715093.95 | E39: 13129987.45 | F39: 4741680.45 | H39: 17871667.9
A40: RESULTADO NETO | B40: -26987445.39 | D40: -58526422.55 | E40: -85513867.94 | F40: -31086189.85 | H40: -116600057.8

Sheet B-TAC-202
A3: T A C U A R E M B Ó
C5: C O S T O S T O T A L E S
B9: C O N C E P T O | C9: C O S T O S O P E R A T I V O S
C12: AGUA | D12: ALCANTARILLADO | E12: TOTAL
B14: RETRIBUCIONES AL PERSONAL | C14: 63879271.37 | D14: 27107162.43 | E14: 90986433.79
B16: MATERIALES Y SUMINISTROS | C16: 29872575.62 | D16: 4138060.853 | E16: 34010636.48
B18: ENERGIA Y FLUÍDOS | C18: 22614488.73 | D18: 6923852.973 | E18: 29538341.7
B20: SERVICIOS CONTRATADOS | C20: 15100670.78 | D20: 10673130.14 | E20: 25773800.92
B22: GASTOS VARIOS | C22: 7446633.864 | D22: 904459.5706 | E22: 8351093.435
B24: AMORTIZACIÓN | C24: 28752162.54 | D24: 22954028.24 | E24: 51706190.77
B27: TOTAL | C27: 167665802.9 | D27: 72700694.2 | E27: 240366497.1 | G27: 0.6549476249
B32: C O N C E P T O | C32: C O S T O D E A D M I N I S T R A T I V O - C O M E R C I A L
C35: COMERCIALIZACIÓN | D35: ADMINISTRACIÓN | E35: TOTAL
B37: RETRIBUCIONES AL PERSONAL | C37: 44892461.66 | D37: 21870023.39 | E37: 66762485.06
B39: MATERIALES Y SUMINISTROS | C39: 4047723.715 | D39: 576164.8487 | E39: 4623888.563
B41: ENERGIA Y FLUÍDOS | C41: 200854.4023 | D41: 4979496.862 | E41: 5180351.264
B43: SERVICIOS CONTRATADOS | C43: 30146157.76 | D43: 3761956.2 | E43: 33908113.95
B45: GASTOS VARIOS | C45: 5418655.161 | D45: 2941937.29 | E45: 8360592.451
B47: AMORTIZACIÓN | C47: 6490897.212 | D47: 1308271.835 | E47: 7799169.047
B51: TOTAL | C51: 91196749.91 | D51: 35437850.43 | E51: 126634600.3 | G51: 0.3450523751
A56: C O S T O D E E X P L O T A C I Ó N | G56: 367001097.4

Sheet C-TAC-202
C3: COBERTURAS, COSTOS E INGRESOS PROMEDIO
C5: T A C U A R E M B Ó
B9: 1. COMPOSICION DEL COSTO PROPIO POR CONEXIÓN | C9: OPERATIVOS | E9: ADMINISTRATIVO-COMERCIAL
C11: AGUA | D11: ALCANTARILLADO
C12: ($/conex.agua) | D12: ($/conex.desagüe) | E12: ($/conex.agua)
B14: RETRIBUCIONES AL PERSONAL | C14: 1746.28954 | D14: 1519.80054 | E14: 1825.108941
B16: MATERIALES Y SUMINISTROS | C16: 816.6368404 | D16: 232.006103 | E16: 126.4048268
B18: ENERGIA Y FLUÍDOS | C18: 618.2200309 | D18: 388.1953898 | E18: 141.6170384
B20: SERVICIOS CONTRATADOS | C20: 412.8122137 | D20: 598.4037981 | E20: 926.9577352
B22: GASTOS VARIOS | C22: 203.5711827 | D22: 50.70977633 | E22: 228.5563819
B24: AMORTIZACIÓN | C24: 786.0077238 | D24: 1286.949329 | E24: 213.2085579
B28: TOTAL | C28: 4583.537531 | D28: 4076.064936 | E28: 3461.853481
B31: 2.CONEXIONES (promedio anual) | C31: 36580 | D31: 17836
B34: 3.COBERTURAS COSTO/INGRESO
B36: 3.1 COSTO DE EXPLOTACION/ INGRESO DE EXPLOT. | C36: 1.216356257 | D36: 1.21832391 | E36: 0
B38: 3.3 TOTAL | C38: 1.359604457 | D38: 1.361424101
B41: 4.M3 ELEVADOS | C41: 8020830
B43: 5.M3 FACTURADOS | C43: 4026860
B46: 6. COSTO PROMEDIO
B48: 6.1 COSTO VARIABLE/ M3ELEVADOS | C48: 7.333717548
B50: 6.2 COSTO VARIABLE / M3FACTURADOS | C50: 14.60753583
B52: 6.3 COSTO EXPLOTACION/M3FACT | C52: 86.82552796
B54: 6.4 TOTAL/M3FACT | C54: 104.9448583
B57: 7. INGRESOS PROMEDIO
B59: 7.1 VARIABLE/M3 FACT | C59: 36.78368045
B61: 7.2 FIJO/CONEXIONES | C61: 259.0474033
B63: 7.3 INGRESO EXPLOTACION/M3FACT | C63: 71.38165934
B65: 7.4 TOTAL/M3FACT | C65: 77.1877863

Sheet A-CL-204
A2: CERRO LARGO | B2: ESTADO DE RENDIMIENTO ECONÓMICO (a valores históricos) | H2: PERÍODO ENERO-DICIEMBRE-2020
B4: AGUA POTABLE
A5: CONCEPTOS | B5: USINA | C5: PERFORACIÓN | D5: MIXTO | E5: SUB-TOTAL | F5: ALCANTARILLADO | G5: OTROS INGRESOS | H5: TOTAL
A6: INGRESOS
A7: Ingresos Variables | B7: 105906208.2 | C7: 7923682.08 | D7: 25457560.52 | E7: 139287450.8 | H7: 139287450.8
A8: Ingresos Fijos | B8: 88863035.57 | C8: 5949923.24 | D8: 21175036.26 | E8: 115987995.1 | F8: -19432.55 | H8: 115968562.5
A9: INGRESOS DE EXPLOTACION | B9: 194769243.7 | C9: 13873605.32 | D9: 46632596.78 | E9: 255275445.8 | F9: -19432.55 | H9: 255256013.3
A10: Ingresos Alcantarillado | F10: 102488262.7 | H10: 102488262.7
A11: Otros Ingresos | B11: 14663733.04 | C11: 903095.53 | D11: 3407647.83 | E11: 18974476.4 | F11: 739521.91 | H11: 19713998.31
A12: TOTAL ING. DE EXPLOTACION | B12: 209432976.8 | C12: 14776700.85 | D12: 50040244.61 | E12: 274249922.2 | F12: 103208352.1 | H12: 377458274.3
A13: COSTOS DE EXPLOTACION
A14: OPERATIVO
A15: Costo Operativo Var | B15: 43062498.38 | C15: 2951698.95 | D15: 11126521.96 | E15: 57140719.29 | F15: 14728626.62 | H15: 71869345.91
A16: Costo Operativo Fijo | B16: 79627494.76 | C16: 19452411.06 | D16: 28375832.15 | E16: 127455738 | F16: 62760739.27 | H16: 190216477.2
A17: TOTAL OPERATIVO | B17: 122689993.1 | C17: 22404110.01 | D17: 39502354.11 | E17: 184596457.3 | F17: 77489365.89 | H17: 262085823.2
A18: NO OPERATIVO
A19: COMERCIALIZACIÓN
A20: Comercial Propios | B20: 66723288.44 | C20: 4892110.64 | D20: 17761273.58 | E20: 89376672.66 | F20: 23259784.65 | H20: 112636457.3
A21: Comercial Asignados | B21: 23057258.71 | C21: 1626822.21 | D21: 5509117.41 | E21: 30193198.33 | F21: 11362593 | H21: 41555791.33
A22: TOTAL COMERCIALIZACIÓN | B22: 89780547.15 | C22: 6518932.85 | D22: 23270390.99 | E22: 119569871 | F22: 34622377.65 | H22: 154192248.6
A23: ADMINISTRACIÓN
A24: Administración Propios | B24: 18974326.84 | C24: 1391186.07 | D24: 5050833.35 | E24: 25416346.26 | F24: 6614463.3 | H24: 32030809.56
A25: Administ. Asignados | B25: 24810287.96 | C25: 1750508.57 | D25: 5927972.28 | E25: 32488768.81 | F25: 12226483.93 | H25: 44715252.74
A26: Gastos Fiscales | B26: 10533982.41 | C26: 743233.06 | D26: 2516905.73 | E26: 13794121.2 | F26: 5191135.54 | H26: 18985256.74
A27: TOTAL ADMINISTRACIÓN | B27: 54318597.21 | C27: 3884927.7 | D27: 13495711.36 | E27: 71699236.27 | F27: 24032082.77 | H27: 95731319.04
A28: TOTAL NO OPERATIVO | B28: 144099144.4 | C28: 10403860.55 | D28: 36766102.35 | E28: 191269107.3 | F28: 58654460.42 | H28: 249923567.7
A29: COSTO DE EXPLOTACION | B29: 266789137.5 | C29: 32807970.56 | D29: 76268456.46 | E29: 375865564.5 | F29: 136143826.3 | H29: 512009390.8
A30: RESULTADO DE EXPLOTACION | B30: -57356160.72 | C30: -18031269.71 | D30: -26228211.85 | E30: -101615642.3 | F30: -32935474.24 | H30: -134551116.5
A31: DIVERSOS Y EXTRAORDINARIOS
A32: Ingresos Div. y Extr | B32: 3916616.64 | C32: 276339.86 | D32: 935805.17 | E32: 5128761.67 | F32: 1930104.7 | H32: 7058866.37
A33: Gtos. Div. y Extraor | B33: 3361514.49 | C33: 237174.21 | D33: 803173.49 | E33: 4401862.19 | F33: 1656550.85 | H33: 6058413.04
A34: RESULTADOS DIV. Y EXTRAORDINARIOS | B34: 555102.15 | C34: 39165.65 | D34: 132631.68 | E34: 726899.48 | F34: 273553.85 | H34: 1000453.33
A35: FINANCIEROS
A36: Ingresos Financieros | B36: 13118493.67 | C36: 925585.15 | D36: 3134428.23 | E36: 17178507.05 | F36: 6464779.95 | H36: 23643287
A37: Gastos Financieros | B37: 40233825.62 | C37: 2838727.79 | D37: 9613149.39 | E37: 52685702.8 | F37: 19827187.17 | H37: 72512889.97
A38: RESULTADO FINANCIERO | B38: -27115331.95 | C38: -1913142.64 | D38: -6478721.16 | E38: -35507195.75 | F38: -13362407.22 | H38: -48869602.97
A39: I.R.A.E. | B39: 9566568.95 | C39: 674976.46 | D39: 2285759.68 | E39: 12527305.09 | F39: 4714395.17 | H39: 17241700.26
A40: RESULTADO NETO | B40: -74349821.57 | C40: -19230270.24 | D40: -30288541.65 | E40: -123868633.5 | F40: -41309932.44 | H40: -165178565.9

Sheet B-CL-204
D3: C E R R O L A R G O
C5: C O S T O S T O T A L E S
B9: C O N C E P T O | C9: C O S T O S O P E R A T I V O S
C12: AGUA | D12: ALCANTARILLADO | E12: TOTAL
B14: RETRIBUCIONES AL PERSONAL | C14: 85990103.87 | D14: 16445465.65 | E14: 102435569.5
B16: MATERIALES Y SUMINISTROS | C16: 23176659.33 | D16: 2912110.28 | E16: 26088769.61
B18: ENERGIA Y FLUÍDOS | C18: 26884765.17 | D18: 8607954.632 | E18: 35492719.81
B20: SERVICIOS CONTRATADOS | C20: 7900582.52 | D20: 22871618.36 | E20: 30772200.88
B22: GASTOS VARIOS | C22: 8736217.032 | D22: 586759.9169 | E22: 9322976.949
B24: AMORTIZACIÓN | C24: 31908129.33 | D24: 26065457.04 | E24: 57973586.38
B27: TOTAL | C27: 184596457.3 | D27: 77489365.89 | E27: 262085823.1 | G27: 0.6443364035
B32: C O N C E P T O | C32: C O S T O D E A D M I N I S T R A T I V O - C O M E R C I A L
C35: COMERCIALIZACIÓN | D35: ADMINISTRACIÓN | E35: TOTAL
B37: RETRIBUCIONES AL PERSONAL | C37: 67406261.52 | D37: 15011863.23 | E37: 82418124.76
B39: MATERIALES Y SUMINISTROS | C39: 3566894.26 | D39: 386076.5714 | E39: 3952970.832
B41: ENERGIA Y FLUÍDOS | C41: 191400.333 | D41: 5963160.119 | E41: 6154560.452
B43: SERVICIOS CONTRATADOS | C43: 25606783.18 | D43: 5933248.197 | E43: 31540031.37
B45: GASTOS VARIOS | C45: 11234569.62 | D45: 2794218.046 | E45: 14028787.67
B47: AMORTIZACIÓN | C47: 4630548.398 | D47: 1942243.393 | E47: 6572791.791
B51: TOTAL | C51: 112636457.3 | D51: 32030809.56 | E51: 144667266.9 | G51: 0.3556635965
A56: C O S T O D E E X P L O T A C I Ó N | G56: 406753090

Sheet C-CL-204
C3: COBERTURAS,COSTOS E INGRESOS PROMEDIO
C5: C E R R O L A R G O
B9: 1. COMPOSICION DEL COSTO PROPIO POR CONEXIÓN | C9: OPERATIVOS | E9: ADMINISTRATIVO-COMERCIAL
C11: AGUA | D11: ALCANTARILLADO
C12: ($/conex.agua) | D12: ($/conex.desagüe) | E12: ($/conex.agua)
B14: RETRIBUCIONES AL PERSONAL | C14: 2315.171608 | D14: 850.6862018 | E14: 2219.00072
B16: MATERIALES Y SUMINISTROS | C16: 624.0013819 | D16: 150.6367826 | E16: 106.4285938
B18: ENERGIA Y FLUÍDOS | C18: 723.8373048 | D18: 445.2697409 | E18: 165.7035284
B20: SERVICIOS CONTRATADOS | C20: 212.7128997 | D20: 1183.096336 | E20: 849.1742871
B22: GASTOS VARIOS | C22: 235.2112711 | D22: 30.3517441 | E22: 377.7068458
B24: AMORTIZACIÓN | C24: 859.0848456 | D24: 1348.306282 | E24: 176.9638628
B28: TOTAL | C28: 4970.019311 | D28: 4008.347087 | E28: 3894.977838
B31: 2.CONEXIONES (promedio anual) | C31: 37142 | D31: 19332
B34: 3.COBERTURAS COSTO/INGRESO
B36: 3.1 COSTO DE EXPLOTACION/ INGRESO DE EXPLOT. | C36: 1.370522046 | D36: 1.319116366 | E36: 0
B38: 3.3 TOTAL | C38: 1.502173773 | D38: 1.454634868
B41: 4.M3 ELEVADOS | C41: 6879860
B43: 5.M3 FACTURADOS | C43: 3839420
B46: 6. COSTO PROMEDIO
B48: 6.1 COSTO VARIABLE/ M3ELEVADOS | C48: 8.305506113
B50: 6.2 COSTO VARIABLE / M3FACTURADOS | C50: 14.88264355
B52: 6.3 COSTO EXPLOTACION/M3FACT | C52: 97.89644387
B54: 6.4 TOTAL/M3FACT | C54: 116.0280549
B57: 7. INGRESOS PROMEDIO
B59: 7.1 VARIABLE/M3 FACT | C59: 36.27825317
B61: 7.2 FIJO/CONEXIONES | C61: 260.2354816
B63: 7.3 INGRESO EXPLOTACION/M3FACT | C63: 71.4300395
B65: 7.4 TOTAL/M3FACT | C65: 77.24010162

Sheet A-500-AG-SURESTE
A2: AMBITO GEOGRÁFICO SURESTE | B2: ESTADO DE RENDIMIENTO ECONÓMICO (a valores históricos) | G2: PERÍODO ENERO-DICIEMBRE-2020
B4: AGUA POTABLE
A5: CONCEPTOS | B5: USINA | C5: PERFORACIÓN | D5: MIXTO | E5: SUB-TOTAL | F5: ALCANTARILLADO | G5: OTROS INGRESOS | H5: TOTAL
A6: INGRESOS
A7: Ingresos Variables | B7: 246548775.9 | C7: 76650353.56 | D7: 34687885.83 | E7: 357887015.3 | H7: 357887015.3
A8: Ingresos Fijos | B8: 198115194.6 | C8: 86374460.18 | D8: 37611058.05 | E8: 322100712.8 | F8: -9483.64 | H8: 322091229.2
A9: INGRESOS DE EXPLOTACION | B9: 444663970.4 | C9: 163024813.7 | D9: 72298943.88 | E9: 679987728.1 | F9: -9483.64 | H9: 679978244.4
A10: Ingresos Alcantarillado | F10: 198704544.6 | H10: 198704544.6
A11: Otros Ingresos | B11: 30350307.17 | C11: 9793022.65 | D11: 4321171.64 | E11: 44464501.46 | F11: 2545854.91 | H11: 47010356.37
A12: TOTAL ING. DE EXPLOTACION | B12: 475014277.6 | C12: 172817836.4 | D12: 76620115.52 | E12: 724452229.5 | F12: 201240915.9 | H12: 925693145.4
A13: COSTOS DE EXPLOTACION
A14: OPERATIVO
A15: Costo Operativo Var | B15: 85667476.91 | C15: 25589093.64 | D15: 14809015.48 | E15: 126065586 | F15: 26870409.75 | H15: 152935995.8
A16: Costo Operativo Fijo | B16: 180218129.1 | C16: 50356868.34 | D16: 57639168.64 | E16: 288214166.1 | F16: 92902329.24 | H16: 381116495.3
A17: TOTAL OPERATIVO | B17: 265885606 | C17: 75945961.98 | D17: 72448184.12 | E17: 414279752.1 | F17: 119772739 | H17: 534052491.1
A18: NO OPERATIVO
A19: COMERCIALIZACIÓN
A20: Comercial Propios | B20: 104396727.7 | C20: 32174308.65 | D20: 20805016.99 | E20: 157376053.3 | F20: 30540013.09 | H20: 187916066.4
A21: Comercial Asignados | B21: 52296096.23 | C21: 19026161.16 | D21: 8435394.52 | E21: 79757651.91 | F21: 22033554.12 | H21: 101791206
A22: TOTAL COMERCIALIZACIÓN | B22: 156692823.9 | C22: 51200469.81 | D22: 29240411.51 | E22: 237133705.2 | F22: 52573567.21 | H22: 289707272.4
A23: ADMINISTRACIÓN
A24: Administración Propios | B24: 41320407.71 | C24: 12077303.49 | D24: 7939335.86 | E24: 61337047.06 | F24: 11943161.27 | H24: 73280208.33
A25: Administ. Asignados | B25: 56272136.29 | C25: 20472708.53 | D25: 9076732.2 | E25: 85821577.02 | F25: 23839822.94 | H25: 109661400
A26: Gastos Fiscales | B26: 23892092.42 | C26: 8692327.58 | D26: 3853810.19 | E26: 36438230.19 | F26: 10121941.02 | H26: 46560171.21
A27: TOTAL ADMINISTRACIÓN | B27: 121484636.4 | C27: 41242339.6 | D27: 20869878.25 | E27: 183596854.3 | F27: 45904925.23 | H27: 229501779.5
A28: TOTAL NO OPERATIVO | B28: 278177460.3 | C28: 92442809.41 | D28: 50110289.76 | E28: 420730559.5 | F28: 98478492.44 | H28: 519209051.9
A29: COSTO DE EXPLOTACION | B29: 544063066.3 | C29: 168388771.4 | D29: 122558473.9 | E29: 835010311.5 | F29: 218251231.4 | H29: 1053261543
A30: RESULTADO DE EXPLOTACION | B30: -69048788.66 | C30: 4429065 | D30: -45938358.36 | E30: -110558082 | F30: -17010315.56 | H30: -127568397.6
A31: DIVERSOS Y EXTRAORDINARIOS
A32: Ingresos Div. y Extr | B32: 8883266.36 | C32: 3231875.17 | D32: 1432876.58 | E32: 13548018.11 | F32: 3763417.8 | H32: 17311435.91
A33: Gtos. Div. y Extraor | B33: 7624240.5 | C33: 2773821.43 | D33: 1229795.02 | E33: 11627856.95 | F33: 3230026.73 | H33: 14857883.68
A34: RESULTADOS DIV. Y EXTRAORDINARIOS | B34: 1259025.86 | C34: 458053.74 | D34: 203081.56 | E34: 1920161.16 | F34: 533391.07 | H34: 2453552.23
A35: FINANCIEROS
A36: Ingresos Financieros | B36: 29754014.27 | C36: 10824989.06 | D36: 4799342.01 | E36: 45378345.34 | F36: 12605358.22 | H36: 57983703.56
A37: Gastos Financieros | B37: 91254213.65 | C37: 33199750.93 | D37: 14719364.59 | E37: 139173329.2 | F37: 38660062.09 | H37: 177833391.3
A38: RESULTADO FINANCIERO | B38: -61500199.38 | C38: -22374761.87 | D38: -9920022.58 | E38: -93794983.83 | F38: -26054703.87 | H38: -119849687.7
A39: I.R.A.E. | B39: 21697905.02 | C39: 7894046.91 | D39: 3499886.33 | E39: 33091838.26 | F39: 9192368.55 | H39: 42284206.81
A40: RESULTADO NETO | B40: -107592057.2 | C40: -9593596.22 | D40: -52155413.05 | E40: -169341066.4 | F40: -33339259.81 | H40: -202680326.2

Sheet B-500-AG-SURESTE
A3: AMBITO GEOGRÁFICO SURESTE
C5: C O S T O S T O T A L E S
B9: C O N C E P T O | C9: C O S T O S O P E R A T I V O S
C12: AGUA | D12: ALCANTARILLADO | E12: TOTAL
B14: RETRIBUCIONES AL PERSONAL | C14: 166559748.3 | D14: 46623674.39 | E14: 213183422.7
B16: MATERIALES Y SUMINISTROS | C16: 41671912.26 | D16: 5724584.572 | E16: 47396496.83
B18: ENERGIA Y FLUÍDOS | C18: 67380624.29 | D18: 15452110.1 | E18: 82832734.39
B20: SERVICIOS CONTRATADOS | C20: 36763074.45 | D20: 10107299.76 | E20: 46870374.21
B22: GASTOS VARIOS | C22: 10803134.17 | D22: 2526590.777 | E22: 13329724.95
B24: AMORTIZACIÓN | C24: 91101258.62 | D24: 39338479.4 | E24: 130439738
B27: TOTAL | C27: 414279752.1 | D27: 119772739 | E27: 534052491.1 | G27: 0.6715540018
B32: C O N C E P T O | C32: C O S T O D E A D M I N I S T R A T I V O - C O M E R C I A L
C35: COMERCIALIZACIÓN | D35: ADMINISTRACIÓN | E35: TOTAL
B37: RETRIBUCIONES AL PERSONAL | C37: 118853193.2 | D37: 35630989.99 | E37: 154484183.2
B39: MATERIALES Y SUMINISTROS | C39: 6670304.381 | D39: 1791002.391 | E39: 8461306.772
B41: ENERGIA Y FLUÍDOS | C41: 357126.8989 | D41: 8870933.729 | E41: 9228060.627
B43: SERVICIOS CONTRATADOS | C43: 39796005.21 | D43: 7660332.649 | E43: 47456337.86
B45: GASTOS VARIOS | C45: 8380025.691 | D45: 12385760.4 | E45: 20765786.09
B47: AMORTIZACIÓN | C47: 13859410.98 | D47: 6941189.166 | E47: 20800600.14
B51: TOTAL | C51: 187916066.4 | D51: 73280208.33 | E51: 261196274.7 | G51: 0.3284459982
A56: C O S T O D E E X P L O T A C I Ó N | G56: 795248765.8

Sheet C-500-AG-SURESTE
C3: COBERTURAS, COSTOS E INGRESOS PROMEDIO
C5: AMBITO GEOGRÁFICO SURESTE
B9: 1. COMPOSICIÓN DEL COSTO PROPIO POR CONEXIÓN | C9: OPERATIVOS | E9: ADMINISTRATIVO-COMERCIAL
C11: AGUA | D11: ALCANTARILLADO
C12: ($/conex.agua) | D12: ($/conex.desagüe) | E12: ($/conex.agua)
B14: RETRIBUCIONES AL PERSONAL | C14: 1880.182739 | D14: 1358.894619 | E14: 1743.869679
B16: MATERIALES Y SUMINISTROS | C16: 470.4066315 | D16: 166.8488654 | E16: 95.51409092
B18: ENERGIA Y FLUÍDOS | C18: 760.6152628 | D18: 450.3675343 | E18: 104.1694676
B20: SERVICIOS CONTRATADOS | C20: 414.994011 | D20: 294.5875767 | E20: 535.7031828
B22: GASTOS VARIOS | C22: 121.9494301 | D22: 73.64006927 | E22: 234.4112126
B24: AMORTIZACIÓN | C24: 1028.381801 | D24: 1146.560169 | E24: 234.8042054
B28: TOTAL | C28: 4676.529876 | D28: 3490.898834 | E28: 2948.471838
B31: 2.CONEXIONES (promedio anual) | C31: 88587 | D31: 34310
B34: 3.COBERTURAS COSTO/INGRESO
B36: 3.1 COSTO DE EXPLOTACIÓN/ INGRESO DE EXPLOT. | C36: 1.152609209 | D36: 1.084527123 | E36: 0
B38: 3.3 TOTAL | C38: 1.300652513 | D38: 1.237691605
B41: 4.M3 ELEVADOS | C41: 14284580
B43: 5.M3 FACTURADOS | C43: 8769820
B46: 6. COSTO PROMEDIO
B48: 6.1 COSTO VARIABLE/ M3ELEVADOS | C48: 8.82529175
B50: 6.2 COSTO VARIABLE / M3FACTURADOS | C50: 14.37493427
B52: 6.3 COSTO EXPLOTACIÓN/M3FACT | C52: 95.21407641
B54: 6.4 TOTAL/M3FACT | C54: 116.1829246
B57: 7. INGRESOS PROMEDIO
B59: 7.1 VARIABLE/M3 FACT | C59: 40.8089351
B61: 7.2 FIJO/CONEXIONES | C61: 302.9984768
B63: 7.3 INGRESO EXPLOTACIÓN/M3FACT | C63: 82.6074229
B65: 7.4 TOTAL/M3FACT | C65: 89.32664444

Sheet A-ROC-502
A2: ROCHA | B2: ESTADO DE RENDIMIENTO ECONÓMICO (a valores históricos) | G2: PERÍODO ENERO-DICIEMBRE-2020
B4: AGUA POTABLE
A5: CONCEPTOS | B5: USINA | C5: PERFORACIÓN | D5: MIXTO | E5: SUB-TOTAL | F5: ALCANTARILLADO | G5: OTROS INGRESOS | H5: TOTAL
A6: INGRESOS
A7: Ingresos Variables | B7: 73837779.29 | C7: 71521133.29 | D7: 18623675.35 | E7: 163982587.9 | H7: 163982587.9
A8: Ingresos Fijos | B8: 64720680.64 | C8: 81766362.06 | D8: 24501671.65 | E8: 170988714.3 | F8: -3970.7 | H8: 170984743.7
A9: INGRESOS DE EXPLOTACIÓN | B9: 138558459.9 | C9: 153287495.3 | D9: 43125347 | E9: 334971302.3 | F9: -3970.7 | H9: 334967331.6
A10: Ingresos Alcantarillado | F10: 61632959.77 | H10: 61632959.77
A11: Otros Ingresos | B11: 10815647.88 | C11: 9013675.04 | D11: 2678739.48 | E11: 22508062.4 | F11: 1567410.15 | H11: 24075472.55
A12: TOTAL ING. DE EXPLOTACIÓN | B12: 149374107.8 | C12: 162301170.4 | D12: 45804086.48 | E12: 357479364.7 | F12: 63196399.22 | H12: 420675763.9
A13: COSTOS DE EXPLOTACIÓN
A14: OPERATIVO
A15: Costo Operativo Var | B15: 23362881.35 | C15: 24124073.35 | D15: 8009980.8 | E15: 55496935.5 | F15: 4130053.95 | H15: 59626989.45
A16: Costo Operativo Fijo | B16: 56328388.75 | C16: 44593075.4 | D16: 30832403.78 | E16: 131753867.9 | F16: 25223499.54 | H16: 156977367.5
A17: TOTAL OPERATIVO | B17: 79691270.1 | C17: 68717148.75 | D17: 38842384.58 | E17: 187250803.4 | F17: 29353553.49 | H17: 216604356.9
A18: NO OPERATIVO
A19: COMERCIALIZACIÓN
A20: Comercial Propios | B20: 28864911.48 | C20: 29288114.89 | D20: 13690543.62 | E20: 71843569.99 | F20: 9056204.8 | H20: 80899774.79
A21: Comercial Asignados | B21: 16445153.54 | C21: 17868342.12 | D21: 5042742.84 | E21: 39356238.5 | F21: 6897636.15 | H21: 46253874.65
A22: TOTAL COMERCIALIZACIÓN | B22: 45310065.02 | C22: 47156457.01 | D22: 18733286.46 | E22: 111199808.5 | F22: 15953840.95 | H22: 127153649.4
A23: ADMINISTRACIÓN
A24: Administración Propios | B24: 10604731.23 | C24: 10760212.65 | D24: 5029793.21 | E24: 26394737.09 | F24: 3327175.31 | H24: 29721912.4
A25: Administ. Asignados | B25: 17695468.38 | C25: 19226861.22 | D25: 5426139.46 | E25: 42348469.06 | F25: 7486504.28 | H25: 49834973.34
A26: Gastos Fiscales | B26: 7513163.62 | C26: 8163364.21 | D26: 2303836.98 | E26: 17980364.81 | F26: 3178629.12 | H26: 21158993.93
A27: TOTAL ADMINISTRACIÓN | B27: 35813363.23 | C27: 38150438.08 | D27: 12759769.65 | E27: 86723570.96 | F27: 13992308.71 | H27: 100715879.7
A28: TOTAL NO OPERATIVO | B28: 81123428.25 | C28: 85306895.09 | D28: 31493056.11 | E28: 197923379.4 | F28: 29946149.66 | H28: 227869529.1
A29: COSTO DE EXPLOTACIÓN | B29: 160814698.3 | C29: 154024043.8 | D29: 70335440.69 | E29: 385174182.9 | F29: 59299703.15 | H29: 444473886
A30: RESULTADO DE EXPLOTACIÓN | B30: -11440590.54 | C30: 8277126.55 | D30: -24531354.21 | E30: -27694818.2 | F30: 3896696.07 | H30: -23798122.13
A31: DIVERSOS Y EXTRAORDINARIOS
A32: Ingresos Div. y Extr | B32: 2793452.76 | C32: 3035202.53 | D32: 856584.4 | E32: 6685239.69 | F32: 1181839.07 | H32: 7867078.76
A33: Gtos. Div. y Extraor | B33: 2397536.61 | C33: 2605023.09 | D33: 735180.76 | E33: 5737740.46 | F33: 1014336.98 | H33: 6752077.44
A34: RESULTADOS DIV. Y EXTRAORDINARIOS | B34: 395916.15 | C34: 430179.44 | D34: 121403.64 | E34: 947499.23 | F34: 167502.09 | H34: 1115001.32
A35: FINANCIEROS
A36: Ingresos Financieros | B36: 9356517.36 | C36: 10166244.58 | D36: 2869083.08 | E36: 22391845.02 | F36: 3958505.34 | H36: 26350350.36
A37: Gastos Financieros | B37: 28696014.83 | C37: 31179411.48 | D37: 8799347.83 | E37: 68674774.14 | F37: 12140556.51 | H37: 80815330.65
A38: RESULTADO FINANCIERO | B38: -19339497.47 | C38: -21013166.9 | D38: -5930264.75 | E38: -46282929.12 | F38: -8182051.17 | H38: -54464980.29
A39: I.R.A.E. | B39: 6823174.29 | C39: 7413662.15 | D39: 2092258.6 | E39: 16329095.04 | F39: 2886712.1 | H39: 19215807.14
A40: RESULTADO NETO | B40: -23560997.57 | C40: -4892198.76 | D40: -28247956.72 | E40: -56701153.05 | F40: -1231140.91 | H40: -57932293.96

Sheet B-ROC-502
A3: R O C H A
C5: C O S T O S T O T A L E S
B9: C O N C E P T O | C9: C O S T O S O P E R A T I V O S
C12: AGUA | D12: ALCANTARILLADO | E12: TOTAL
B14: RETRIBUCIONES AL PERSONAL | C14: 80185425.93 | D14: 10517599.46 | E14: 90703025.39
B16: MATERIALES Y SUMINISTROS | C16: 17037593.17 | D16: 1338455.96 | E16: 18376049.13
B18: ENERGIA Y FLUÍDOS | C18: 34579061.49 | D18: 2015015.435 | E18: 36594076.92
B20: SERVICIOS CONTRATADOS | C20: 7184855.247 | D20: 1059089.599 | E20: 8243944.846
B22: GASTOS VARIOS | C22: 4134215.018 | D22: 668883.1658 | E22: 4803098.184
B24: AMORTIZACIÓN | C24: 44129652.58 | D24: 13754509.87 | E24: 57884162.45
B27: TOTAL | C27: 187250803.4 | D27: 29353553.49 | E27: 216604356.9 | G27: 0.6619410674
B32: C O N C E P T O | C32: C O S T O D E A D M I N I S T R A T I V O - C O M E R C I A L
C35: COMERCIALIZACIÓN | D35: ADMINISTRACIÓN | E35: TOTAL
B37: RETRIBUCIONES AL PERSONAL | C37: 52101165.81 | D37: 14418625.38 | E37: 66519791.18
B39: MATERIALES Y SUMINISTROS | C39: 2172667.758 | D39: 534658.5218 | E39: 2707326.28
B41: ENERGIA Y FLUÍDOS | C41: 134823.8056 | D41: 3877641.15 | E41: 4012464.956
B43: SERVICIOS CONTRATADOS | C43: 16513324.25 | D43: 3208326.216 | E43: 19721650.47
B45: GASTOS VARIOS | C45: 3484441.392 | D45: 4903417.761 | E45: 8387859.153
B47: AMORTIZACIÓN | C47: 6493351.773 | D47: 2779243.375 | E47: 9272595.149
B51: TOTAL | C51: 80899774.79 | D51: 29721912.4 | E51: 110621687.2 | G51: 0.3380589326
A56: C O S T O D E E X P L O T A C I Ó N | G56: 327226044.1

Sheet C-ROC-502
C3: COBERTURAS, COSTOS E INGRESOS PROMEDIO
C5: R O C H A
B9: 1. COMPOSICIÓN DEL COSTO PROPIO POR CONEXIÓN | C9: OPERATIVOS | E9: ADMINISTRATIVO-COMERCIAL
C11: AGUA | D11: ALCANTARILLADO
C12: ($/conex.agua) | D12: ($/conex.desagüe) | E12: ($/conex.agua)
B14: RETRIBUCIONES AL PERSONAL | C14: 1943.794869 | D14: 1011.30764 | E14: 1612.522815
B16: MATERIALES Y SUMINISTROS | C16: 413.0125369 | D16: 128.6976885 | E16: 65.62897024
B18: ENERGIA Y FLUÍDOS | C18: 838.2396365 | D18: 193.7514842 | E18: 97.26716173
B20: SERVICIOS CONTRATADOS | C20: 174.1698644 | D20: 101.8355383 | E20: 478.0774379
B22: GASTOS VARIOS | C22: 100.2185353 | D22: 64.31568902 | E22: 203.3321815
B24: AMORTIZACIÓN | C24: 1069.757893 | D24: 1322.549026 | E24: 224.779287
B28: TOTAL | C28: 4539.193334 | D28: 2822.457066 | E28: 2681.607854
B31: 2.CONEXIONES (promedio anual) | C31: 41252 | D31: 10400
B34: 3.COBERTURAS COSTO/INGRESO
B36: 3.1 COSTO DE EXPLOTACIÓN/ INGRESO DE EXPLOT. | C36: 1.077472495 | D36: 0.9383399036 | E36: 0
B38: 3.3 TOTAL | C38: 1.231167643 | D38: 1.102500715
B41: 4.M3 ELEVADOS | C41: 6296180
B43: 5.M3 FACTURADOS | C43: 3862590
B46: 6. COSTO PROMEDIO
B48: 6.1 COSTO VARIABLE/ M3ELEVADOS | C48: 8.814381974
B50: 6.2 COSTO VARIABLE / M3FACTURADOS | C50: 14.36780386
B52: 6.3 COSTO EXPLOTACIÓN/M3FACT | C52: 99.71914774
B54: 6.4 TOTAL/M3FACT | C54: 123.2115737
B57: 7. INGRESOS PROMEDIO
B59: 7.1 VARIABLE/M3 FACT | C59: 42.45404973
B61: 7.2 FIJO/CONEXIONES | C61: 345.4149988
B63: 7.3 INGRESO EXPLOTACIÓN/M3FACT | C63: 92.54913534
B65: 7.4 TOTAL/M3FACT | C65: 100.0770078

Sheet A-TT-203
A2: TREINTA Y TRES | B2: ESTADO DE RENDIMIENTO ECONÓMICO (a valores históricos) | G2: PERÍODO ENERO-DICIEMBRE-2020
B4: AGUA POTABLE
A5: CONCEPTOS | B5: USINA | C5: PERFORACIÓN | D5: MIXTO | E5: SUB-TOTAL | F5: ALCANTARILLADO | G5: OTROS INGRESOS | H5: TOTAL
A6: INGRESOS
A7: Ingresos Variables | B7: 77104061.89 | D7: 9177921.48 | E7: 86281983.37 | H7: 86281983.37
A8: Ingresos Fijos | B8: 63068051.45 | D8: 6873187.62 | E8: 69941239.07 | F8: -2232.01 | H8: 69939007.06
A9: INGRESOS DE EXPLOTACIÓN | B9: 140172113.3 | D9: 16051109.1 | E9: 156223222.4 | F9: -2232.01 | H9: 156220990.4
A10: Ingresos Alcantarillado | F10: 72071059.67 | H10: 72071059.67
A11: Otros Ingresos | B11: 9855114.54 | D11: 946099.57 | E11: 10801214.11 | F11: 640599.47 | H11: 11441813.58
A12: TOTAL ING. DE EXPLOTACIÓN | B12: 150027227.9 | D12: 16997208.67 | E12: 167024436.6 | F12: 72709427.13 | H12: 239733863.7
A13: COSTOS DE EXPLOTACIÓN
A14: OPERATIVO
A15: Costo Operativo Var | B15: 29724635.59 | D15: 3729435.04 | E15: 33454070.63 | F15: 14118108.45 | H15: 47572179.08
A16: Costo Operativo Fijo | B16: 47931946.1 | D16: 10894805.13 | E16: 58826751.23 | F16: 41862273.32 | H16: 100689024.5
A17: TOTAL OPERATIVO | B17: 77656581.69 | D17: 14624240.17 | E17: 92280821.86 | F17: 55980381.77 | H17: 148261203.6
A18: NO OPERATIVO
A19: COMERCIALIZACIÓN
A20: Comercial Propios | B20: 36312544.92 | D20: 3261844.9 | E20: 39574389.82 | F20: 11495442.77 | H20: 51069832.59
A21: Comercial Asignados | B21: 16517058.06 | D21: 1871286.19 | E21: 18388344.25 | F21: 8004852.39 | H21: 26393196.64
A22: TOTAL COMERCIALIZACIÓN | B22: 52829602.98 | D22: 5133131.09 | E22: 57962734.07 | F22: 19500295.16 | H22: 77463029.23
A23: ADMINISTRACIÓN
A24: Administración Propios | B24: 12818283.61 | D24: 1151427.18 | E24: 13969710.79 | F24: 4057877.24 | H24: 18027588.03
A25: Administ. Asignados | B25: 17772839.72 | D25: 2013558.82 | E25: 19786398.54 | F25: 8613456.49 | H25: 28399855.03
A26: Gastos Fiscales | B26: 7546014.01 | D26: 854919.32 | E26: 8400933.33 | F26: 3657111.86 | H26: 12058045.19
A27: TOTAL ADMINISTRACIÓN | B27: 38137137.34 | D27: 4019905.32 | E27: 42157042.66 | F27: 16328445.59 | H27: 58485488.25
A28: TOTAL NO OPERATIVO | B28: 90966740.32 | D28: 9153036.41 | E28: 100119776.7 | F28: 35828740.75 | H28: 135948517.5
A29: COSTO DE EXPLOTACIÓN | B29: 168623322 | D29: 23777276.58 | E29: 192400598.6 | F29: 91809122.52 | H29: 284209721.1
A30: RESULTADO DE EXPLOTACIÓN | B30: -18596094.13 | D30: -6780067.91 | E30: -25376162.04 | F30: -19099695.39 | H30: -44475857.43
A31: DIVERSOS Y EXTRAORDINARIOS
A32: Ingresos Div. y Extr | B32: 2805666.97 | D32: 317865.73 | E32: 3123532.7 | F32: 1359742.67 | H32: 4483275.37
A33: Gtos. Div. y Extraor | B33: 2408019.55 | D33: 272814.61 | E33: 2680834.16 | F33: 1167026.34 | H33: 3847860.5
A34: RESULTADOS DIV. Y EXTRAORDINARIOS | B34: 397647.42 | D34: 45051.12 | E34: 442698.54 | F34: 192716.33 | H34: 635414.87
A35: FINANCIEROS
A36: Ingresos Financieros | B36: 9397427.59 | D36: 1064673.66 | E36: 10462101.25 | F36: 4554383.78 | H36: 15016485.03
A37: Gastos Financieros | B37: 28821484.65 | D37: 3265305.92 | E37: 32086790.57 | F37: 13968088.71 | H37: 46054879.28
A38: RESULTADO FINANCIERO | B38: -19424057.06 | D38: -2200632.26 | E38: -21624689.32 | F38: -9413704.93 | H38: -31038394.25
A39: I.R.A.E. | B39: 6853007.78 | D39: 776405.77 | E39: 7629413.55 | F39: 3321252.25 | G39: 0 | H39: 10950665.8
A40: RESULTADO NETO | B40: -30769495.99 | D40: -8159243.28 | E40: -38928739.27 | F40: -24999431.74 | G40: 0 | H40: -63928171.01

Sheet B-TT-203
A3: T R E I N T A Y T R E S
D5: C O S T O S T O T A L E S
B9: C O N C E P T O | C9: C O S T O S O P E R A T I V O S
C12: AGUA | D12: ALCANTARILLADO | E12: TOTAL
B14: RETRIBUCIONES AL PERSONAL | C14: 36888624.97 | D14: 20355296.48 | E14: 57243921.45
B16: MATERIALES Y SUMINISTROS | C16: 10341581.35 | D16: 2724546.532 | E16: 13066127.89
B18: ENERGIA Y FLUÍDOS | C18: 14961129.74 | D18: 7900639.347 | E18: 22861769.09
B20: SERVICIOS CONTRATADOS | C20: 11744327.78 | D20: 6180940.858 | E20: 17925268.64
B22: GASTOS VARIOS | C22: 3092307.934 | D22: 836942.7482 | E22: 3929250.682
B24: AMORTIZACIÓN | C24: 15252850.09 | D24: 17982015.81 | E24: 33234865.9
B27: TOTAL | C27: 92280821.86 | D27: 55980381.77 | E27: 148261203.6 | G27: 0.6821040764
B32: C O N C E P T O | C32: C O S T O D E A D M I N I S T R A T I V O - C O M E R C I A L
C35: COMERCIALIZACIÓN | D35: ADMINISTRACIÓN | E35: TOTAL
B37: RETRIBUCIONES AL PERSONAL | C37: 32678527.31 | D37: 9454062.807 | E37: 42132590.12
B39: MATERIALES Y SUMINISTROS | C39: 1777675.445 | D39: 286235.049 | E39: 2063910.494
B41: ENERGIA Y FLUÍDOS | C41: 105298.1169 | D41: 2157556.297 | E41: 2262854.414
B43: SERVICIOS CONTRATADOS | C43: 10879008.51 | D43: 1239295.067 | E43: 12118303.58
B45: GASTOS VARIOS | C45: 2115538.652 | D45: 3099192.501 | E45: 5214731.153
B47: AMORTIZACIÓN | C47: 3513784.55 | D47: 1791246.309 | E47: 5305030.859
B51: TOTAL | C51: 51069832.59 | D51: 18027588.03 | E51: 69097420.62 | G51: 0.3178959236
A56: C O S T O D E E X P L O T A C I Ó N | G56: 217358624.3

Sheet C-TT-203
C3: COBERTURAS,COSTOS E INGRESOS PROMEDIO
C5: T R E I N T A Y T R E S
B9: 1. COMPOSICIÓN DEL COSTO PROPIO POR CONEXIÓN | C9: OPERATIVOS | E9: ADMINISTRATIVO-COMERCIAL
C11: AGUA | D11: ALCANTARILLADO
C12: ($/conex.agua) | D12: ($/conex.desagüe) | E12: ($/conex.agua)
B14: RETRIBUCIONES AL PERSONAL | C14: 1618.13506 | D14: 1536.944766 | E14: 1848.163799
B16: MATERIALES Y SUMINISTROS | C16: 453.6378188 | D16: 205.7193093 | E16: 90.53430247
B18: ENERGIA Y FLUÍDOS | C18: 656.276253 | D18: 596.5448012 | E18: 99.26106126
B20: SERVICIOS CONTRATADOS | C20: 515.1698812 | D20: 466.6974372 | E20: 531.574487
B22: GASTOS VARIOS | C22: 135.6453891 | D22: 63.19410663 | E22: 228.7463769
B24: AMORTIZACIÓN | C24: 669.0726889 | D24: 1357.748098 | E24: 232.7074115
B28: TOTAL | C28: 4047.937091 | D28: 4226.848518 | E28: 3030.987438
B31: 2.CONEXIONES (promedio anual) | C31: 22797 | D31: 13244
B34: 3.COBERTURAS COSTO/INGRESO
B36: 3.1 COSTO DE EXPLOTACIÓN/ INGRESO DE EXPLOT. | C36: 1.151930835 | D36: 1.262685269 | E36: 0
B38: 3.3 TOTAL | C38: 1.300025166 | D38: 1.402448564
B41: 4.M3 ELEVADOS | C41: 3933900
B43: 5.M3 FACTURADOS | C43: 2304290
B46: 6. COSTO PROMEDIO
B48: 6.1 COSTO VARIABLE/ M3ELEVADOS | C48: 8.504047035
B50: 6.2 COSTO VARIABLE / M3FACTURADOS | C50: 14.51816856
B52: 6.3 COSTO EXPLOTACIÓN/M3FACT | C52: 83.49669468
B54: 6.4 TOTAL/M3FACT | C54: 101.8958711
B57: 7. INGRESOS PROMEDIO
B59: 7.1 VARIABLE/M3 FACT | C59: 37.44406449
B61: 7.2 FIJO/CONEXIONES | C61: 255.6668241
B63: 7.3 INGRESO EXPLOTACIÓN/M3FACT | C63: 72.48412159
B65: 7.4 TOTAL/M3FACT | C65: 78.37992202

Sheet A-LAV-503
A2: LAVALLEJA | B2: ESTADO DE RENDIMIENTO ECONÓMICO (a valores históricos) | G2: PERÍODO ENERO-DICIEMBRE-2020
B4: AGUA POTABLE
A5: CONCEPTOS | B5: USINA | C5: PERFORACIÓN | D5: MIXTO | E5: SUB-TOTAL | F5: ALCANTARILLADO | G5: OTROS INGRESOS | H5: TOTAL
A6: INGRESOS
A7: Ingresos Variables | B7: 95606934.69 | C7: 5129220.27 | D7: 6886289 | E7: 107622444 | H7: 107622444
A8: Ingresos Fijos | B8: 70326462.49 | C8: 4608098.12 | D8: 6236198.78 | E8: 81170759.39 | F8: -3280.93 | H8: 81167478.46
A9: INGRESOS DE EXPLOTACIÓN | B9: 165933397.2 | C9: 9737318.39 | D9: 13122487.78 | E9: 188793203.3 | F9: -3280.93 | H9: 188789922.4
A10: Ingresos Alcantarillado | F10: 65000525.16 | H10: 65000525.16
A11: Otros Ingresos | B11: 9679544.75 | C11: 779347.61 | D11: 696332.59 | E11: 11155224.95 | F11: 337845.29 | H11: 11493070.24
A12: TOTAL ING. DE EXPLOTACIÓN | B12: 175612941.9 | C12: 10516666 | D12: 13818820.37 | E12: 199948428.3 | F12: 65335089.52 | H12: 265283517.8
A13: COSTOS DE EXPLOTACIÓN
A14: OPERATIVO
A15: Costo Operativo Var | B15: 32579959.97 | C15: 1465020.29 | D15: 3069599.64 | E15: 37114579.9 | F15: 8622247.35 | H15: 45736827.25
A16: Costo Operativo Fijo | B16: 75957794.22 | C16: 5763792.94 | D16: 15911959.73 | E16: 97633546.89 | F16: 25816556.38 | H16: 123450103.3
A17: TOTAL OPERATIVO | B17: 108537754.2 | C17: 7228813.23 | D17: 18981559.37 | E17: 134748126.8 | F17: 34438803.73 | H17: 169186930.5
A18: NO OPERATIVO
A19: COMERCIALIZACIÓN
A20: Comercial Propios | B20: 39219271.25 | C20: 2886193.76 | D20: 3852628.47 | E20: 45958093.48 | F20: 9988365.52 | H20: 55946459
A21: Comercial Asignados | B21: 19333884.63 | C21: 1157819.04 | D21: 1521365.49 | E21: 22013069.16 | F21: 7131065.58 | H21: 29144134.74
A22: TOTAL COMERCIALIZACIÓN | B22: 58553155.88 | C22: 4044012.8 | D22: 5373993.96 | E22: 67971162.64 | F22: 17119431.1 | H22: 85090593.74
A23: ADMINISTRACIÓN
A24: Administración Propios | B24: 17897392.87 | C24: 1317090.84 | D24: 1758115.47 | E24: 20972599.18 | F24: 4558108.72 | H24: 25530707.9
A25: Administ. Asignados | B25: 20803828.19 | C25: 1245847.31 | D25: 1637033.92 | E25: 23686709.42 | F25: 7739862.17 | H25: 31426571.59
A26: Gastos Fiscales | B26: 8832914.79 | C26: 528963.37 | D26: 695053.89 | E26: 10056932.05 | F26: 3286200.04 | H26: 13343132.09
A27: TOTAL ADMINISTRACIÓN | B27: 47534135.85 | C27: 3091901.52 | D27: 4090203.28 | E27: 54716240.65 | F27: 15584170.93 | H27: 70300411.58
A28: TOTAL NO OPERATIVO | B28: 106087291.7 | C28: 7135914.32 | D28: 9464197.24 | E28: 122687403.3 | F28: 32703602.03 | H28: 155391005.3
A29: COSTO DE EXPLOTACIÓN | B29: 214625045.9 | C29: 14364727.55 | D29: 28445756.61 | E29: 257435530.1 | F29: 67142405.76 | H29: 324577935.8
A30: RESULTADO DE EXPLOTACIÓN | B30: -39012103.99 | C30: -3848061.55 | D30: -14626936.24 | E30: -57487101.78 | F30: -1807316.24 | H30: -59294418.02
A31: DIVERSOS Y EXTRAORDINARIOS
A32: Ingresos Div. y Extr | B32: 3284146.63 | C32: 196672.64 | D32: 258426.45 | E32: 3739245.72 | F32: 1221836.06 | H32: 4961081.78
A33: Gtos. Div. y Extraor | B33: 2818684.34 | C33: 168798.34 | D33: 221799.65 | E33: 3209282.33 | F33: 1048663.41 | H33: 4257945.74
A34: RESULTADOS DIV. Y EXTRAORDINARIOS | B34: 465462.29 | C34: 27874.3 | D34: 36626.8 | E34: 529963.39 | F34: 173172.65 | H34: 703136.04
A35: FINANCIEROS
A36: Ingresos Financieros | B36: 11000069.32 | C36: 658744.48 | D36: 865585.27 | E36: 12524399.07 | F36: 4092469.1 | H36: 16616868.17
A37: Gastos Financieros | B37: 33736714.17 | C37: 2020339.45 | D37: 2654710.84 | E37: 38411764.46 | F37: 12551416.87 | H37: 50963181.33
A38: RESULTADO FINANCIERO | B38: -22736644.85 | C38: -1361594.97 | D38: -1789125.57 | E38: -25887365.39 | F38: -8458947.77 | H38: -34346313.16
A39: I.R.A.E. | B39: 8021722.95 | C39: 480384.76 | D39: 631221.96 | E39: 9133329.67 | F39: 2984404.2 | H39: 12117733.87
A40: RESULTADO NETO | B40: -53261563.6 | C40: -4701397.46 | D40: -15748213.05 | E40: -73711174.11 | F40: -7108687.16 | H40: -80819861.27

Sheet B-LAV-503
A3: L A V A L L E J A
C5: C O S T O S T O T A L E S
B9: C O N C E P T O | C9: C O S T O S O P E R A T I V O S
C12: AGUA | D12: ALCANTARILLADO | E12: TOTAL
B14: RETRIBUCIONES AL PERSONAL | C14: =+'[2]LAV-503'!$AK$11 -> 49485697.41 | D14: =+'[2]LAV-503'!$AK$35 -> 15750778.45 | E14: =SUM(C14:D14) -> 65236475.86
B16: MATERIALES Y SUMINISTROS | C16: =+'[2]LAV-503'!$AK$12+'[2]LAV-503'!$AK$15 -> 14292737.73 | D16: =+'[2]LAV-503'!$AK$36+'[2]LAV-503'!$AK$39 -> 1661582.079 | E16: =SUM(C16:D16) -> 15954319.81
B18: ENERGIA Y FLUÍDOS | C18: =+'[2]LAV-503'!$AK$13+'[2]LAV-503'!$AK$14 -> 17840433.06 | D18: =+'[2]LAV-503'!$AK$37+'[2]LAV-503'!$AK$38 -> 5536455.321 | E18: 23376888.39
B20: SERVICIOS CONTRATADOS | C20: =+'[2]LAV-503'!$AK$16 -> 17833891.42 | D20: =+'[2]LAV-503'!$AK$40 -> 2867269.299 | E20: 20701160.72
B22: GASTOS VARIOS | C22: =+'[2]LAV-503'!$AK$17 -> 3576611.216 | D22: =+'[2]LAV-503'!$AK$41 -> 1020764.863 | E22: 4597376.079
B24: AMORTIZACIÓN | C24: =+'[2]LAV-503'!$AK$18 -> 31718755.95 | D24: =+'[2]LAV-503'!$AK$42 -> 7601953.718 | E24: 39320709.66
B27: TOTAL | C27: =SUM(C14:C24) -> 134748126.8 | D27: =SUM(D14:D24) -> 34438803.73 | E27: =SUM(E14:E24) -> 169186930.5 | G27: =+E27/G56 -> 0.6749547792
B32: C O N C E P T O | C32: C O S T O D E A D M I N I S T R A T I V O - C O M E R C I A L
C35: COMERCIALIZACIÓN | D35: ADMINISTRACIÓN | E35: TOTAL
B37: RETRIBUCIONES AL PERSONAL | C37: =+'[2]LAV-503'!$AK$58 -> 34073500.11 | D37: =+'[2]LAV-503'!$AK$82 -> 11758301.81 | E37: =SUM(C37:D37) -> 45831801.92
B39: MATERIALES Y SUMINISTROS | C39: =+'[2]LAV-503'!$AK$59+'[2]LAV-503'!$AK$62 -> 2719961.178 | D39: =+'[2]LAV-503'!$AK$83+'[2]LAV-503'!$AK$86 -> 970108.8204 | E39: =SUM(C39:D39) -> 3690069.998
B41: ENERGIA Y FLUÍDOS | C41: =+'[2]LAV-503'!$AK$60+'[2]LAV-503'!$AK$61 -> 117004.9764 | D41: =+'[2]LAV-503'!$AK$84+'[2]LAV-503'!$AK$85 -> 2835736.282 | E41: 2952741.258
B43: SERVICIOS CONTRATADOS | C43: =+'[2]LAV-503'!$AK$63 -> 12403672.44 | D43: =+'[2]LAV-503'!$AK$87 -> 3212711.366 | E43: 15616383.81
B45: GASTOS VARIOS | C45: =+'[2]LAV-503'!$AK$64 -> 2780045.647 | D45: =+'[2]LAV-503'!$AK$88 -> 4383150.139 | E45: 7163195.786
B47: AMORTIZACIÓN | C47: =+'[2]LAV-503'!$AK$65 -> 3852274.653 | D47: =+'[2]LAV-503'!$AK$89 -> 2370699.481 | E47: 6222974.134
B51: TOTAL | C51: =SUM(C37:C47) -> 55946459 | D51: =SUM(D37:D47) -> 25530707.9 | E51: 81477166.9 | G51: =+E51/G56 -> 0.3250452208
A56: C O S T O D E E X P L O T A C I Ó N | G56: =+E51+E27 -> 250664097.4

Sheet C-LAV-503
C3: COBERTURAS, COSTOS E INGRESOS PROMEDIO
C5: L A V A L L E J A
B9: 1. COMPOSICIÓN DEL COSTO PROPIO POR CONEXIÓN | C9: OPERATIVOS | E9: ADMINISTRATIVO-COMERCIAL
C11: AGUA | D11: ALCANTARILLADO
C12: ($/conex.agua) | D12: ($/conex.desagüe) | E12: ($/conex.agua)
B14: RETRIBUCIONES AL PERSONAL | C14: 2016.696447 | D14: 1476.727775 | E14: 1867.788814
B16: MATERIALES Y SUMINISTROS | C16: 582.4736219 | D16: 155.7830564 | E16: 150.3818566
B18: ENERGIA Y FLUÍDOS | C18: 727.053267 | D18: 519.0751285 | E18: 120.3334118
B20: SERVICIOS CONTRATADOS | C20: 726.7866746 | D20: 268.8232983 | E20: 636.4163259
B22: GASTOS VARIOS | C22: 145.7580576 | D22: 95.7026873 | E22: 291.9225604
B24: AMORTIZACIÓN | C24: 1292.638192 | D24: 712.7277065 | E24: 253.6055968
B28: TOTAL | C28: 5491.406259 | D28: 3228.839652 | E28: 3320.448565
B31: 2.CONEXIONES (promedio anual) | C31: 24538 | D31: 10666
B34: 3.COBERTURAS COSTO/INGRESO
B36: 3.1 COSTO DE EXPLOTACIÓN/ INGRESO DE EXPLOT. | C36: 1.287509646 | D36: 1.02766226 | E36: 0
B38: 3.3 TOTAL | C38: 1.425405631 | D38: 1.185104142
B41: 4.M3 ELEVADOS | C41: 4054500
B43: 5.M3 FACTURADOS | C43: 2602940
B46: 6. COSTO PROMEDIO
B48: 6.1 COSTO VARIABLE/ M3ELEVADOS | C48: 9.153922777
B50: 6.2 COSTO VARIABLE / M3FACTURADOS | C50: 14.25871511
B52: 6.3 COSTO EXPLOTACIÓN/M3FACT | C52: 98.90183027
B54: 6.4 TOTAL/M3FACT | C54: 118.4006956
B57: 7. INGRESOS PROMEDIO
B59: 7.1 VARIABLE/M3 FACT | C59: 41.34649433
B61: 7.2 FIJO/CONEXIONES | C61: 275.6634587
B63: 7.3 INGRESO EXPLOTACIÓN/M3FACT | C63: 76.81638005
B65: 7.4 TOTAL/M3FACT | C65: 83.0645628

Sheet A-UGD-501
A2: U.G.D. | B2: ESTADO DE RENDIMIENTO ECONÓMICO (a valores históricos) | E2: PERÍODO ENERO-DICIEMBRE-2020
B4: AGUA POTABLE
A5: CONCEPTOS | B5: USINA | C5: PERFORACIÓN | D5: MIXTO | E5: SUB-TOTAL | F5: ALCANTARILLADO | G5: OTROS INGRESOS | H5: TOTAL
A6: INGRESOS
A7: Ingresos Variables | B7: 737754460 | E7: 737754460 | H7: 737754460
A8: Ingresos Fijos | B8: 585609702.6 | E8: 585609702.6 | F8: -146782.58 | H8: 585462920.1
A9: INGRESOS DE EXPLOTACIÓN | B9: 1323364163 | E9: 1323364163 | F9: -146782.58 | H9: 1323217380
A10: Ingresos Alcantarillado | F10: 538217229.1 | H10: 538217229.1
A11: Otros Ingresos | B11: 74034332.86 | E11: 74034332.86 | F11: 6263697.5 | G11: 25000.24 | H11: 80323030.6
A12: TOTAL ING. DE EXPLOTACIÓN | B12: 1397398495 | E12: 1397398495 | F12: 544334144.6 | G12: 25000.24 | H12: 1941757640
A13: COSTOS DE EXPLOTACIÓN
A14: OPERATIVO
A15: Costo Operativo Var | B15: 184007646 | E15: 184007646 | F15: 181157781.1 | H15: 365165427.1
A16: Costo Operativo Fijo | B16: 218793743.1 | E16: 218793743.1 | F16: 202019535.1 | H16: 420813278.2
A17: TOTAL OPERATIVO | B17: 402801389.1 | E17: 402801389.1 | F17: 383177316.2 | H17: 785978705.2
A18: NO OPERATIVO
A19: COMERCIALIZACIÓN
A20: Comercial Propios | B20: 104853242.1 | E20: 104853242.1 | F20: 29163396.74 | H20: 134016638.8
A21: TOTAL COMERCIALIZACIÓN | B21: 104853242.1 | E21: 104853242.1 | F21: 29163396.74 | H21: 134016638.8
A22: ADMINISTRACIÓN
A23: Administración Propios | B23: 58574131.24 | E23: 58574131.24 | F23: 16291538.45 | H23: 74865669.69
A24: Administ. Asignados | B24: 8428670.96 | E24: 8428670.96 | F24: 3283253.45 | H24: 11711924.41
A25: Gastos Fiscales | B25: 67695762.42 | E25: 67695762.42 | F25: 26369797.19 | H25: 94065559.61
A26: TOTAL ADMINISTRACIÓN | B26: 134698564.6 | E26: 134698564.6 | F26: 45944589.09 | H26: 180643153.7
A27: TOTAL NO OPERATIVO | B27: 239551806.7 | E27: 239551806.7 | F27: 75107985.83 | H27: 314659792.5
A28: COSTO DE EXPLOTACIÓN | B28: 642353195.8 | E28: 642353195.8 | F28: 458285302 | H28: 1100638498
A29: RESULTADO DE EXPLOTACIÓN | B29: 755045299.7 | E29: 755045299.7 | F29: 86048842.07 | G29: 25000.24 | H29: 841119142
A30: DIVERSOS Y EXTRAORDINARIOS
A31: Ingresos Div. y Extr | B31: 3242762.25 | E31: 3242762.25 | F31: 1263165.96 | H31: 4505928.21
A32: Gtos. Div. y Extraor | B32: 3490506.18 | E32: 3490506.18 | F32: 1359670.62 | H32: 4850176.8
A33: RESULTADOS DIV. Y EXTRAORDINARIOS | B33: -247743.93 | E33: -247743.93 | F33: -96504.66 | H33: -344248.59
A34: FINANCIEROS
A35: Ingresos Financieros | B35: 25118812.13 | E35: 25118812.13 | F35: 9784629.9 | H35: 34903442.03
A36: Gastos Financieros | B36: 3369905.59 | E36: 3369905.59 | F36: 1312692.61 | H36: 4682598.2
A37: RESULTADO FINANCIERO | B37: 21748906.54 | E37: 21748906.54 | F37: 8471937.29 | H37: 30220843.83
A38: I.R.A.E. | B38: 55913050.89 | E38: 55913050.89 | F38: 21780031.11 | H38: 77693082
A39: RESULTADO NETO | B39: 832459513.2 | E39: 832459513.2 | F39: 116204305.8 | G39: 25000.24 | H39: 948688819.3

Sheet B-UGD-501
A3: U . G . D.
C5: C O S T O S T O T A L E S
B9: C O N C E P T O | C9: C O S T O S O P E R A T I V O S
C12: AGUA | D12: ALCANTARILLADO | E12: TOTAL
B14: RETRIBUCIONES AL PERSONAL | C14: 108314439.1 | D14: 46412870.76 | E14: 154727309.9
B16: MATERIALES Y SUMINISTROS | C16: 78587510.48 | D16: 34172574.36 | E16: 112760084.8
B18: ENERGIA Y FLUÍDOS | C18: 65372757.43 | D18: 40679198.53 | E18: 106051956
B20: SERVICIOS CONTRATADOS | C20: 47747089.87 | D20: 116584996.9 | E20: 164332086.8
B22: GASTOS VARIOS | C22: 14712737.57 | D22: 1617880.359 | E22: 16330617.93
B24: AMORTIZACIÓN | C24: 88066854.56 | D24: 143709795.2 | E24: 231776649.8
B27: TOTAL | C27: 402801389.1 | D27: 383177316.2 | E27: 785978705.2 | G27: 0.7900387033
B32: C O N C E P T O | C32: C O S T O D E A D M I N I S T R A T I V O - C O M E R C I A L
C35: COMERCIALIZACIÓN | D35: ADMINISTRACIÓN | E35: TOTAL
B37: RETRIBUCIONES AL PERSONAL | C37: 47431800.49 | D37: 31044076.15 | E37: 78475876.64
B39: MATERIALES Y SUMINISTROS | C39: 9363210.29 | D39: 2848867.72 | E39: 12212078.01
B41: ENERGIA Y FLUÍDOS | C41: 2337661.74 | D41: 8103579.39 | E41: 10441241.13
B43: SERVICIOS CONTRATADOS | C43: 65793787.57 | D43: 23248733.22 | E43: 89042520.79
B45: GASTOS VARIOS | C45: 7218788.45 | D45: 3488385 | E45: 10707173.45
B47: AMORTIZACIÓN | C47: 1871390.28 | D47: 6132028.21 | E47: 8003418.49
B51: TOTAL | C51: 134016638.8 | D51: 74865669.69 | E51: 208882308.5 | G51: 0.2099612967
A56: C O S T O D E E X P L O T A C I Ó N | G56: 994861013.7

Sheet C-UGD-501
C3: COBERTURAS, COSTOS E INGRESOS PROMEDIO
C5: U . G . D .
B9: 1.COMPOSICIÓN DEL COSTO PROPIO POR CONEXIÓN | C9: OPERATIVOS | E9: ADMINISTRATIVO-COMERCIAL
C11: AGUA | D11: ALCANTARILLADO
C12: ($/conex.agua) | D12: ($/conex.desagüe) | E12: ($/conex.agua)
B14: RETRIBUCIONES AL PERSONAL | C14: 1187.749489 | D14: 914.9359478 | E14: 860.5471543
B16: MATERIALES Y SUMINISTROS | C16: 861.7713035 | D16: 673.6432416 | E16: 133.9146427
B18: ENERGIA Y FLUÍDOS | C18: 716.861573 | D18: 801.9081874 | E18: 114.4960812
B20: SERVICIOS CONTRATADOS | C20: 523.5828393 | D20: 2298.237599 | E20: 976.4183741
B22: GASTOS VARIOS | C22: 161.3362602 | D22: 31.89324158 | E22: 117.4122296
B24: AMORTIZACIÓN | C24: 965.7194583 | D24: 2832.948179 | E24: 87.76351792
B28: TOTAL | C28: 4417.020923 | D28: 7553.566396 | E28: 2290.552
B31: 2.CONEXIONES (promedio anual) | C31: 91193 | D31: 50728
B34: 3.COBERTURAS COSTO/INGRESO
B36: 3.1 COSTO DE EXPLOTACIÓN/ INGRESO DE EXPLOT. | C36: 0.4596778928 | D36: 0.8416921137 | E36: 0
B38: 3.3 TOTAL | C38: 0.4945619346 | D38: 0.8691994853
B41: 4.M3 ELEVADOS | C41: 21074350
B43: 5.M3 FACTURADOS | C43: 13679560
B46: 6. COSTO PROMEDIO
B48: 6.1 COSTO VARIABLE/ M3ELEVADOS | C48: 8.731355698
B50: 6.2 COSTO VARIABLE / M3FACTURADOS | C50: 13.45128396
B52: 6.3 COSTO EXPLOTACIÓN/M3FACT | C52: 46.95715328
B54: 6.4 TOTAL/M3FACT | C54: 51.54600429
B57: 7. INGRESOS PROMEDIO
B59: 7.1 VARIABLE/M3 FACT | C59: 53.93115422
B61: 7.2 FIJO/CONEXIONES | C61: 535.1376592
B63: 7.3 INGRESO EXPLOTACIÓN/M3FACT | C63: 102.1522984
B65: 7.4 TOTAL/M3FACT | C65: 104.2255796
